Workbook

Sheet DIBUJAR
A1: Pirámides de población a 1 de enero de 2022 | F1: (Revisión del Padrón Municipal de Habitantes a 1 de enero de 2007)
A2: Fuente: Padrón Municipal de Habitantes a 1 de enero de 2022 | F2: Elaboración: Instituto Aragonés de Estadística
A3: Elaboración. Instituto Aragonés de Estadística.
A5: Elegir territorio
C6: =VLOOKUP(F6,datos!A2:B769,2) -> ARAGÓN | F6: 1 | M6: extranjeros
I7: =B6&" "&C6 -> ARAGÓN | M7: =B6&" "&C6 -> ARAGÓN
B8: Total población
B9: Edad | C9: Ambos Sexos | D9: Hombre | E9: Mujer | H9: datos dibujo | I9: =D9 -> Hombre | J9: =E9 -> Mujer | K9: TOTALES | L9: datos dibujo | M9: Hombre | N9: Mujer | O9: TOTALES
B10: 0 a 4 | C10: =D10+E10 -> 49782 | D10: =VLOOKUP($F$6,datos!$A$2:$AS$769,5) -> 25557 | E10: =VLOOKUP($F$6,datos!$A$2:$AS$769,26) -> 24225 | H10: =B10 -> 0 a 4 | I10: =-D10/$C$30 -> -0.01926917814 | J10: =E10/$C$30 -> 0.01826489182 | K10: =J10-I10 -> 0.03753406996 | L10: =B10 -> 0 a 4 | M10: =-D35/$C$30 -> -0.003462978252 | N10: =E35/C$30 -> 0.003268454326 | O10: =-M10+N10 -> 0.006731432578
B11: 5 a 9 | C11: 61253 | D11: =VLOOKUP($F$6,datos!$A$2:$AS$769,6) -> 31457 | E11: =VLOOKUP($F$6,datos!$A$2:$AS$769,27) -> 29796 | H11: 5 a 9 | I11: -0.02371759348 | J11: 0.02246525147 | K11: 0.04618284495 | L11: =B11 -> 5 a 9 | M11: =-D36/$C$30 -> -0.003586629119 | N11: =E36/C$30 -> 0.00334762104 | O11: =N11-M11 -> 0.006934250159
B12: 10 a 14 | C12: 67610 | D12: =VLOOKUP($F$6,datos!$A$2:$AS$769,7) -> 34840 | E12: =VLOOKUP($F$6,datos!$A$2:$AS$769,28) -> 32770 | H12: 10 a 14 | I12: -0.0262682696 | J12: 0.02470755439 | K12: 0.05097582399 | L12: 10 a 14 | M12: -0.003286549575 | N12: 0.002978176376 | O12: 0.006264725951
B13: 15 a 19 | C13: 65311 | D13: =VLOOKUP($F$6,datos!$A$2:$AS$769,8) -> 33845 | E13: =VLOOKUP($F$6,datos!$A$2:$AS$769,29) -> 31466 | H13: 15 a 19 | I13: -0.02551807074 | J13: 0.0237243792 | K13: 0.04924244995 | L13: 15 a 19 | M13: -0.003412462349 | N13: 0.002853017571 | O13: 0.00626547992
B14: 20 a 24 | C14: 64832 | D14: =VLOOKUP($F$6,datos!$A$2:$AS$769,9) -> 33757 | E14: =VLOOKUP($F$6,datos!$A$2:$AS$769,30) -> 31075 | H14: 20 a 24 | I14: -0.0254517215 | J14: 0.02342957744 | K14: 0.04888129894 | L14: 20 a 24 | M14: -0.004826907635 | N14: 0.004211669174 | O14: 0.009038576809
B15: 25 a 29 | C15: 66442 | D15: =VLOOKUP($F$6,datos!$A$2:$AS$769,10) -> 34209 | E15: =VLOOKUP($F$6,datos!$A$2:$AS$769,31) -> 32233 | H15: 25 a 29 | I15: -0.02579251535 | J15: 0.0243026732 | K15: 0.05009518855 | L15: 25 a 29 | M15: -0.005773892326 | N15: 0.00556202712 | O15: 0.01133591945
B16: 30 a 34 | C16: 71681 | D16: =VLOOKUP($F$6,datos!$A$2:$AS$769,11) -> 36527 | E16: =VLOOKUP($F$6,datos!$A$2:$AS$769,32) -> 35154 | H16: 30 a 34 | I16: -0.02754021481 | J16: 0.02650501578 | K16: 0.05404523058 | L16: 30 a 34 | M16: -0.006224011641 | N16: 0.0068754406 | O16: 0.01309945224
B17: 35 a 39 | C17: 82576 | D17: =VLOOKUP($F$6,datos!$A$2:$AS$769,12) -> 42012 | E17: =VLOOKUP($F$6,datos!$A$2:$AS$769,33) -> 40564 | H17: 35 a 39 | I17: -0.03167573314 | J17: 0.03058398646 | K17: 0.0622597196 | L17: 35 a 39 | M17: -0.006889012037 | N17: 0.007308972605 | O17: 0.01419798464
B18: 40 a 44 | C18: 102772 | D18: =VLOOKUP($F$6,datos!$A$2:$AS$769,13) -> 52355 | E18: =VLOOKUP($F$6,datos!$A$2:$AS$769,34) -> 50417 | H18: 40 a 44 | I18: -0.03947403143 | J18: 0.03801284009 | K18: 0.07748687152 | L18: 40 a 44 | M18: -0.007723655391 | N18: 0.00710238518 | O18: 0.01482604057
B19: 45 a 49 | C19: 109283 | D19: =VLOOKUP($F$6,datos!$A$2:$AS$769,14) -> 56300 | E19: =VLOOKUP($F$6,datos!$A$2:$AS$769,35) -> 52983 | H19: 45 a 49 | I19: -0.04244843797 | J19: 0.03994752378 | K19: 0.08239596174 | L19: 45 a 49 | M19: -0.006680162706 | N19: 0.005718098642 | O19: 0.01239826135
B20: 50 a 54 | C20: 103377 | D20: =VLOOKUP($F$6,datos!$A$2:$AS$769,15) -> 52265 | E20: =VLOOKUP($F$6,datos!$A$2:$AS$769,36) -> 51112 | H20: 50 a 54 | I20: -0.03940617425 | J20: 0.03853684834 | K20: 0.07794302259 | L20: 50 a 54 | M20: -0.005013891873 | N20: 0.004523058248 | O20: 0.009536950121
B21: 55 a 59 | C21: 98729 | D21: =VLOOKUP($F$6,datos!$A$2:$AS$769,16) -> 49999 | E21: =VLOOKUP($F$6,datos!$A$2:$AS$769,37) -> 48730 | H21: 55 a 59 | I21: -0.03769768117 | J21: 0.03674089489 | K21: 0.07443857605 | L21: 55 a 59 | M21: -0.00302793831 | N21: 0.002724088923 | O21: 0.005752027233
B22: 60 a 64 | C22: 89733 | D22: =VLOOKUP($F$6,datos!$A$2:$AS$769,17) -> 44338 | E22: =VLOOKUP($F$6,datos!$A$2:$AS$769,38) -> 45395 | H22: 60 a 64 | I22: -0.03342946434 | J22: 0.03422640926 | K22: 0.0676558736 | L22: 60 a 64 | M22: -0.001839683635 | N22: 0.001841191572 | O22: 0.003680875207
B23: 65 a 69 | C23: 74669 | D23: =VLOOKUP($F$6,datos!$A$2:$AS$769,18) -> 36082 | E23: =VLOOKUP($F$6,datos!$A$2:$AS$769,39) -> 38587 | H23: 65 a 69 | I23: -0.02720469873 | J23: 0.02909339033 | K23: 0.05629808907 | L23: 65 a 69 | M23: -0.0009635720021 | N23: 0.001152818147 | O23: 0.002116390149
B24: 70 a 74 | C24: 65322 | D24: =VLOOKUP($F$6,datos!$A$2:$AS$769,19) -> 30505 | E24: =VLOOKUP($F$6,datos!$A$2:$AS$769,40) -> 34817 | H24: 70 a 74 | I24: -0.02299981528 | J24: 0.02625092832 | K24: 0.0492507436 | L24: 70 a 74 | M24: -0.0004207145361 | N24: 0.0006273019607 | O24: 0.001048016497
B25: 75 a 79 | C25: 55970 | D25: =VLOOKUP($F$6,datos!$A$2:$AS$769,20) -> 25051 | E25: =VLOOKUP($F$6,datos!$A$2:$AS$769,41) -> 30919 | H25: 75 a 79 | I25: -0.01888766997 | J25: 0.02331195832 | K25: 0.04219962829 | L25: 75 a 79 | M25: -0.0002035715497 | N25: 0.0003279763857 | O25: 0.0005315479354
B26: 80 a 84 | C26: 38918 | D26: =VLOOKUP($F$6,datos!$A$2:$AS$769,21) -> 16213 | E26: =VLOOKUP($F$6,datos!$A$2:$AS$769,42) -> 22705 | H26: 80 a 84 | I26: -0.01222409458 | J26: 0.0171188594 | K26: 0.02934295397 | L26: 80 a 84 | M26: -0.0001146032428 | N26: 0.0001666270833 | O26: 0.0002812303261
B27: 85 a 89 | C27: 35213 | D27: =VLOOKUP($F$6,datos!$A$2:$AS$769,22) -> 13188 | E27: =VLOOKUP($F$6,datos!$A$2:$AS$769,43) -> 22025 | H27: 85 a 89 | I27: -0.009943339252 | J27: 0.01660616068 | K27: 0.02654949993 | L27: 85 a 89 | M27: -4.599209087e-05 | N27: 9.047624433e-05 | O27: 0.0001364683352
B28: 90 a 94 | C28: 17595 | D28: =VLOOKUP($F$6,datos!$A$2:$AS$769,23) -> 5682 | E28: =VLOOKUP($F$6,datos!$A$2:$AS$769,44) -> 11913 | H28: 90 a 94 | I28: -0.004284050169 | J28: 0.008982029156 | K28: 0.01326607933 | L28: 90 a 94 | M28: -1.130953054e-05 | N28: 2.7896842e-05 | O28: 3.920637254e-05
B29: 95 y más | C29: 5247 | D29: =VLOOKUP($F$6,datos!$A$2:$AS$769,24) -> 1294 | E29: =VLOOKUP($F$6,datos!$A$2:$AS$769,45) -> 3953 | H29: 95 y más | I29: -0.0009756355014 | J29: 0.002980438282 | K29: 0.003956073783 | L29: 95 y más | M29: -1.507937406e-06 | N29: 9.047624433e-06 | O29: 1.055556184e-05
B30: Total general | C30: =SUM(C10:C29) -> 1326315 | D30: =SUM(D10:D29) -> 655476 | E30: =SUM(E10:E29) -> 670839 | I30: -0.4942083894 | J30: 0.5057916106 | K30: 1 | M30: =-D55/$C$55 -> -0.5112404559 | N30: =E55/C$55 -> 0.4887595441 | O30: 1
B33: Población extranjera
B34: Edad | C34: Ambos Sexos | D34: Hombre | E34: Mujer
B35: 0 a 4 | C35: =D35+E35 -> 8928 | D35: =VLOOKUP($F$6,datosext!$A$2:$AS$769,5) -> 4593 | E35: =VLOOKUP($F$6,datosext!$A$2:$AS$769,26) -> 4335
B36: 5 a 9 | C36: 9197 | D36: =VLOOKUP($F$6,datosext!$A$2:$AS$769,6) -> 4757 | E36: =VLOOKUP($F$6,datosext!$A$2:$AS$769,27) -> 4440
B37: 10 a 14 | C37: 8309 | D37: =VLOOKUP($F$6,datosext!$A$2:$AS$769,7) -> 4359 | E37: =VLOOKUP($F$6,datosext!$A$2:$AS$769,28) -> 3950
B38: 15 a 19 | C38: 8310 | D38: =VLOOKUP($F$6,datosext!$A$2:$AS$769,8) -> 4526 | E38: =VLOOKUP($F$6,datosext!$A$2:$AS$769,29) -> 3784
B39: 20 a 24 | C39: 11988 | D39: =VLOOKUP($F$6,datosext!$A$2:$AS$769,9) -> 6402 | E39: =VLOOKUP($F$6,datosext!$A$2:$AS$769,30) -> 5586
B40: 25 a 29 | C40: 15035 | D40: =VLOOKUP($F$6,datosext!$A$2:$AS$769,10) -> 7658 | E40: =VLOOKUP($F$6,datosext!$A$2:$AS$769,31) -> 7377
B41: 30 a 34 | C41: 17374 | D41: =VLOOKUP($F$6,datosext!$A$2:$AS$769,11) -> 8255 | E41: =VLOOKUP($F$6,datosext!$A$2:$AS$769,32) -> 9119
B42: 35 a 39 | C42: 18831 | D42: =VLOOKUP($F$6,datosext!$A$2:$AS$769,12) -> 9137 | E42: =VLOOKUP($F$6,datosext!$A$2:$AS$769,33) -> 9694
B43: 40 a 44 | C43: 19664 | D43: =VLOOKUP($F$6,datosext!$A$2:$AS$769,13) -> 10244 | E43: =VLOOKUP($F$6,datosext!$A$2:$AS$769,34) -> 9420
B44: 45 a 49 | C44: 16444 | D44: =VLOOKUP($F$6,datosext!$A$2:$AS$769,14) -> 8860 | E44: =VLOOKUP($F$6,datosext!$A$2:$AS$769,35) -> 7584
B45: 50 a 54 | C45: 12649 | D45: =VLOOKUP($F$6,datosext!$A$2:$AS$769,15) -> 6650 | E45: =VLOOKUP($F$6,datosext!$A$2:$AS$769,36) -> 5999
B46: 55 a 59 | C46: 7629 | D46: =VLOOKUP($F$6,datosext!$A$2:$AS$769,16) -> 4016 | E46: =VLOOKUP($F$6,datosext!$A$2:$AS$769,37) -> 3613
B47: 60 a 64 | C47: 4882 | D47: =VLOOKUP($F$6,datosext!$A$2:$AS$769,17) -> 2440 | E47: =VLOOKUP($F$6,datosext!$A$2:$AS$769,38) -> 2442
B48: 65 a 69 | C48: 2807 | D48: =VLOOKUP($F$6,datosext!$A$2:$AS$769,18) -> 1278 | E48: =VLOOKUP($F$6,datosext!$A$2:$AS$769,39) -> 1529
B49: 70 a 74 | C49: 1390 | D49: =VLOOKUP($F$6,datosext!$A$2:$AS$769,19) -> 558 | E49: =VLOOKUP($F$6,datosext!$A$2:$AS$769,40) -> 832
B50: 75 a 79 | C50: 705 | D50: =VLOOKUP($F$6,datosext!$A$2:$AS$769,20) -> 270 | E50: =VLOOKUP($F$6,datosext!$A$2:$AS$769,41) -> 435
B51: 80 a 84 | C51: 373 | D51: =VLOOKUP($F$6,datosext!$A$2:$AS$769,21) -> 152 | E51: =VLOOKUP($F$6,datosext!$A$2:$AS$769,42) -> 221
B52: 85 a 89 | C52: 181 | D52: =VLOOKUP($F$6,datosext!$A$2:$AS$769,22) -> 61 | E52: =VLOOKUP($F$6,datosext!$A$2:$AS$769,43) -> 120
B53: 90 a 94 | C53: 52 | D53: =VLOOKUP($F$6,datosext!$A$2:$AS$769,23) -> 15 | E53: =VLOOKUP($F$6,datosext!$A$2:$AS$769,44) -> 37
B54: 95 y más | C54: 14 | D54: =VLOOKUP($F$6,datosext!$A$2:$AS$769,24) -> 2 | E54: =VLOOKUP($F$6,datosext!$A$2:$AS$769,45) -> 12
B55: Total general | C55: =SUM(C35:C54) -> 164762 | D55: =SUM(D35:D54) -> 84233 | E55: =SUM(E35:E54) -> 80529

Sheet datos (hidden)
B1: referencia geográfica | C1: código | D1: TOTAL VARONES | E1: 01- de 0 a 4 | F1: 02- de 5 a 9 | G1: 03- de 10 a 14 | H1: 04- de 15 a 19 | I1: 05- de 20 a 24 | J1: 06- de 25 a 29 | K1: 07- de 30 a 34 | L1: 08- de 35 a 39 | M1: 09- de 40 a 44 | N1: 10- de 45 a 49 | O1: 11- de 50 a 54 | P1: 12- de 55 a 59 | Q1: 13- de 60 a 64 | R1: 14- de 65 a 69 | S1: 15- de 70 a 74 | T1: 16- de 75 a 79 | U1: 17- de 80 a 84 | V1: 18- de 85 a 89 | W1: 19- de 90 a 94 | X1: 20- de 95 y más | Y1: TOTAL MUJERES | Z1: 01- de 0 a 4 | AA1: 02- de 5 a 9 | AB1: 03- de 10 a 14 | AC1: 04- de 15 a 19 | AD1: 05- de 20 a 24 | AE1: 06- de 25 a 29 | AF1: 07- de 30 a 34 | AG1: 08- de 35 a 39 | AH1: 09- de 40 a 44 | AI1: 10- de 45 a 49 | AJ1: 11- de 50 a 54 | AK1: 12- de 55 a 59 | AL1: 13- de 60 a 64 | AM1: 14- de 65 a 69 | AN1: 15- de 70 a 74 | AO1: 16- de 75 a 79 | AP1: 17- de 80 a 84 | AQ1: 18- de 85 a 89 | AR1: 19- de 90 a 94 | AS1: 20- de 95 y más
A2: 1 | B2: ARAGÓN | C2: 2 | D2: =((SUM(E2:X2)))+0 -> 655476 | E2: 25557 | F2: 31457 | G2: 34840 | H2: 33845 | I2: 33757 | J2: 34209 | K2: 36527 | L2: 42012 | M2: 52355 | N2: 56300 | O2: 52265 | P2: 49999 | Q2: 44338 | R2: 36082 | S2: 30505 | T2: 25051 | U2: 16213 | V2: 13188 | W2: 5682 | X2: 1294 | Y2: =(SUM(Z2:AS2))+0 -> 670839 | Z2: 24225 | AA2: 29796 | AB2: 32770 | AC2: 31466 | AD2: 31075 | AE2: 32233 | AF2: 35154 | AG2: 40564 | AH2: 50417 | AI2: 52983 | AJ2: 51112 | AK2: 48730 | AL2: 45395 | AM2: 38587 | AN2: 34817 | AO2: 30919 | AP2: 22705 | AQ2: 22025 | AR2: 11913 | AS2: 3953
A3: 2 | B3: PROVINCIA DE HUESCA | C3: 22 | D3: =((SUM(E3:X3)))+0 -> 114371 | E3: 4358 | F3: 5196 | G3: 5657 | H3: 5556 | I3: 5757 | J3: 6077 | K3: 6379 | L3: 7413 | M3: 9380 | N3: 9522 | O3: 8956 | P3: 8922 | Q3: 7982 | R3: 6518 | S3: 5426 | T3: 4352 | U3: 2850 | V3: 2617 | W3: 1148 | X3: 305 | Y3: =((SUM(Z3:AS3))+0)+0 -> 111085 | Z3: 4098 | AA3: 4941 | AB3: 5354 | AC3: 5109 | AD3: 5229 | AE3: 5253 | AF3: 5769 | AG3: 6635 | AH3: 8230 | AI3: 8497 | AJ3: 8354 | AK3: 8188 | AL3: 7623 | AM3: 6424 | AN3: 5565 | AO3: 5042 | AP3: 3767 | AQ3: 3915 | AR3: 2266 | AS3: 826
A4: 3 | B4: PROVINCIA DE TERUEL | C4: 44 | D4: =((SUM(E4:X4)))+0 -> 68207 | E4: 2493 | F4: 3019 | G4: 3234 | H4: 3183 | I4: 3446 | J4: 3521 | K4: 3806 | L4: 4261 | M4: 5051 | N4: 5210 | O4: 5109 | P4: 5590 | Q4: 5275 | R4: 4126 | S4: 3320 | T4: 2665 | U4: 1914 | V4: 1796 | W4: 966 | X4: 222 | Y4: =((SUM(Z4:AS4))+0)+0 -> 66214 | Z4: 2436 | AA4: 2832 | AB4: 3195 | AC4: 2948 | AD4: 3147 | AE4: 3289 | AF4: 3554 | AG4: 3762 | AH4: 4444 | AI4: 4555 | AJ4: 4985 | AK4: 5029 | AL4: 4714 | AM4: 3746 | AN4: 3289 | AO4: 2977 | AP4: 2500 | AQ4: 2779 | AR4: 1535 | AS4: 498
A5: 4 | B5: PROVINCIA DE ZARAGOZA | C5: 50 | D5: =((SUM(E5:X5)))+0 -> 472898 | E5: 18706 | F5: 23242 | G5: 25949 | H5: 25106 | I5: 24554 | J5: 24611 | K5: 26342 | L5: 30338 | M5: 37924 | N5: 41568 | O5: 38200 | P5: 35487 | Q5: 31081 | R5: 25438 | S5: 21759 | T5: 18034 | U5: 11449 | V5: 8775 | W5: 3568 | X5: 767 | Y5: =((SUM(Z5:AS5))+0)+0 -> 493540 | Z5: 17691 | AA5: 22023 | AB5: 24221 | AC5: 23409 | AD5: 22699 | AE5: 23691 | AF5: 25831 | AG5: 30167 | AH5: 37743 | AI5: 39931 | AJ5: 37773 | AK5: 35513 | AL5: 33058 | AM5: 28417 | AN5: 25963 | AO5: 22900 | AP5: 16438 | AQ5: 15331 | AR5: 8112 | AS5: 2629
A6: 5 | B6: LA JACETANIA | C6: 1 | D6: =((SUM(E6:X6)))+0 -> 9327 | E6: 281 | F6: 386 | G6: 439 | H6: 393 | I6: 457 | J6: 523 | K6: 542 | L6: 614 | M6: 801 | N6: 788 | O6: 761 | P6: 765 | Q6: 740 | R6: 561 | S6: 395 | T6: 344 | U6: 229 | V6: 186 | W6: 98 | X6: 24 | Y6: =((SUM(Z6:AS6))+0)+0 -> 9133 | Z6: 310 | AA6: 417 | AB6: 424 | AC6: 436 | AD6: 437 | AE6: 416 | AF6: 441 | AG6: 539 | AH6: 734 | AI6: 742 | AJ6: 705 | AK6: 758 | AL6: 673 | AM6: 470 | AN6: 409 | AO6: 367 | AP6: 277 | AQ6: 301 | AR6: 215 | AS6: 62
A7: 6 | B7: ALTO GÁLLEGO | C7: 2 | D7: =((SUM(E7:X7)))+0 -> 7087 | E7: 260 | F7: 266 | G7: 326 | H7: 304 | I7: 334 | J7: 357 | K7: 384 | L7: 493 | M7: 609 | N7: 583 | O7: 594 | P7: 611 | Q7: 555 | R7: 432 | S7: 316 | T7: 233 | U7: 156 | V7: 179 | W7: 81 | X7: 14 | Y7: =((SUM(Z7:AS7))+0)+0 -> 6842 | Z7: 227 | AA7: 279 | AB7: 326 | AC7: 306 | AD7: 312 | AE7: 313 | AF7: 362 | AG7: 478 | AH7: 525 | AI7: 504 | AJ7: 574 | AK7: 503 | AL7: 513 | AM7: 425 | AN7: 286 | AO7: 274 | AP7: 232 | AQ7: 216 | AR7: 149 | AS7: 38
A8: 7 | B8: SOBRARBE | C8: 3 | D8: =((SUM(E8:X8)))+0 -> 4119 | E8: 150 | F8: 190 | G8: 181 | H8: 152 | I8: 170 | J8: 164 | K8: 215 | L8: 261 | M8: 330 | N8: 349 | O8: 316 | P8: 367 | Q8: 334 | R8: 296 | S8: 203 | T8: 161 | U8: 106 | V8: 114 | W8: 48 | X8: 12 | Y8: =((SUM(Z8:AS8))+0)+0 -> 3636 | Z8: 129 | AA8: 145 | AB8: 157 | AC8: 128 | AD8: 154 | AE8: 179 | AF8: 209 | AG8: 251 | AH8: 296 | AI8: 285 | AJ8: 303 | AK8: 300 | AL8: 228 | AM8: 223 | AN8: 186 | AO8: 138 | AP8: 106 | AQ8: 140 | AR8: 55 | AS8: 24
A9: 8 | B9: LA RIBAGORZA | C9: 4 | D9: =((SUM(E9:X9)))+0 -> 6581 | E9: 210 | F9: 277 | G9: 288 | H9: 267 | I9: 295 | J9: 313 | K9: 355 | L9: 421 | M9: 505 | N9: 571 | O9: 545 | P9: 575 | Q9: 504 | R9: 415 | S9: 377 | T9: 236 | U9: 167 | V9: 164 | W9: 76 | X9: 20 | Y9: =((SUM(Z9:AS9))+0)+0 -> 6013 | Z9: 177 | AA9: 216 | AB9: 266 | AC9: 263 | AD9: 254 | AE9: 288 | AF9: 309 | AG9: 374 | AH9: 504 | AI9: 458 | AJ9: 527 | AK9: 455 | AL9: 432 | AM9: 325 | AN9: 322 | AO9: 243 | AP9: 188 | AQ9: 232 | AR9: 135 | AS9: 45
A10: 9 | B10: CINCO VILLAS | C10: 5 | D10: =((SUM(E10:X10)))+0 -> 15826 | E10: 509 | F10: 587 | G10: 711 | H10: 707 | I10: 850 | J10: 827 | K10: 895 | L10: 976 | M10: 1187 | N10: 1308 | O10: 1324 | P10: 1390 | Q10: 1226 | R10: 966 | S10: 777 | T10: 626 | U10: 411 | V10: 354 | W10: 166 | X10: 29 | Y10: =((SUM(Z10:AS10))+0)+0 -> 14989 | Z10: 546 | AA10: 579 | AB10: 643 | AC10: 683 | AD10: 720 | AE10: 758 | AF10: 808 | AG10: 829 | AH10: 1014 | AI10: 1044 | AJ10: 1120 | AK10: 1187 | AL10: 1134 | AM10: 872 | AN10: 766 | AO10: 701 | AP10: 555 | AQ10: 613 | AR10: 323 | AS10: 94
A11: 10 | B11: HOYA DE HUESCA/PLANA DE UESCA | C11: 6 | D11: =((SUM(E11:X11)))+0 -> 33771 | E11: 1350 | F11: 1699 | G11: 1839 | H11: 1807 | I11: 1711 | J11: 1794 | K11: 1804 | L11: 2097 | M11: 2660 | N11: 2801 | O11: 2579 | P11: 2591 | Q11: 2292 | R11: 1907 | S11: 1682 | T11: 1316 | U11: 774 | V11: 687 | W11: 297 | X11: 84 | Y11: =((SUM(Z11:AS11))+0)+0 -> 35111 | Z11: 1333 | AA11: 1643 | AB11: 1791 | AC11: 1689 | AD11: 1624 | AE11: 1613 | AF11: 1711 | AG11: 2046 | AH11: 2668 | AI11: 2790 | AJ11: 2596 | AK11: 2499 | AL11: 2415 | AM11: 2140 | AN11: 1817 | AO11: 1645 | AP11: 1061 | AQ11: 1116 | AR11: 655 | AS11: 259
A12: 11 | B12: SOMONTANO DE BARBASTRO | C12: 7 | D12: =((SUM(E12:X12)))+0 -> 12065 | E12: 476 | F12: 535 | G12: 570 | H12: 572 | I12: 614 | J12: 614 | K12: 694 | L12: 771 | M12: 987 | N12: 927 | O12: 890 | P12: 914 | Q12: 848 | R12: 712 | S12: 636 | T12: 489 | U12: 299 | V12: 326 | W12: 149 | X12: 42 | Y12: =((SUM(Z12:AS12))+0)+0 -> 12062 | Z12: 445 | AA12: 493 | AB12: 596 | AC12: 506 | AD12: 575 | AE12: 562 | AF12: 649 | AG12: 695 | AH12: 855 | AI12: 879 | AJ12: 881 | AK12: 921 | AL12: 880 | AM12: 708 | AN12: 620 | AO12: 541 | AP12: 438 | AQ12: 451 | AR12: 272 | AS12: 95
A13: 12 | B13: CINCA MEDIO | C13: 8 | D13: =((SUM(E13:X13)))+0 -> 12471 | E13: 532 | F13: 627 | G13: 672 | H13: 709 | I13: 636 | J13: 686 | K13: 680 | L13: 836 | M13: 994 | N13: 1037 | O13: 1019 | P13: 948 | Q13: 811 | R13: 634 | S13: 516 | T13: 444 | U13: 301 | V13: 257 | W13: 107 | X13: 25 | Y13: =((SUM(Z13:AS13))+0)+0 -> 11892 | Z13: 465 | AA13: 587 | AB13: 600 | AC13: 583 | AD13: 612 | AE13: 634 | AF13: 622 | AG13: 703 | AH13: 817 | AI13: 957 | AJ13: 868 | AK13: 888 | AL13: 743 | AM13: 629 | AN13: 549 | AO13: 525 | AP13: 462 | AQ13: 382 | AR13: 188 | AS13: 78
A14: 13 | B14: LA LITERA/LA LLITERA | C14: 9 | D14: =((SUM(E14:X14)))+0 -> 9888 | E14: 338 | F14: 398 | G14: 523 | H14: 529 | I14: 568 | J14: 575 | K14: 532 | L14: 603 | M14: 834 | N14: 870 | O14: 771 | P14: 719 | Q14: 608 | R14: 516 | S14: 452 | T14: 391 | U14: 272 | V14: 251 | W14: 106 | X14: 32 | Y14: =((SUM(Z14:AS14))+0)+0 -> 8902 | Z14: 334 | AA14: 385 | AB14: 419 | AC14: 401 | AD14: 451 | AE14: 397 | AF14: 431 | AG14: 483 | AH14: 601 | AI14: 633 | AJ14: 637 | AK14: 648 | AL14: 566 | AM14: 511 | AN14: 484 | AO14: 477 | AP14: 363 | AQ14: 383 | AR14: 210 | AS14: 88
A15: 14 | B15: LOS MONEGROS | C15: 10 | D15: =((SUM(E15:X15)))+0 -> 9712 | E15: 322 | F15: 330 | G15: 342 | H15: 361 | I15: 423 | J15: 501 | K15: 538 | L15: 606 | M15: 744 | N15: 744 | O15: 751 | P15: 820 | Q15: 767 | R15: 647 | S15: 529 | T15: 473 | U15: 354 | V15: 302 | W15: 127 | X15: 31 | Y15: =((SUM(Z15:AS15))+0)+0 -> 8861 | Z15: 268 | AA15: 299 | AB15: 300 | AC15: 363 | AD15: 350 | AE15: 384 | AF15: 480 | AG15: 488 | AH15: 555 | AI15: 605 | AJ15: 619 | AK15: 681 | AL15: 654 | AM15: 579 | AN15: 535 | AO15: 528 | AP15: 401 | AQ15: 427 | AR15: 263 | AS15: 82
A16: 15 | B16: BAJO CINCA/BAIX CINCA | C16: 11 | D16: =((SUM(E16:X16)))+0 -> 12949 | E16: 537 | F16: 623 | G16: 615 | H16: 614 | I16: 727 | J16: 724 | K16: 815 | L16: 910 | M16: 1171 | N16: 1126 | O16: 1044 | P16: 955 | Q16: 774 | R16: 623 | S16: 511 | T16: 446 | U16: 331 | V16: 272 | W16: 105 | X16: 26 | Y16: =((SUM(Z16:AS16))+0)+0 -> 12009 | Z16: 508 | AA16: 603 | AB16: 598 | AC16: 576 | AD16: 610 | AE16: 620 | AF16: 716 | AG16: 756 | AH16: 876 | AI16: 887 | AJ16: 916 | AK16: 798 | AL16: 745 | AM16: 623 | AN16: 559 | AO16: 506 | AP16: 409 | AQ16: 421 | AR16: 211 | AS16: 71
A17: 16 | B17: TARAZONA Y EL MONCAYO | C17: 12 | D17: =((SUM(E17:X17)))+0 -> 7060 | E17: 223 | F17: 314 | G17: 383 | H17: 360 | I17: 366 | J17: 382 | K17: 371 | L17: 422 | M17: 501 | N17: 586 | O17: 555 | P17: 559 | Q17: 501 | R17: 415 | S17: 333 | T17: 319 | U17: 215 | V17: 183 | W17: 57 | X17: 15 | Y17: =((SUM(Z17:AS17))+0)+0 -> 6829 | Z17: 201 | AA17: 283 | AB17: 325 | AC17: 295 | AD17: 330 | AE17: 320 | AF17: 349 | AG17: 392 | AH17: 433 | AI17: 538 | AJ17: 515 | AK17: 494 | AL17: 478 | AM17: 376 | AN17: 366 | AO17: 384 | AP17: 271 | AQ17: 289 | AR17: 149 | AS17: 41
A18: 17 | B18: CAMPO DE BORJA | C18: 13 | D18: =((SUM(E18:X18)))+0 -> 7125 | E18: 226 | F18: 290 | G18: 338 | H18: 353 | I18: 342 | J18: 392 | K18: 365 | L18: 456 | M18: 516 | N18: 578 | O18: 591 | P18: 603 | Q18: 511 | R18: 408 | S18: 358 | T18: 329 | U18: 210 | V18: 178 | W18: 74 | X18: 7 | Y18: =((SUM(Z18:AS18))+0)+0 -> 6581 | Z18: 231 | AA18: 218 | AB18: 315 | AC18: 293 | AD18: 334 | AE18: 285 | AF18: 332 | AG18: 368 | AH18: 472 | AI18: 473 | AJ18: 483 | AK18: 501 | AL18: 487 | AM18: 350 | AN18: 382 | AO18: 324 | AP18: 292 | AQ18: 257 | AR18: 139 | AS18: 45
A19: 18 | B19: ARANDA | C19: 14 | D19: =((SUM(E19:X19)))+0 -> 3240 | E19: 48 | F19: 80 | G19: 110 | H19: 155 | I19: 167 | J19: 144 | K19: 137 | L19: 172 | M19: 216 | N19: 262 | O19: 298 | P19: 324 | Q19: 266 | R19: 236 | S19: 169 | T19: 179 | U19: 130 | V19: 105 | W19: 34 | X19: 8 | Y19: =((SUM(Z19:AS19))+0)+0 -> 2986 | Z19: 52 | AA19: 73 | AB19: 95 | AC19: 125 | AD19: 158 | AE19: 148 | AF19: 127 | AG19: 122 | AH19: 169 | AI19: 217 | AJ19: 277 | AK19: 276 | AL19: 220 | AM19: 215 | AN19: 156 | AO19: 177 | AP19: 165 | AQ19: 116 | AR19: 76 | AS19: 22
A20: 19 | B20: RIBERA ALTA DEL EBRO | C20: 15 | D20: =((SUM(E20:X20)))+0 -> 14020 | E20: 517 | F20: 661 | G20: 797 | H20: 723 | I20: 646 | J20: 724 | K20: 835 | L20: 980 | M20: 1170 | N20: 1230 | O20: 1233 | P20: 1041 | Q20: 966 | R20: 760 | S20: 603 | T20: 445 | U20: 305 | V20: 258 | W20: 105 | X20: 21 | Y20: =((SUM(Z20:AS20))+0)+0 -> 13615 | Z20: 467 | AA20: 644 | AB20: 743 | AC20: 627 | AD20: 590 | AE20: 648 | AF20: 777 | AG20: 912 | AH20: 1164 | AI20: 1121 | AJ20: 971 | AK20: 965 | AL20: 954 | AM20: 696 | AN20: 608 | AO20: 534 | AP20: 423 | AQ20: 458 | AR20: 231 | AS20: 82
A21: 20 | B21: VALDEJALÓN | C21: 16 | D21: =((SUM(E21:X21)))+0 -> 15626 | E21: 674 | F21: 803 | G21: 852 | H21: 799 | I21: 807 | J21: 786 | K21: 978 | L21: 1077 | M21: 1421 | N21: 1488 | O21: 1367 | P21: 1136 | Q21: 922 | R21: 698 | S21: 565 | T21: 487 | U21: 344 | V21: 290 | W21: 112 | X21: 20 | Y21: =((SUM(Z21:AS21))+0)+0 -> 14235 | Z21: 694 | AA21: 734 | AB21: 808 | AC21: 695 | AD21: 701 | AE21: 751 | AF21: 851 | AG21: 962 | AH21: 1228 | AI21: 1166 | AJ21: 1078 | AK21: 932 | AL21: 791 | AM21: 657 | AN21: 548 | AO21: 526 | AP21: 421 | AQ21: 394 | AR21: 224 | AS21: 74
A22: 21 | B22: CENTRAL | C22: 17 | D22: =((SUM(E22:X22)))+0 -> 364678 | E22: 15187 | F22: 18842 | G22: 20774 | H22: 19993 | I22: 19066 | J22: 18992 | K22: 20105 | L22: 23572 | M22: 29617 | N22: 32479 | O22: 28888 | P22: 26767 | Q22: 23448 | R22: 19243 | S22: 16663 | T22: 13640 | U22: 8342 | V22: 6119 | W22: 2415 | X22: 526 | Y22: =((SUM(Z22:AS22))+0)+0 -> 392617 | Z22: 14195 | AA22: 17922 | AB22: 19551 | AC22: 18853 | AD22: 17936 | AE22: 18826 | AF22: 20527 | AG22: 24291 | AH22: 30562 | AI22: 32396 | AJ22: 30132 | AK22: 28077 | AL22: 26062 | AM22: 22815 | AN22: 20777 | AO22: 18019 | AP22: 12461 | AQ22: 11371 | AR22: 5902 | AS22: 1942
A23: 22 | B23: RIBERA BAJA DEL EBRO | C23: 18 | D23: =((SUM(E23:X23)))+0 -> 4355 | E23: 144 | F23: 183 | G23: 191 | H23: 206 | I23: 197 | J23: 239 | K23: 234 | L23: 284 | M23: 287 | N23: 312 | O23: 333 | P23: 357 | Q23: 342 | R23: 308 | S23: 234 | T23: 204 | U23: 128 | V23: 114 | W23: 50 | X23: 8 | Y23: =((SUM(Z23:AS23))+0)+0 -> 4162 | Z23: 134 | AA23: 172 | AB23: 183 | AC23: 169 | AD23: 191 | AE23: 199 | AF23: 206 | AG23: 238 | AH23: 274 | AI23: 261 | AJ23: 304 | AK23: 321 | AL23: 318 | AM23: 285 | AN23: 218 | AO23: 197 | AP23: 192 | AQ23: 181 | AR23: 86 | AS23: 33
A24: 23 | B24: BAJO ARAGÓN-CASPE/BAIX ARAGÓ-CASP | C24: 19 | D24: =((SUM(E24:X24)))+0 -> 8179 | E24: 332 | F24: 402 | G24: 410 | H24: 412 | I24: 490 | J24: 490 | K24: 468 | L24: 569 | M24: 689 | N24: 699 | O24: 645 | P24: 551 | Q24: 494 | R24: 428 | S24: 357 | T24: 290 | U24: 214 | V24: 159 | W24: 64 | X24: 16 | Y24: =((SUM(Z24:AS24))+0)+0 -> 7149 | Z24: 325 | AA24: 357 | AB24: 352 | AC24: 364 | AD24: 358 | AE24: 329 | AF24: 382 | AG24: 438 | AH24: 507 | AI24: 543 | AJ24: 474 | AK24: 462 | AL24: 460 | AM24: 395 | AN24: 416 | AO24: 318 | AP24: 242 | AQ24: 246 | AR24: 138 | AS24: 43
A25: 24 | B25: COMUNIDAD DE CALATAYUD | C25: 20 | D25: =((SUM(E25:X25)))+0 -> 18542 | E25: 481 | F25: 645 | G25: 878 | H25: 859 | I25: 950 | J25: 937 | K25: 1153 | L25: 1032 | M25: 1299 | N25: 1492 | O25: 1666 | P25: 1484 | Q25: 1310 | R25: 1077 | S25: 920 | T25: 817 | U25: 642 | V25: 554 | W25: 277 | X25: 69 | Y25: =((SUM(Z25:AS25))+0)+0 -> 17591 | Z25: 486 | AA25: 578 | AB25: 732 | AC25: 780 | AD25: 816 | AE25: 823 | AF25: 861 | AG25: 953 | AH25: 1174 | AI25: 1284 | AJ25: 1427 | AK25: 1336 | AL25: 1243 | AM25: 956 | AN25: 995 | AO25: 977 | AP25: 771 | AQ25: 786 | AR25: 467 | AS25: 146
A26: 25 | B26: CAMPO DE CARIÑENA | C26: 21 | D26: =((SUM(E26:X26)))+0 -> 5298 | E26: 153 | F26: 179 | G26: 210 | H26: 207 | I26: 275 | J26: 281 | K26: 336 | L26: 333 | M26: 419 | N26: 450 | O26: 505 | P26: 443 | Q26: 400 | R26: 306 | S26: 253 | T26: 206 | U26: 141 | V26: 115 | W26: 75 | X26: 11 | Y26: =((SUM(Z26:AS26))+0)+0 -> 4748 | Z26: 157 | AA26: 209 | AB26: 236 | AC26: 216 | AD26: 202 | AE26: 253 | AF26: 252 | AG26: 265 | AH26: 316 | AI26: 336 | AJ26: 360 | AK26: 356 | AL26: 350 | AM26: 286 | AN26: 213 | AO26: 225 | AP26: 196 | AQ26: 170 | AR26: 116 | AS26: 34
A27: 26 | B27: CAMPO DE BELCHITE | C27: 22 | D27: =((SUM(E27:X27)))+0 -> 2423 | E27: 48 | F27: 38 | G27: 65 | H27: 96 | I27: 108 | J27: 103 | K27: 111 | L27: 117 | M27: 147 | N27: 199 | O27: 208 | P27: 238 | Q27: 211 | R27: 155 | S27: 165 | T27: 152 | U27: 97 | V27: 110 | W27: 37 | X27: 18 | Y27: =((SUM(Z27:AS27))+0)+0 -> 2138 | Z27: 40 | AA27: 56 | AB27: 54 | AC27: 82 | AD27: 101 | AE27: 87 | AF27: 85 | AG27: 84 | AH27: 106 | AI27: 136 | AJ27: 167 | AK27: 163 | AL27: 141 | AM27: 164 | AN27: 149 | AO27: 153 | AP27: 130 | AQ27: 135 | AR27: 79 | AS27: 26
A28: 27 | B28: BAJO MARTÍN | C28: 23 | D28: =((SUM(E28:X28)))+0 -> 3224 | E28: 107 | F28: 120 | G28: 129 | H28: 141 | I28: 161 | J28: 183 | K28: 186 | L28: 157 | M28: 199 | N28: 248 | O28: 233 | P28: 276 | Q28: 289 | R28: 194 | S28: 171 | T28: 145 | U28: 118 | V28: 111 | W28: 45 | X28: 11 | Y28: =((SUM(Z28:AS28))+0)+0 -> 3046 | Z28: 94 | AA28: 116 | AB28: 139 | AC28: 125 | AD28: 135 | AE28: 148 | AF28: 145 | AG28: 139 | AH28: 176 | AI28: 180 | AJ28: 214 | AK28: 228 | AL28: 238 | AM28: 169 | AN28: 184 | AO28: 183 | AP28: 152 | AQ28: 166 | AR28: 86 | AS28: 29
A29: 28 | B29: CAMPO DE DAROCA | C29: 24 | D29: =((SUM(E29:X29)))+0 -> 2927 | E29: 66 | F29: 83 | G29: 92 | H29: 84 | I29: 112 | J29: 140 | K29: 174 | L29: 149 | M29: 200 | N29: 211 | O29: 273 | P29: 251 | Q29: 233 | R29: 213 | S29: 171 | T29: 159 | U29: 131 | V29: 115 | W29: 56 | X29: 14 | Y29: =((SUM(Z29:AS29))+0)+0 -> 2524 | Z29: 65 | AA29: 72 | AB29: 61 | AC29: 85 | AD29: 112 | AE29: 111 | AF29: 113 | AG29: 135 | AH29: 123 | AI29: 173 | AJ29: 193 | AK29: 180 | AL29: 194 | AM29: 141 | AN29: 167 | AO29: 163 | AP29: 149 | AQ29: 161 | AR29: 95 | AS29: 31
A30: 29 | B30: JILOCA | C30: 25 | D30: =((SUM(E30:X30)))+0 -> 6480 | E30: 221 | F30: 240 | G30: 303 | H30: 260 | I30: 298 | J30: 321 | K30: 350 | L30: 374 | M30: 467 | N30: 464 | O30: 500 | P30: 557 | Q30: 497 | R30: 373 | S30: 369 | T30: 290 | U30: 235 | V30: 218 | W30: 118 | X30: 25 | Y30: =((SUM(Z30:AS30))+0)+0 -> 5910 | Z30: 215 | AA30: 227 | AB30: 261 | AC30: 253 | AD30: 313 | AE30: 292 | AF30: 340 | AG30: 309 | AH30: 357 | AI30: 379 | AJ30: 436 | AK30: 422 | AL30: 367 | AM30: 330 | AN30: 300 | AO30: 315 | AP30: 264 | AQ30: 295 | AR30: 181 | AS30: 54
A31: 30 | B31: CUENCAS MINERAS | C31: 26 | D31: =((SUM(E31:X31)))+0 -> 4145 | E31: 116 | F31: 136 | G31: 157 | H31: 162 | I31: 198 | J31: 212 | K31: 252 | L31: 285 | M31: 279 | N31: 303 | O31: 297 | P31: 386 | Q31: 354 | R31: 324 | S31: 210 | T31: 182 | U31: 112 | V31: 124 | W31: 46 | X31: 10 | Y31: =((SUM(Z31:AS31))+0)+0 -> 3655 | Z31: 132 | AA31: 142 | AB31: 153 | AC31: 145 | AD31: 156 | AE31: 196 | AF31: 215 | AG31: 214 | AH31: 213 | AI31: 199 | AJ31: 253 | AK31: 325 | AL31: 267 | AM31: 231 | AN31: 214 | AO31: 162 | AP31: 132 | AQ31: 185 | AR31: 92 | AS31: 29
A32: 31 | B32: ANDORRA-SIERRA DE ARCOS | C32: 27 | D32: =((SUM(E32:X32)))+0 -> 4841 | E32: 143 | F32: 192 | G32: 198 | H32: 210 | I32: 241 | J32: 245 | K32: 268 | L32: 295 | M32: 372 | N32: 335 | O32: 364 | P32: 412 | Q32: 462 | R32: 350 | S32: 234 | T32: 177 | U32: 133 | V32: 110 | W32: 87 | X32: 13 | Y32: =((SUM(Z32:AS32))+0)+0 -> 4706 | Z32: 128 | AA32: 204 | AB32: 206 | AC32: 199 | AD32: 237 | AE32: 220 | AF32: 239 | AG32: 253 | AH32: 312 | AI32: 311 | AJ32: 365 | AK32: 423 | AL32: 393 | AM32: 285 | AN32: 220 | AO32: 204 | AP32: 154 | AQ32: 216 | AR32: 102 | AS32: 35
A33: 32 | B33: BAJO ARAGÓN | C33: 28 | D33: =((SUM(E33:X33)))+0 -> 14470 | E33: 576 | F33: 752 | G33: 800 | H33: 762 | I33: 793 | J33: 687 | K33: 733 | L33: 905 | M33: 1135 | N33: 1195 | O33: 1099 | P33: 1135 | Q33: 1000 | R33: 813 | S33: 669 | T33: 519 | U33: 375 | V33: 310 | W33: 169 | X33: 43 | Y33: =((SUM(Z33:AS33))+0)+0 -> 14237 | Z33: 601 | AA33: 687 | AB33: 781 | AC33: 724 | AD33: 666 | AE33: 660 | AF33: 772 | AG33: 814 | AH33: 1034 | AI33: 1013 | AJ33: 1118 | AK33: 1021 | AL33: 950 | AM33: 765 | AN33: 698 | AO33: 600 | AP33: 469 | AQ33: 490 | AR33: 285 | AS33: 89
A34: 33 | B34: COMUNIDAD DE TERUEL | C34: 29 | D34: =((SUM(E34:X34)))+0 -> 22529 | E34: 922 | F34: 1123 | G34: 1142 | H34: 1180 | I34: 1191 | J34: 1256 | K34: 1288 | L34: 1445 | M34: 1698 | N34: 1714 | O34: 1674 | P34: 1752 | Q34: 1661 | R34: 1296 | S34: 954 | T34: 828 | U34: 503 | V34: 539 | W34: 290 | X34: 73 | Y34: =((SUM(Z34:AS34))+0)+0 -> 23628 | Z34: 896 | AA34: 998 | AB34: 1167 | AC34: 1081 | AD34: 1168 | AE34: 1179 | AF34: 1237 | AG34: 1427 | AH34: 1676 | AI34: 1765 | AJ34: 1797 | AK34: 1768 | AL34: 1678 | AM34: 1294 | AN34: 1086 | AO34: 990 | AP34: 832 | AQ34: 902 | AR34: 508 | AS34: 179
A35: 34 | B35: MAESTRAZGO | C35: 30 | D35: =((SUM(E35:X35)))+0 -> 1677 | E35: 49 | F35: 57 | G35: 73 | H35: 61 | I35: 77 | J35: 73 | K35: 101 | L35: 106 | M35: 97 | N35: 130 | O35: 139 | P35: 135 | Q35: 141 | R35: 104 | S35: 109 | T35: 64 | U35: 66 | V35: 62 | W35: 29 | X35: 4 | Y35: =((SUM(Z35:AS35))+0)+0 -> 1464 | Z35: 42 | AA35: 50 | AB35: 58 | AC35: 50 | AD35: 57 | AE35: 79 | AF35: 74 | AG35: 81 | AH35: 89 | AI35: 91 | AJ35: 92 | AK35: 121 | AL35: 118 | AM35: 99 | AN35: 91 | AO35: 64 | AP35: 66 | AQ35: 86 | AR35: 39 | AS35: 17
A36: 35 | B36: SIERRA DE ALBARRACÍN | C36: 31 | D36: =((SUM(E36:X36)))+0 -> 2453 | E36: 47 | F36: 60 | G36: 78 | H36: 73 | I36: 103 | J36: 123 | K36: 154 | L36: 153 | M36: 172 | N36: 185 | O36: 191 | P36: 244 | Q36: 224 | R36: 158 | S36: 131 | T36: 110 | U36: 95 | V36: 85 | W36: 58 | X36: 9 | Y36: =((SUM(Z36:AS36))+0)+0 -> 1972 | Z36: 44 | AA36: 51 | AB36: 63 | AC36: 67 | AD36: 82 | AE36: 105 | AF36: 115 | AG36: 103 | AH36: 99 | AI36: 133 | AJ36: 148 | AK36: 158 | AL36: 169 | AM36: 108 | AN36: 108 | AO36: 105 | AP36: 117 | AQ36: 113 | AR36: 66 | AS36: 18
A37: 36 | B37: GÚDAR-JAVALAMBRE | C37: 32 | D37: =((SUM(E37:X37)))+0 -> 4104 | E37: 145 | F37: 169 | G37: 183 | H37: 166 | I37: 192 | J37: 220 | K37: 238 | L37: 274 | M37: 330 | N37: 319 | O37: 312 | P37: 352 | Q37: 320 | R37: 208 | S37: 213 | T37: 142 | U37: 126 | V37: 121 | W37: 61 | X37: 13 | Y37: =((SUM(Z37:AS37))+0)+0 -> 3574 | Z37: 156 | AA37: 174 | AB37: 166 | AC37: 157 | AD37: 160 | AE37: 226 | AF37: 214 | AG37: 216 | AH37: 229 | AI37: 243 | AJ37: 278 | AK37: 254 | AL37: 245 | AM37: 187 | AN37: 142 | AO37: 168 | AP37: 132 | AQ37: 129 | AR37: 80 | AS37: 18
A38: 37 | B38: MATARRAÑA/MATARRANYA | C38: 33 | D38: =((SUM(E38:X38)))+0 -> 4284 | E38: 167 | F38: 170 | G38: 171 | H38: 168 | I38: 192 | J38: 201 | K38: 236 | L38: 267 | M38: 302 | N38: 317 | O38: 300 | P38: 341 | Q38: 327 | R38: 306 | S38: 260 | T38: 208 | U38: 151 | V38: 116 | W38: 63 | X38: 21 | Y38: =((SUM(Z38:AS38))+0)+0 -> 4022 | Z38: 128 | AA38: 183 | AB38: 201 | AC38: 147 | AD38: 173 | AE38: 184 | AF38: 203 | AG38: 206 | AH38: 259 | AI38: 241 | AJ38: 284 | AK38: 309 | AL38: 289 | AM38: 278 | AN38: 246 | AO38: 186 | AP38: 182 | AQ38: 197 | AR38: 96 | AS38: 30
A39: 38 | B39: 22001 Abiego | C39: 22001 | D39: =((SUM(E39:X39)))+0 -> 139 | E39: 4 | F39: 4 | G39: 4 | H39: 5 | I39: 5 | J39: 5 | K39: 8 | L39: 7 | M39: 7 | N39: 17 | O39: 15 | P39: 16 | Q39: 10 | R39: 6 | S39: 8 | T39: 7 | U39: 3 | V39: 6 | W39: 2 | X39: 0 | Y39: =((SUM(Z39:AS39))+0)+0 -> 139 | Z39: 6 | AA39: 4 | AB39: 6 | AC39: 3 | AD39: 6 | AE39: 8 | AF39: 8 | AG39: 13 | AH39: 8 | AI39: 8 | AJ39: 5 | AK39: 14 | AL39: 8 | AM39: 10 | AN39: 4 | AO39: 8 | AP39: 5 | AQ39: 3 | AR39: 10 | AS39: 2
A40: 39 | B40: 22002 Abizanda | C40: 22002 | D40: =((SUM(E40:X40)))+0 -> 76 | E40: 3 | F40: 3 | G40: 3 | H40: 0 | I40: 0 | J40: 0 | K40: 3 | L40: 8 | M40: 9 | N40: 3 | O40: 8 | P40: 10 | Q40: 5 | R40: 2 | S40: 4 | T40: 7 | U40: 3 | V40: 5 | W40: 0 | X40: 0 | Y40: =((SUM(Z40:AS40))+0)+0 -> 75 | Z40: 2 | AA40: 4 | AB40: 3 | AC40: 2 | AD40: 3 | AE40: 4 | AF40: 5 | AG40: 6 | AH40: 8 | AI40: 4 | AJ40: 6 | AK40: 3 | AL40: 6 | AM40: 4 | AN40: 8 | AO40: 1 | AP40: 4 | AQ40: 2 | AR40: 0 | AS40: 0
A41: 40 | B41: 22003 Adahuesca | C41: 22003 | D41: =((SUM(E41:X41)))+0 -> 117 | E41: 9 | F41: 11 | G41: 4 | H41: 4 | I41: 4 | J41: 6 | K41: 4 | L41: 6 | M41: 15 | N41: 8 | O41: 9 | P41: 3 | Q41: 7 | R41: 4 | S41: 6 | T41: 6 | U41: 2 | V41: 6 | W41: 3 | X41: 0 | Y41: =((SUM(Z41:AS41))+0)+0 -> 87 | Z41: 3 | AA41: 6 | AB41: 0 | AC41: 1 | AD41: 6 | AE41: 7 | AF41: 2 | AG41: 8 | AH41: 9 | AI41: 7 | AJ41: 5 | AK41: 5 | AL41: 5 | AM41: 6 | AN41: 6 | AO41: 1 | AP41: 6 | AQ41: 2 | AR41: 2 | AS41: 0
A42: 41 | B42: 22004 Agüero | C42: 22004 | D42: =((SUM(E42:X42)))+0 -> 80 | E42: 3 | F42: 1 | G42: 1 | H42: 1 | I42: 3 | J42: 5 | K42: 1 | L42: 6 | M42: 5 | N42: 5 | O42: 5 | P42: 10 | Q42: 7 | R42: 7 | S42: 6 | T42: 7 | U42: 2 | V42: 2 | W42: 2 | X42: 1 | Y42: =((SUM(Z42:AS42))+0)+0 -> 65 | Z42: 1 | AA42: 2 | AB42: 1 | AC42: 0 | AD42: 1 | AE42: 5 | AF42: 3 | AG42: 3 | AH42: 3 | AI42: 1 | AJ42: 3 | AK42: 7 | AL42: 7 | AM42: 2 | AN42: 5 | AO42: 5 | AP42: 2 | AQ42: 6 | AR42: 6 | AS42: 2
A43: 42 | B43: 22006 Aísa | C43: 22006 | D43: =((SUM(E43:X43)))+0 -> 184 | E43: 0 | F43: 2 | G43: 3 | H43: 3 | I43: 4 | J43: 12 | K43: 13 | L43: 8 | M43: 25 | N43: 24 | O43: 13 | P43: 8 | Q43: 17 | R43: 20 | S43: 14 | T43: 7 | U43: 7 | V43: 3 | W43: 0 | X43: 1 | Y43: =((SUM(Z43:AS43))+0)+0 -> 155 | Z43: 3 | AA43: 5 | AB43: 6 | AC43: 11 | AD43: 10 | AE43: 5 | AF43: 9 | AG43: 7 | AH43: 8 | AI43: 12 | AJ43: 12 | AK43: 8 | AL43: 27 | AM43: 12 | AN43: 4 | AO43: 8 | AP43: 2 | AQ43: 3 | AR43: 2 | AS43: 1
A44: 43 | B44: 22007 Albalate de Cinca | C44: 22007 | D44: =((SUM(E44:X44)))+0 -> 616 | E44: 31 | F44: 26 | G44: 18 | H44: 30 | I44: 28 | J44: 36 | K44: 31 | L44: 51 | M44: 41 | N44: 43 | O44: 61 | P44: 44 | Q44: 52 | R44: 32 | S44: 31 | T44: 19 | U44: 23 | V44: 14 | W44: 4 | X44: 1 | Y44: =((SUM(Z44:AS44))+0)+0 -> 509 | Z44: 14 | AA44: 22 | AB44: 21 | AC44: 14 | AD44: 23 | AE44: 30 | AF44: 30 | AG44: 28 | AH44: 28 | AI44: 51 | AJ44: 39 | AK44: 35 | AL44: 36 | AM44: 32 | AN44: 22 | AO44: 32 | AP44: 20 | AQ44: 19 | AR44: 8 | AS44: 5
A45: 44 | B45: 22008 Albalatillo | C45: 22008 | D45: =((SUM(E45:X45)))+0 -> 110 | E45: 2 | F45: 4 | G45: 2 | H45: 3 | I45: 4 | J45: 7 | K45: 6 | L45: 8 | M45: 9 | N45: 9 | O45: 11 | P45: 4 | Q45: 7 | R45: 6 | S45: 9 | T45: 9 | U45: 5 | V45: 2 | W45: 3 | X45: 0 | Y45: =((SUM(Z45:AS45))+0)+0 -> 94 | Z45: 4 | AA45: 3 | AB45: 2 | AC45: 2 | AD45: 4 | AE45: 10 | AF45: 3 | AG45: 2 | AH45: 7 | AI45: 9 | AJ45: 7 | AK45: 1 | AL45: 6 | AM45: 10 | AN45: 3 | AO45: 8 | AP45: 3 | AQ45: 3 | AR45: 4 | AS45: 3
A46: 45 | B46: 22009 Albelda | C46: 22009 | D46: =((SUM(E46:X46)))+0 -> 356 | E46: 10 | F46: 9 | G46: 12 | H46: 19 | I46: 15 | J46: 9 | K46: 14 | L46: 20 | M46: 17 | N46: 27 | O46: 30 | P46: 31 | Q46: 27 | R46: 26 | S46: 24 | T46: 25 | U46: 15 | V46: 21 | W46: 4 | X46: 1 | Y46: =((SUM(Z46:AS46))+0)+0 -> 338 | Z46: 10 | AA46: 14 | AB46: 12 | AC46: 16 | AD46: 10 | AE46: 9 | AF46: 15 | AG46: 14 | AH46: 15 | AI46: 23 | AJ46: 28 | AK46: 19 | AL46: 26 | AM46: 24 | AN46: 22 | AO46: 24 | AP46: 21 | AQ46: 21 | AR46: 10 | AS46: 5
A47: 46 | B47: 22011 Albero Alto | C47: 22011 | D47: =((SUM(E47:X47)))+0 -> 66 | E47: 2 | F47: 3 | G47: 3 | H47: 3 | I47: 4 | J47: 5 | K47: 3 | L47: 4 | M47: 4 | N47: 4 | O47: 5 | P47: 7 | Q47: 2 | R47: 5 | S47: 5 | T47: 0 | U47: 3 | V47: 3 | W47: 1 | X47: 0 | Y47: =((SUM(Z47:AS47))+0)+0 -> 51 | Z47: 5 | AA47: 1 | AB47: 0 | AC47: 4 | AD47: 2 | AE47: 1 | AF47: 3 | AG47: 4 | AH47: 0 | AI47: 2 | AJ47: 6 | AK47: 5 | AL47: 4 | AM47: 3 | AN47: 3 | AO47: 3 | AP47: 1 | AQ47: 2 | AR47: 2 | AS47: 0
A48: 47 | B48: 22012 Albero Bajo | C48: 22012 | D48: =((SUM(E48:X48)))+0 -> 71 | E48: 3 | F48: 3 | G48: 5 | H48: 4 | I48: 0 | J48: 2 | K48: 2 | L48: 3 | M48: 4 | N48: 7 | O48: 7 | P48: 6 | Q48: 5 | R48: 8 | S48: 4 | T48: 3 | U48: 4 | V48: 1 | W48: 0 | X48: 0 | Y48: =((SUM(Z48:AS48))+0)+0 -> 63 | Z48: 4 | AA48: 2 | AB48: 2 | AC48: 4 | AD48: 5 | AE48: 0 | AF48: 5 | AG48: 4 | AH48: 5 | AI48: 8 | AJ48: 3 | AK48: 2 | AL48: 5 | AM48: 4 | AN48: 2 | AO48: 3 | AP48: 1 | AQ48: 3 | AR48: 1 | AS48: 0
A49: 48 | B49: 22013 Alberuela de Tubo | C49: 22013 | D49: =((SUM(E49:X49)))+0 -> 155 | E49: 4 | F49: 6 | G49: 2 | H49: 2 | I49: 5 | J49: 11 | K49: 14 | L49: 10 | M49: 11 | N49: 7 | O49: 11 | P49: 9 | Q49: 16 | R49: 12 | S49: 18 | T49: 7 | U49: 4 | V49: 2 | W49: 4 | X49: 0 | Y49: =((SUM(Z49:AS49))+0)+0 -> 150 | Z49: 5 | AA49: 4 | AB49: 1 | AC49: 2 | AD49: 5 | AE49: 10 | AF49: 9 | AG49: 8 | AH49: 10 | AI49: 6 | AJ49: 9 | AK49: 14 | AL49: 13 | AM49: 12 | AN49: 13 | AO49: 8 | AP49: 2 | AQ49: 9 | AR49: 6 | AS49: 4
A50: 49 | B50: 22014 Alcalá de Gurrea | C50: 22014 | D50: =((SUM(E50:X50)))+0 -> 121 | E50: 0 | F50: 2 | G50: 0 | H50: 3 | I50: 4 | J50: 1 | K50: 4 | L50: 10 | M50: 6 | N50: 13 | O50: 6 | P50: 12 | Q50: 13 | R50: 8 | S50: 7 | T50: 12 | U50: 5 | V50: 9 | W50: 3 | X50: 3 | Y50: =((SUM(Z50:AS50))+0)+0 -> 109 | Z50: 1 | AA50: 2 | AB50: 0 | AC50: 2 | AD50: 5 | AE50: 3 | AF50: 1 | AG50: 6 | AH50: 4 | AI50: 8 | AJ50: 8 | AK50: 7 | AL50: 10 | AM50: 9 | AN50: 9 | AO50: 8 | AP50: 8 | AQ50: 12 | AR50: 4 | AS50: 2
A51: 50 | B51: 22015 Alcalá del Obispo | C51: 22015 | D51: =((SUM(E51:X51)))+0 -> 212 | E51: 8 | F51: 6 | G51: 4 | H51: 8 | I51: 5 | J51: 7 | K51: 12 | L51: 8 | M51: 18 | N51: 20 | O51: 19 | P51: 18 | Q51: 10 | R51: 18 | S51: 19 | T51: 12 | U51: 9 | V51: 8 | W51: 2 | X51: 1 | Y51: =((SUM(Z51:AS51))+0)+0 -> 162 | Z51: 4 | AA51: 2 | AB51: 5 | AC51: 5 | AD51: 11 | AE51: 7 | AF51: 3 | AG51: 9 | AH51: 7 | AI51: 16 | AJ51: 12 | AK51: 6 | AL51: 14 | AM51: 13 | AN51: 17 | AO51: 13 | AP51: 7 | AQ51: 7 | AR51: 4 | AS51: 0
A52: 51 | B52: 22016 Alcampell | C52: 22016 | D52: =((SUM(E52:X52)))+0 -> 295 | E52: 7 | F52: 4 | G52: 13 | H52: 7 | I52: 4 | J52: 15 | K52: 17 | L52: 7 | M52: 15 | N52: 30 | O52: 24 | P52: 14 | Q52: 22 | R52: 29 | S52: 23 | T52: 22 | U52: 19 | V52: 11 | W52: 8 | X52: 4 | Y52: =((SUM(Z52:AS52))+0)+0 -> 328 | Z52: 6 | AA52: 9 | AB52: 9 | AC52: 12 | AD52: 11 | AE52: 12 | AF52: 8 | AG52: 13 | AH52: 15 | AI52: 20 | AJ52: 22 | AK52: 16 | AL52: 29 | AM52: 22 | AN52: 31 | AO52: 25 | AP52: 21 | AQ52: 22 | AR52: 16 | AS52: 9
A53: 52 | B53: 22017 Alcolea de Cinca | C53: 22017 | D53: =((SUM(E53:X53)))+0 -> 627 | E53: 29 | F53: 18 | G53: 33 | H53: 24 | I53: 29 | J53: 36 | K53: 33 | L53: 53 | M53: 53 | N53: 56 | O53: 41 | P53: 42 | Q53: 42 | R53: 33 | S53: 34 | T53: 23 | U53: 18 | V53: 18 | W53: 11 | X53: 1 | Y53: =((SUM(Z53:AS53))+0)+0 -> 533 | Z53: 18 | AA53: 18 | AB53: 23 | AC53: 19 | AD53: 27 | AE53: 38 | AF53: 22 | AG53: 27 | AH53: 41 | AI53: 47 | AJ53: 38 | AK53: 41 | AL53: 28 | AM53: 34 | AN53: 26 | AO53: 28 | AP53: 30 | AQ53: 18 | AR53: 7 | AS53: 3
A54: 53 | B54: 22018 Alcubierre | C54: 22018 | D54: =((SUM(E54:X54)))+0 -> 217 | E54: 9 | F54: 6 | G54: 7 | H54: 5 | I54: 4 | J54: 10 | K54: 8 | L54: 11 | M54: 20 | N54: 21 | O54: 20 | P54: 17 | Q54: 20 | R54: 9 | S54: 14 | T54: 11 | U54: 9 | V54: 11 | W54: 5 | X54: 0 | Y54: =((SUM(Z54:AS54))+0)+0 -> 182 | Z54: 3 | AA54: 4 | AB54: 3 | AC54: 9 | AD54: 7 | AE54: 9 | AF54: 13 | AG54: 8 | AH54: 4 | AI54: 9 | AJ54: 15 | AK54: 9 | AL54: 10 | AM54: 12 | AN54: 8 | AO54: 17 | AP54: 13 | AQ54: 13 | AR54: 9 | AS54: 7
A55: 54 | B55: 22019 Alerre | C55: 22019 | D55: =((SUM(E55:X55)))+0 -> 115 | E55: 4 | F55: 4 | G55: 1 | H55: 7 | I55: 7 | J55: 3 | K55: 2 | L55: 8 | M55: 8 | N55: 7 | O55: 11 | P55: 10 | Q55: 7 | R55: 10 | S55: 13 | T55: 7 | U55: 4 | V55: 2 | W55: 0 | X55: 0 | Y55: =((SUM(Z55:AS55))+0)+0 -> 98 | Z55: 8 | AA55: 2 | AB55: 0 | AC55: 3 | AD55: 3 | AE55: 3 | AF55: 10 | AG55: 5 | AH55: 6 | AI55: 4 | AJ55: 6 | AK55: 6 | AL55: 12 | AM55: 8 | AN55: 7 | AO55: 9 | AP55: 2 | AQ55: 3 | AR55: 1 | AS55: 0
A56: 55 | B56: 22020 Alfántega | C56: 22020 | D56: =((SUM(E56:X56)))+0 -> 67 | E56: 1 | F56: 1 | G56: 1 | H56: 1 | I56: 3 | J56: 7 | K56: 6 | L56: 4 | M56: 5 | N56: 9 | O56: 2 | P56: 7 | Q56: 0 | R56: 4 | S56: 5 | T56: 4 | U56: 3 | V56: 3 | W56: 1 | X56: 0 | Y56: =((SUM(Z56:AS56))+0)+0 -> 57 | Z56: 0 | AA56: 4 | AB56: 0 | AC56: 1 | AD56: 1 | AE56: 2 | AF56: 3 | AG56: 2 | AH56: 5 | AI56: 3 | AJ56: 3 | AK56: 3 | AL56: 5 | AM56: 4 | AN56: 7 | AO56: 6 | AP56: 4 | AQ56: 2 | AR56: 2 | AS56: 0
A57: 56 | B57: 22021 Almudévar | C57: 22021 | D57: =((SUM(E57:X57)))+0 -> 1217 | E57: 42 | F57: 62 | G57: 59 | H57: 68 | I57: 46 | J57: 49 | K57: 55 | L57: 76 | M57: 109 | N57: 93 | O57: 106 | P57: 97 | Q57: 74 | R57: 63 | S57: 64 | T57: 61 | U57: 46 | V57: 29 | W57: 14 | X57: 4 | Y57: =((SUM(Z57:AS57))+0)+0 -> 1177 | Z57: 52 | AA57: 53 | AB57: 59 | AC57: 56 | AD57: 53 | AE57: 48 | AF57: 59 | AG57: 63 | AH57: 100 | AI57: 79 | AJ57: 72 | AK57: 84 | AL57: 73 | AM57: 62 | AN57: 57 | AO57: 62 | AP57: 51 | AQ57: 59 | AR57: 23 | AS57: 12
A58: 57 | B58: 22022 Almunia de San Juan | C58: 22022 | D58: =((SUM(E58:X58)))+0 -> 367 | E58: 10 | F58: 16 | G58: 16 | H58: 13 | I58: 16 | J58: 15 | K58: 17 | L58: 25 | M58: 31 | N58: 29 | O58: 36 | P58: 27 | Q58: 23 | R58: 26 | S58: 22 | T58: 14 | U58: 9 | V58: 14 | W58: 5 | X58: 3 | Y58: =((SUM(Z58:AS58))+0)+0 -> 340 | Z58: 14 | AA58: 15 | AB58: 11 | AC58: 24 | AD58: 15 | AE58: 16 | AF58: 16 | AG58: 21 | AH58: 29 | AI58: 16 | AJ58: 21 | AK58: 25 | AL58: 27 | AM58: 22 | AN58: 21 | AO58: 6 | AP58: 16 | AQ58: 13 | AR58: 7 | AS58: 5
A59: 58 | B59: 22023 Almuniente | C59: 22023 | D59: =((SUM(E59:X59)))+0 -> 236 | E59: 6 | F59: 7 | G59: 11 | H59: 8 | I59: 5 | J59: 7 | K59: 6 | L59: 16 | M59: 24 | N59: 24 | O59: 22 | P59: 9 | Q59: 18 | R59: 15 | S59: 21 | T59: 19 | U59: 7 | V59: 7 | W59: 3 | X59: 1 | Y59: =((SUM(Z59:AS59))+0)+0 -> 217 | Z59: 1 | AA59: 7 | AB59: 12 | AC59: 8 | AD59: 9 | AE59: 7 | AF59: 14 | AG59: 12 | AH59: 18 | AI59: 11 | AJ59: 10 | AK59: 13 | AL59: 23 | AM59: 15 | AN59: 20 | AO59: 15 | AP59: 7 | AQ59: 8 | AR59: 4 | AS59: 3
A60: 59 | B60: 22024 Alquézar | C60: 22024 | D60: =((SUM(E60:X60)))+0 -> 184 | E60: 9 | F60: 5 | G60: 7 | H60: 4 | I60: 6 | J60: 6 | K60: 11 | L60: 11 | M60: 19 | N60: 15 | O60: 7 | P60: 17 | Q60: 21 | R60: 13 | S60: 15 | T60: 9 | U60: 4 | V60: 5 | W60: 0 | X60: 0 | Y60: =((SUM(Z60:AS60))+0)+0 -> 170 | Z60: 7 | AA60: 9 | AB60: 5 | AC60: 4 | AD60: 6 | AE60: 6 | AF60: 11 | AG60: 10 | AH60: 14 | AI60: 11 | AJ60: 15 | AK60: 18 | AL60: 14 | AM60: 12 | AN60: 6 | AO60: 7 | AP60: 8 | AQ60: 2 | AR60: 3 | AS60: 2
A61: 60 | B61: 22025 Altorricón | C61: 22025 | D61: =((SUM(E61:X61)))+0 -> 771 | E61: 19 | F61: 37 | G61: 32 | H61: 40 | I61: 49 | J61: 43 | K61: 37 | L61: 65 | M61: 66 | N61: 67 | O61: 59 | P61: 59 | Q61: 45 | R61: 33 | S61: 35 | T61: 28 | U61: 20 | V61: 23 | W61: 12 | X61: 2 | Y61: =((SUM(Z61:AS61))+0)+0 -> 645 | Z61: 23 | AA61: 24 | AB61: 34 | AC61: 28 | AD61: 29 | AE61: 29 | AF61: 30 | AG61: 26 | AH61: 47 | AI61: 51 | AJ61: 48 | AK61: 49 | AL61: 35 | AM61: 33 | AN61: 41 | AO61: 41 | AP61: 23 | AQ61: 32 | AR61: 17 | AS61: 5
A62: 61 | B62: 22027 Angüés | C62: 22027 | D62: =((SUM(E62:X62)))+0 -> 196 | E62: 0 | F62: 3 | G62: 5 | H62: 9 | I62: 8 | J62: 7 | K62: 13 | L62: 7 | M62: 24 | N62: 14 | O62: 15 | P62: 7 | Q62: 18 | R62: 17 | S62: 8 | T62: 11 | U62: 13 | V62: 10 | W62: 4 | X62: 3 | Y62: =((SUM(Z62:AS62))+0)+0 -> 172 | Z62: 3 | AA62: 0 | AB62: 7 | AC62: 10 | AD62: 9 | AE62: 4 | AF62: 6 | AG62: 11 | AH62: 12 | AI62: 19 | AJ62: 8 | AK62: 12 | AL62: 19 | AM62: 9 | AN62: 12 | AO62: 11 | AP62: 6 | AQ62: 5 | AR62: 8 | AS62: 1
A63: 62 | B63: 22028 Ansó | C63: 22028 | D63: =((SUM(E63:X63)))+0 -> 204 | E63: 2 | F63: 10 | G63: 7 | H63: 3 | I63: 7 | J63: 11 | K63: 9 | L63: 4 | M63: 13 | N63: 20 | O63: 19 | P63: 17 | Q63: 16 | R63: 9 | S63: 12 | T63: 16 | U63: 16 | V63: 7 | W63: 5 | X63: 1 | Y63: =((SUM(Z63:AS63))+0)+0 -> 202 | Z63: 2 | AA63: 10 | AB63: 5 | AC63: 6 | AD63: 7 | AE63: 6 | AF63: 9 | AG63: 5 | AH63: 19 | AI63: 13 | AJ63: 16 | AK63: 12 | AL63: 17 | AM63: 15 | AN63: 9 | AO63: 16 | AP63: 7 | AQ63: 15 | AR63: 12 | AS63: 1
A64: 63 | B64: 22029 Antillón | C64: 22029 | D64: =((SUM(E64:X64)))+0 -> 71 | E64: 3 | F64: 2 | G64: 3 | H64: 1 | I64: 2 | J64: 2 | K64: 7 | L64: 4 | M64: 7 | N64: 5 | O64: 2 | P64: 2 | Q64: 6 | R64: 7 | S64: 7 | T64: 7 | U64: 0 | V64: 3 | W64: 1 | X64: 0 | Y64: =((SUM(Z64:AS64))+0)+0 -> 65 | Z64: 1 | AA64: 6 | AB64: 1 | AC64: 2 | AD64: 2 | AE64: 3 | AF64: 2 | AG64: 2 | AH64: 4 | AI64: 5 | AJ64: 5 | AK64: 3 | AL64: 5 | AM64: 7 | AN64: 4 | AO64: 6 | AP64: 4 | AQ64: 0 | AR64: 1 | AS64: 2
A65: 64 | B65: 22032 Aragüés del Puerto | C65: 22032 | D65: =((SUM(E65:X65)))+0 -> 65 | E65: 1 | F65: 3 | G65: 1 | H65: 3 | I65: 3 | J65: 1 | K65: 2 | L65: 4 | M65: 7 | N65: 10 | O65: 5 | P65: 2 | Q65: 6 | R65: 4 | S65: 4 | T65: 4 | U65: 1 | V65: 3 | W65: 1 | X65: 0 | Y65: =((SUM(Z65:AS65))+0)+0 -> 52 | Z65: 1 | AA65: 0 | AB65: 1 | AC65: 2 | AD65: 2 | AE65: 1 | AF65: 4 | AG65: 4 | AH65: 6 | AI65: 3 | AJ65: 3 | AK65: 2 | AL65: 3 | AM65: 5 | AN65: 1 | AO65: 6 | AP65: 3 | AQ65: 2 | AR65: 3 | AS65: 0
A66: 65 | B66: 22035 Arén | C66: 22035 | D66: =((SUM(E66:X66)))+0 -> 172 | E66: 4 | F66: 5 | G66: 5 | H66: 3 | I66: 5 | J66: 11 | K66: 9 | L66: 9 | M66: 13 | N66: 13 | O66: 12 | P66: 19 | Q66: 14 | R66: 13 | S66: 14 | T66: 3 | U66: 10 | V66: 7 | W66: 3 | X66: 0 | Y66: =((SUM(Z66:AS66))+0)+0 -> 146 | Z66: 9 | AA66: 2 | AB66: 2 | AC66: 5 | AD66: 6 | AE66: 8 | AF66: 11 | AG66: 10 | AH66: 3 | AI66: 8 | AJ66: 8 | AK66: 11 | AL66: 16 | AM66: 7 | AN66: 3 | AO66: 9 | AP66: 12 | AQ66: 10 | AR66: 5 | AS66: 1
A67: 66 | B67: 22036 Argavieso | C67: 22036 | D67: =((SUM(E67:X67)))+0 -> 76 | E67: 4 | F67: 2 | G67: 5 | H67: 2 | I67: 4 | J67: 4 | K67: 4 | L67: 5 | M67: 2 | N67: 10 | O67: 1 | P67: 5 | Q67: 3 | R67: 2 | S67: 9 | T67: 4 | U67: 6 | V67: 3 | W67: 1 | X67: 0 | Y67: =((SUM(Z67:AS67))+0)+0 -> 50 | Z67: 2 | AA67: 1 | AB67: 2 | AC67: 0 | AD67: 1 | AE67: 4 | AF67: 6 | AG67: 1 | AH67: 2 | AI67: 3 | AJ67: 3 | AK67: 3 | AL67: 4 | AM67: 1 | AN67: 7 | AO67: 4 | AP67: 2 | AQ67: 2 | AR67: 2 | AS67: 0
A68: 67 | B68: 22037 Arguis | C68: 22037 | D68: =((SUM(E68:X68)))+0 -> 84 | E68: 6 | F68: 1 | G68: 2 | H68: 2 | I68: 2 | J68: 3 | K68: 3 | L68: 9 | M68: 7 | N68: 7 | O68: 1 | P68: 11 | Q68: 18 | R68: 4 | S68: 4 | T68: 2 | U68: 1 | V68: 0 | W68: 1 | X68: 0 | Y68: =((SUM(Z68:AS68))+0)+0 -> 69 | Z68: 4 | AA68: 4 | AB68: 1 | AC68: 0 | AD68: 1 | AE68: 3 | AF68: 4 | AG68: 3 | AH68: 10 | AI68: 5 | AJ68: 6 | AK68: 7 | AL68: 8 | AM68: 6 | AN68: 1 | AO68: 2 | AP68: 2 | AQ68: 2 | AR68: 0 | AS68: 0
A69: 68 | B69: 22039 Ayerbe | C69: 22039 | D69: =((SUM(E69:X69)))+0 -> 526 | E69: 15 | F69: 15 | G69: 24 | H69: 22 | I69: 20 | J69: 29 | K69: 24 | L69: 28 | M69: 39 | N69: 46 | O69: 43 | P69: 38 | Q69: 33 | R69: 33 | S69: 36 | T69: 25 | U69: 22 | V69: 22 | W69: 11 | X69: 1 | Y69: =((SUM(Z69:AS69))+0)+0 -> 533 | Z69: 9 | AA69: 18 | AB69: 27 | AC69: 32 | AD69: 20 | AE69: 15 | AF69: 24 | AG69: 27 | AH69: 44 | AI69: 36 | AJ69: 43 | AK69: 35 | AL69: 36 | AM69: 28 | AN69: 31 | AO69: 35 | AP69: 20 | AQ69: 30 | AR69: 15 | AS69: 8
A70: 69 | B70: 22040 Azanuy-Alins | C70: 22040 | D70: =((SUM(E70:X70)))+0 -> 86 | E70: 4 | F70: 2 | G70: 2 | H70: 3 | I70: 4 | J70: 3 | K70: 7 | L70: 6 | M70: 5 | N70: 3 | O70: 7 | P70: 6 | Q70: 7 | R70: 6 | S70: 9 | T70: 2 | U70: 3 | V70: 2 | W70: 5 | X70: 0 | Y70: =((SUM(Z70:AS70))+0)+0 -> 88 | Z70: 3 | AA70: 4 | AB70: 1 | AC70: 3 | AD70: 2 | AE70: 1 | AF70: 5 | AG70: 6 | AH70: 6 | AI70: 5 | AJ70: 6 | AK70: 6 | AL70: 4 | AM70: 7 | AN70: 8 | AO70: 8 | AP70: 3 | AQ70: 6 | AR70: 3 | AS70: 1
A71: 70 | B71: 22041 Azara | C71: 22041 | D71: =((SUM(E71:X71)))+0 -> 84 | E71: 1 | F71: 3 | G71: 3 | H71: 3 | I71: 7 | J71: 4 | K71: 3 | L71: 5 | M71: 4 | N71: 3 | O71: 4 | P71: 10 | Q71: 7 | R71: 5 | S71: 7 | T71: 5 | U71: 3 | V71: 4 | W71: 1 | X71: 2 | Y71: =((SUM(Z71:AS71))+0)+0 -> 76 | Z71: 1 | AA71: 2 | AB71: 3 | AC71: 0 | AD71: 1 | AE71: 7 | AF71: 3 | AG71: 4 | AH71: 2 | AI71: 7 | AJ71: 6 | AK71: 4 | AL71: 7 | AM71: 9 | AN71: 2 | AO71: 6 | AP71: 3 | AQ71: 6 | AR71: 3 | AS71: 0
A72: 71 | B72: 22042 Azlor | C72: 22042 | D72: =((SUM(E72:X72)))+0 -> 68 | E72: 1 | F72: 2 | G72: 1 | H72: 2 | I72: 0 | J72: 5 | K72: 3 | L72: 4 | M72: 8 | N72: 7 | O72: 8 | P72: 5 | Q72: 4 | R72: 1 | S72: 3 | T72: 3 | U72: 4 | V72: 4 | W72: 3 | X72: 0 | Y72: =((SUM(Z72:AS72))+0)+0 -> 80 | Z72: 4 | AA72: 3 | AB72: 6 | AC72: 4 | AD72: 4 | AE72: 0 | AF72: 8 | AG72: 1 | AH72: 5 | AI72: 8 | AJ72: 6 | AK72: 5 | AL72: 1 | AM72: 5 | AN72: 2 | AO72: 5 | AP72: 4 | AQ72: 4 | AR72: 5 | AS72: 0
A73: 72 | B73: 22043 Baells | C73: 22043 | D73: =((SUM(E73:X73)))+0 -> 51 | E73: 1 | F73: 0 | G73: 1 | H73: 0 | I73: 0 | J73: 3 | K73: 3 | L73: 2 | M73: 7 | N73: 2 | O73: 1 | P73: 2 | Q73: 5 | R73: 6 | S73: 8 | T73: 7 | U73: 2 | V73: 0 | W73: 0 | X73: 1 | Y73: =((SUM(Z73:AS73))+0)+0 -> 39 | Z73: 1 | AA73: 2 | AB73: 1 | AC73: 0 | AD73: 1 | AE73: 1 | AF73: 2 | AG73: 0 | AH73: 4 | AI73: 3 | AJ73: 2 | AK73: 1 | AL73: 3 | AM73: 6 | AN73: 4 | AO73: 2 | AP73: 2 | AQ73: 2 | AR73: 0 | AS73: 2
A74: 73 | B74: 22044 Bailo | C74: 22044 | D74: =((SUM(E74:X74)))+0 -> 164 | E74: 1 | F74: 4 | G74: 8 | H74: 2 | I74: 4 | J74: 6 | K74: 7 | L74: 13 | M74: 12 | N74: 22 | O74: 12 | P74: 11 | Q74: 16 | R74: 11 | S74: 13 | T74: 5 | U74: 9 | V74: 4 | W74: 1 | X74: 3 | Y74: =((SUM(Z74:AS74))+0)+0 -> 109 | Z74: 3 | AA74: 2 | AB74: 5 | AC74: 3 | AD74: 5 | AE74: 3 | AF74: 2 | AG74: 6 | AH74: 6 | AI74: 7 | AJ74: 7 | AK74: 15 | AL74: 10 | AM74: 5 | AN74: 4 | AO74: 13 | AP74: 4 | AQ74: 5 | AR74: 3 | AS74: 1
A75: 74 | B75: 22045 Baldellou | C75: 22045 | D75: =((SUM(E75:X75)))+0 -> 43 | E75: 0 | F75: 0 | G75: 1 | H75: 0 | I75: 1 | J75: 4 | K75: 4 | L75: 1 | M75: 0 | N75: 5 | O75: 3 | P75: 4 | Q75: 5 | R75: 2 | S75: 2 | T75: 3 | U75: 4 | V75: 4 | W75: 0 | X75: 0 | Y75: =((SUM(Z75:AS75))+0)+0 -> 36 | Z75: 0 | AA75: 0 | AB75: 1 | AC75: 1 | AD75: 4 | AE75: 2 | AF75: 3 | AG75: 2 | AH75: 2 | AI75: 2 | AJ75: 0 | AK75: 3 | AL75: 5 | AM75: 0 | AN75: 0 | AO75: 4 | AP75: 2 | AQ75: 4 | AR75: 1 | AS75: 0
A76: 75 | B76: 22046 Ballobar | C76: 22046 | D76: =((SUM(E76:X76)))+0 -> 446 | E76: 12 | F76: 19 | G76: 16 | H76: 18 | I76: 20 | J76: 29 | K76: 21 | L76: 16 | M76: 36 | N76: 31 | O76: 26 | P76: 39 | Q76: 34 | R76: 26 | S76: 27 | T76: 31 | U76: 15 | V76: 20 | W76: 7 | X76: 3 | Y76: =((SUM(Z76:AS76))+0)+0 -> 418 | Z76: 18 | AA76: 19 | AB76: 8 | AC76: 22 | AD76: 22 | AE76: 15 | AF76: 17 | AG76: 25 | AH76: 29 | AI76: 18 | AJ76: 30 | AK76: 25 | AL76: 38 | AM76: 33 | AN76: 25 | AO76: 24 | AP76: 10 | AQ76: 25 | AR76: 14 | AS76: 1
A77: 76 | B77: 22047 Banastás | C77: 22047 | D77: =((SUM(E77:X77)))+0 -> 171 | E77: 2 | F77: 6 | G77: 11 | H77: 8 | I77: 8 | J77: 10 | K77: 9 | L77: 6 | M77: 10 | N77: 17 | O77: 14 | P77: 13 | Q77: 22 | R77: 12 | S77: 8 | T77: 5 | U77: 7 | V77: 1 | W77: 2 | X77: 0 | Y77: =((SUM(Z77:AS77))+0)+0 -> 162 | Z77: 4 | AA77: 9 | AB77: 13 | AC77: 5 | AD77: 8 | AE77: 5 | AF77: 8 | AG77: 11 | AH77: 6 | AI77: 20 | AJ77: 14 | AK77: 9 | AL77: 15 | AM77: 16 | AN77: 6 | AO77: 8 | AP77: 2 | AQ77: 2 | AR77: 1 | AS77: 0
A78: 77 | B78: 22048 Barbastro | C78: 22048 | D78: =((SUM(E78:X78)))+0 -> 8442 | E78: 383 | F78: 425 | G78: 463 | H78: 485 | I78: 458 | J78: 461 | K78: 478 | L78: 556 | M78: 679 | N78: 657 | O78: 613 | P78: 621 | Q78: 549 | R78: 457 | S78: 391 | T78: 288 | U78: 201 | V78: 172 | W78: 82 | X78: 23 | Y78: =((SUM(Z78:AS78))+0)+0 -> 8772 | Z78: 357 | AA78: 400 | AB78: 454 | AC78: 413 | AD78: 441 | AE78: 425 | AF78: 494 | AG78: 511 | AH78: 655 | AI78: 664 | AJ78: 650 | AK78: 653 | AL78: 627 | AM78: 490 | AN78: 421 | AO78: 352 | AP78: 278 | AQ78: 268 | AR78: 168 | AS78: 51
A79: 78 | B79: 22049 Barbués | C79: 22049 | D79: =((SUM(E79:X79)))+0 -> 55 | E79: 1 | F79: 1 | G79: 2 | H79: 1 | I79: 4 | J79: 2 | K79: 6 | L79: 5 | M79: 0 | N79: 5 | O79: 2 | P79: 8 | Q79: 7 | R79: 4 | S79: 1 | T79: 1 | U79: 1 | V79: 2 | W79: 1 | X79: 1 | Y79: =((SUM(Z79:AS79))+0)+0 -> 35 | Z79: 0 | AA79: 0 | AB79: 0 | AC79: 1 | AD79: 0 | AE79: 1 | AF79: 3 | AG79: 3 | AH79: 1 | AI79: 1 | AJ79: 3 | AK79: 5 | AL79: 5 | AM79: 3 | AN79: 0 | AO79: 1 | AP79: 3 | AQ79: 4 | AR79: 1 | AS79: 0
A80: 79 | B80: 22050 Barbuñales | C80: 22050 | D80: =((SUM(E80:X80)))+0 -> 49 | E80: 0 | F80: 0 | G80: 2 | H80: 0 | I80: 0 | J80: 4 | K80: 3 | L80: 2 | M80: 2 | N80: 5 | O80: 2 | P80: 5 | Q80: 2 | R80: 5 | S80: 5 | T80: 6 | U80: 3 | V80: 2 | W80: 0 | X80: 1 | Y80: =((SUM(Z80:AS80))+0)+0 -> 49 | Z80: 0 | AA80: 0 | AB80: 2 | AC80: 0 | AD80: 2 | AE80: 3 | AF80: 2 | AG80: 0 | AH80: 1 | AI80: 4 | AJ80: 2 | AK80: 6 | AL80: 5 | AM80: 5 | AN80: 4 | AO80: 4 | AP80: 1 | AQ80: 3 | AR80: 3 | AS80: 2
A81: 80 | B81: 22051 Bárcabo | C81: 22051 | D81: =((SUM(E81:X81)))+0 -> 59 | E81: 2 | F81: 0 | G81: 2 | H81: 0 | I81: 1 | J81: 3 | K81: 2 | L81: 2 | M81: 5 | N81: 6 | O81: 3 | P81: 6 | Q81: 5 | R81: 10 | S81: 3 | T81: 3 | U81: 2 | V81: 3 | W81: 1 | X81: 0 | Y81: =((SUM(Z81:AS81))+0)+0 -> 49 | Z81: 0 | AA81: 0 | AB81: 0 | AC81: 0 | AD81: 1 | AE81: 4 | AF81: 4 | AG81: 1 | AH81: 2 | AI81: 2 | AJ81: 4 | AK81: 4 | AL81: 5 | AM81: 5 | AN81: 4 | AO81: 2 | AP81: 4 | AQ81: 7 | AR81: 0 | AS81: 0
A82: 81 | B82: 22052 Belver de Cinca | C82: 22052 | D82: =((SUM(E82:X82)))+0 -> 770 | E82: 28 | F82: 32 | G82: 35 | H82: 34 | I82: 30 | J82: 49 | K82: 54 | L82: 52 | M82: 64 | N82: 78 | O82: 53 | P82: 57 | Q82: 40 | R82: 38 | S82: 27 | T82: 38 | U82: 27 | V82: 23 | W82: 8 | X82: 3 | Y82: =((SUM(Z82:AS82))+0)+0 -> 560 | Z82: 24 | AA82: 20 | AB82: 27 | AC82: 31 | AD82: 26 | AE82: 24 | AF82: 33 | AG82: 31 | AH82: 33 | AI82: 37 | AJ82: 41 | AK82: 35 | AL82: 30 | AM82: 31 | AN82: 30 | AO82: 30 | AP82: 29 | AQ82: 35 | AR82: 9 | AS82: 4
A83: 82 | B83: 22053 Benabarre | C83: 22053 | D83: =((SUM(E83:X83)))+0 -> 607 | E83: 23 | F83: 25 | G83: 44 | H83: 22 | I83: 27 | J83: 22 | K83: 30 | L83: 30 | M83: 35 | N83: 45 | O83: 54 | P83: 43 | Q83: 36 | R83: 43 | S83: 43 | T83: 33 | U83: 21 | V83: 16 | W83: 10 | X83: 5 | Y83: =((SUM(Z83:AS83))+0)+0 -> 568 | Z83: 15 | AA83: 22 | AB83: 24 | AC83: 27 | AD83: 21 | AE83: 25 | AF83: 23 | AG83: 31 | AH83: 49 | AI83: 46 | AJ83: 41 | AK83: 37 | AL83: 29 | AM83: 39 | AN83: 38 | AO83: 19 | AP83: 30 | AQ83: 28 | AR83: 17 | AS83: 7
A84: 83 | B84: 22054 Benasque | C84: 22054 | D84: =((SUM(E84:X84)))+0 -> 1230 | E84: 41 | F84: 65 | G84: 73 | H84: 57 | I84: 54 | J84: 67 | K84: 83 | L84: 106 | M84: 126 | N84: 140 | O84: 96 | P84: 94 | Q84: 73 | R84: 70 | S84: 36 | T84: 19 | U84: 14 | V84: 12 | W84: 4 | X84: 0 | Y84: =((SUM(Z84:AS84))+0)+0 -> 1052 | Z84: 35 | AA84: 35 | AB84: 61 | AC84: 52 | AD84: 64 | AE84: 63 | AF84: 66 | AG84: 86 | AH84: 122 | AI84: 112 | AJ84: 88 | AK84: 84 | AL84: 59 | AM84: 38 | AN84: 31 | AO84: 23 | AP84: 11 | AQ84: 14 | AR84: 7 | AS84: 1
A85: 84 | B85: 22055 Berbegal | C85: 22055 | D85: =((SUM(E85:X85)))+0 -> 180 | E85: 2 | F85: 3 | G85: 3 | H85: 5 | I85: 5 | J85: 15 | K85: 12 | L85: 10 | M85: 11 | N85: 12 | O85: 17 | P85: 20 | Q85: 21 | R85: 10 | S85: 8 | T85: 8 | U85: 7 | V85: 6 | W85: 4 | X85: 1 | Y85: =((SUM(Z85:AS85))+0)+0 -> 155 | Z85: 0 | AA85: 1 | AB85: 6 | AC85: 5 | AD85: 5 | AE85: 7 | AF85: 13 | AG85: 9 | AH85: 5 | AI85: 10 | AJ85: 15 | AK85: 13 | AL85: 12 | AM85: 14 | AN85: 8 | AO85: 9 | AP85: 8 | AQ85: 12 | AR85: 2 | AS85: 1
A86: 85 | B86: 22057 Bielsa | C86: 22057 | D86: =((SUM(E86:X86)))+0 -> 255 | E86: 7 | F86: 9 | G86: 6 | H86: 12 | I86: 11 | J86: 18 | K86: 11 | L86: 16 | M86: 23 | N86: 20 | O86: 17 | P86: 22 | Q86: 24 | R86: 20 | S86: 19 | T86: 6 | U86: 7 | V86: 2 | W86: 3 | X86: 2 | Y86: =((SUM(Z86:AS86))+0)+0 -> 225 | Z86: 7 | AA86: 5 | AB86: 10 | AC86: 10 | AD86: 12 | AE86: 15 | AF86: 13 | AG86: 14 | AH86: 13 | AI86: 17 | AJ86: 18 | AK86: 17 | AL86: 11 | AM86: 18 | AN86: 9 | AO86: 9 | AP86: 8 | AQ86: 8 | AR86: 8 | AS86: 3
A87: 86 | B87: 22058 Bierge | C87: 22058 | D87: =((SUM(E87:X87)))+0 -> 141 | E87: 3 | F87: 4 | G87: 7 | H87: 3 | I87: 5 | J87: 4 | K87: 9 | L87: 6 | M87: 19 | N87: 10 | O87: 8 | P87: 11 | Q87: 10 | R87: 14 | S87: 8 | T87: 8 | U87: 2 | V87: 6 | W87: 4 | X87: 0 | Y87: =((SUM(Z87:AS87))+0)+0 -> 110 | Z87: 1 | AA87: 3 | AB87: 4 | AC87: 4 | AD87: 3 | AE87: 6 | AF87: 5 | AG87: 5 | AH87: 11 | AI87: 8 | AJ87: 12 | AK87: 11 | AL87: 6 | AM87: 7 | AN87: 7 | AO87: 4 | AP87: 4 | AQ87: 6 | AR87: 2 | AS87: 1
A88: 87 | B88: 22059 Biescas | C88: 22059 | D88: =((SUM(E88:X88)))+0 -> 835 | E88: 25 | F88: 35 | G88: 38 | H88: 27 | I88: 30 | J88: 42 | K88: 45 | L88: 55 | M88: 75 | N88: 88 | O88: 75 | P88: 64 | Q88: 70 | R88: 50 | S88: 43 | T88: 21 | U88: 16 | V88: 20 | W88: 14 | X88: 2 | Y88: =((SUM(Z88:AS88))+0)+0 -> 749 | Z88: 20 | AA88: 32 | AB88: 35 | AC88: 35 | AD88: 33 | AE88: 36 | AF88: 44 | AG88: 59 | AH88: 62 | AI88: 67 | AJ88: 65 | AK88: 55 | AL88: 46 | AM88: 34 | AN88: 30 | AO88: 23 | AP88: 19 | AQ88: 31 | AR88: 19 | AS88: 4
A89: 88 | B89: 22060 Binaced | C89: 22060 | D89: =((SUM(E89:X89)))+0 -> 883 | E89: 32 | F89: 28 | G89: 32 | H89: 51 | I89: 44 | J89: 64 | K89: 57 | L89: 75 | M89: 79 | N89: 72 | O89: 51 | P89: 58 | Q89: 52 | R89: 60 | S89: 45 | T89: 34 | U89: 19 | V89: 21 | W89: 7 | X89: 2 | Y89: =((SUM(Z89:AS89))+0)+0 -> 738 | Z89: 29 | AA89: 29 | AB89: 39 | AC89: 38 | AD89: 36 | AE89: 46 | AF89: 27 | AG89: 42 | AH89: 52 | AI89: 48 | AJ89: 44 | AK89: 46 | AL89: 60 | AM89: 57 | AN89: 38 | AO89: 34 | AP89: 37 | AQ89: 24 | AR89: 7 | AS89: 5
A90: 89 | B90: 22061 Binéfar | C90: 22061 | D90: =((SUM(E90:X90)))+0 -> 5278 | E90: 212 | F90: 252 | G90: 316 | H90: 326 | I90: 333 | J90: 319 | K90: 308 | L90: 320 | M90: 486 | N90: 492 | O90: 398 | P90: 376 | Q90: 288 | R90: 241 | S90: 195 | T90: 173 | U90: 102 | V90: 86 | W90: 41 | X90: 14 | Y90: =((SUM(Z90:AS90))+0)+0 -> 4649 | Z90: 197 | AA90: 223 | AB90: 232 | AC90: 236 | AD90: 256 | AE90: 227 | AF90: 249 | AG90: 279 | AH90: 345 | AI90: 340 | AJ90: 343 | AK90: 346 | AL90: 280 | AM90: 243 | AN90: 203 | AO90: 204 | AP90: 159 | AQ90: 169 | AR90: 87 | AS90: 31
A91: 90 | B91: 22062 Bisaurri | C91: 22062 | D91: =((SUM(E91:X91)))+0 -> 91 | E91: 0 | F91: 3 | G91: 1 | H91: 2 | I91: 2 | J91: 1 | K91: 2 | L91: 6 | M91: 3 | N91: 12 | O91: 9 | P91: 6 | Q91: 13 | R91: 8 | S91: 12 | T91: 4 | U91: 1 | V91: 3 | W91: 3 | X91: 0 | Y91: =((SUM(Z91:AS91))+0)+0 -> 82 | Z91: 2 | AA91: 2 | AB91: 3 | AC91: 1 | AD91: 1 | AE91: 2 | AF91: 3 | AG91: 4 | AH91: 6 | AI91: 8 | AJ91: 11 | AK91: 5 | AL91: 9 | AM91: 5 | AN91: 6 | AO91: 4 | AP91: 4 | AQ91: 2 | AR91: 3 | AS91: 1
A92: 91 | B92: 22063 Biscarrués | C92: 22063 | D92: =((SUM(E92:X92)))+0 -> 102 | E92: 0 | F92: 2 | G92: 2 | H92: 5 | I92: 4 | J92: 6 | K92: 1 | L92: 3 | M92: 6 | N92: 5 | O92: 10 | P92: 16 | Q92: 12 | R92: 6 | S92: 7 | T92: 5 | U92: 1 | V92: 4 | W92: 6 | X92: 1 | Y92: =((SUM(Z92:AS92))+0)+0 -> 91 | Z92: 1 | AA92: 0 | AB92: 1 | AC92: 3 | AD92: 1 | AE92: 5 | AF92: 5 | AG92: 3 | AH92: 1 | AI92: 6 | AJ92: 9 | AK92: 13 | AL92: 7 | AM92: 8 | AN92: 1 | AO92: 12 | AP92: 4 | AQ92: 3 | AR92: 7 | AS92: 1
A93: 92 | B93: 22064 Blecua y Torres | C93: 22064 | D93: =((SUM(E93:X93)))+0 -> 101 | E93: 2 | F93: 2 | G93: 2 | H93: 6 | I93: 3 | J93: 3 | K93: 3 | L93: 7 | M93: 10 | N93: 11 | O93: 7 | P93: 7 | Q93: 14 | R93: 5 | S93: 5 | T93: 7 | U93: 4 | V93: 2 | W93: 1 | X93: 0 | Y93: =((SUM(Z93:AS93))+0)+0 -> 87 | Z93: 1 | AA93: 0 | AB93: 3 | AC93: 5 | AD93: 7 | AE93: 3 | AF93: 8 | AG93: 2 | AH93: 4 | AI93: 4 | AJ93: 8 | AK93: 7 | AL93: 9 | AM93: 4 | AN93: 4 | AO93: 6 | AP93: 6 | AQ93: 3 | AR93: 3 | AS93: 0
A94: 93 | B94: 22066 Boltaña | C94: 22066 | D94: =((SUM(E94:X94)))+0 -> 586 | E94: 20 | F94: 33 | G94: 26 | H94: 24 | I94: 24 | J94: 32 | K94: 35 | L94: 42 | M94: 51 | N94: 53 | O94: 45 | P94: 53 | Q94: 48 | R94: 40 | S94: 19 | T94: 16 | U94: 8 | V94: 14 | W94: 3 | X94: 0 | Y94: =((SUM(Z94:AS94))+0)+0 -> 511 | Z94: 13 | AA94: 18 | AB94: 23 | AC94: 19 | AD94: 26 | AE94: 25 | AF94: 31 | AG94: 37 | AH94: 50 | AI94: 44 | AJ94: 48 | AK94: 41 | AL94: 30 | AM94: 36 | AN94: 22 | AO94: 8 | AP94: 22 | AQ94: 11 | AR94: 3 | AS94: 4
A95: 94 | B95: 22067 Bonansa | C95: 22067 | D95: =((SUM(E95:X95)))+0 -> 51 | E95: 2 | F95: 2 | G95: 4 | H95: 1 | I95: 2 | J95: 2 | K95: 2 | L95: 1 | M95: 4 | N95: 6 | O95: 2 | P95: 6 | Q95: 4 | R95: 7 | S95: 2 | T95: 2 | U95: 0 | V95: 1 | W95: 1 | X95: 0 | Y95: =((SUM(Z95:AS95))+0)+0 -> 40 | Z95: 1 | AA95: 0 | AB95: 3 | AC95: 2 | AD95: 3 | AE95: 1 | AF95: 4 | AG95: 3 | AH95: 1 | AI95: 4 | AJ95: 2 | AK95: 2 | AL95: 4 | AM95: 2 | AN95: 3 | AO95: 1 | AP95: 2 | AQ95: 1 | AR95: 0 | AS95: 1
A96: 95 | B96: 22068 Borau | C96: 22068 | D96: =((SUM(E96:X96)))+0 -> 50 | E96: 1 | F96: 2 | G96: 2 | H96: 0 | I96: 0 | J96: 4 | K96: 1 | L96: 5 | M96: 6 | N96: 7 | O96: 4 | P96: 1 | Q96: 6 | R96: 4 | S96: 1 | T96: 3 | U96: 3 | V96: 0 | W96: 0 | X96: 0 | Y96: =((SUM(Z96:AS96))+0)+0 -> 40 | Z96: 0 | AA96: 2 | AB96: 1 | AC96: 0 | AD96: 0 | AE96: 2 | AF96: 1 | AG96: 3 | AH96: 5 | AI96: 3 | AJ96: 5 | AK96: 1 | AL96: 4 | AM96: 5 | AN96: 1 | AO96: 1 | AP96: 4 | AQ96: 1 | AR96: 1 | AS96: 0
A97: 96 | B97: 22069 Broto | C97: 22069 | D97: =((SUM(E97:X97)))+0 -> 322 | E97: 13 | F97: 12 | G97: 12 | H97: 15 | I97: 25 | J97: 15 | K97: 13 | L97: 28 | M97: 24 | N97: 21 | O97: 22 | P97: 37 | Q97: 24 | R97: 14 | S97: 18 | T97: 12 | U97: 7 | V97: 6 | W97: 4 | X97: 0 | Y97: =((SUM(Z97:AS97))+0)+0 -> 255 | Z97: 13 | AA97: 7 | AB97: 6 | AC97: 6 | AD97: 12 | AE97: 16 | AF97: 20 | AG97: 18 | AH97: 15 | AI97: 23 | AJ97: 27 | AK97: 20 | AL97: 15 | AM97: 19 | AN97: 11 | AO97: 7 | AP97: 4 | AQ97: 12 | AR97: 3 | AS97: 1
A98: 97 | B98: 22072 Caldearenas | C98: 22072 | D98: =((SUM(E98:X98)))+0 -> 141 | E98: 7 | F98: 3 | G98: 4 | H98: 3 | I98: 4 | J98: 8 | K98: 8 | L98: 9 | M98: 13 | N98: 8 | O98: 12 | P98: 5 | Q98: 13 | R98: 17 | S98: 9 | T98: 5 | U98: 9 | V98: 2 | W98: 2 | X98: 0 | Y98: =((SUM(Z98:AS98))+0)+0 -> 100 | Z98: 2 | AA98: 5 | AB98: 4 | AC98: 1 | AD98: 3 | AE98: 5 | AF98: 5 | AG98: 6 | AH98: 5 | AI98: 5 | AJ98: 3 | AK98: 14 | AL98: 9 | AM98: 7 | AN98: 5 | AO98: 6 | AP98: 3 | AQ98: 6 | AR98: 5 | AS98: 1
A99: 98 | B99: 22074 Campo | C99: 22074 | D99: =((SUM(E99:X99)))+0 -> 245 | E99: 10 | F99: 5 | G99: 4 | H99: 10 | I99: 19 | J99: 14 | K99: 13 | L99: 14 | M99: 17 | N99: 15 | O99: 31 | P99: 20 | Q99: 24 | R99: 8 | S99: 19 | T99: 7 | U99: 7 | V99: 5 | W99: 3 | X99: 0 | Y99: =((SUM(Z99:AS99))+0)+0 -> 215 | Z99: 8 | AA99: 7 | AB99: 10 | AC99: 5 | AD99: 6 | AE99: 14 | AF99: 11 | AG99: 15 | AH99: 18 | AI99: 18 | AJ99: 23 | AK99: 16 | AL99: 13 | AM99: 11 | AN99: 12 | AO99: 7 | AP99: 6 | AQ99: 9 | AR99: 2 | AS99: 4
A100: 99 | B100: 22075 Camporrells | C100: 22075 | D100: =((SUM(E100:X100)))+0 -> 70 | E100: 0 | F100: 0 | G100: 1 | H100: 1 | I100: 0 | J100: 2 | K100: 4 | L100: 1 | M100: 7 | N100: 4 | O100: 4 | P100: 7 | Q100: 10 | R100: 6 | S100: 2 | T100: 10 | U100: 2 | V100: 5 | W100: 3 | X100: 1 | Y100: =((SUM(Z100:AS100))+0)+0 -> 66 | Z100: 1 | AA100: 2 | AB100: 2 | AC100: 2 | AD100: 2 | AE100: 3 | AF100: 1 | AG100: 4 | AH100: 0 | AI100: 4 | AJ100: 3 | AK100: 6 | AL100: 6 | AM100: 4 | AN100: 6 | AO100: 6 | AP100: 2 | AQ100: 7 | AR100: 4 | AS100: 1
A101: 100 | B101: 22076 Canal de Berdún | C101: 22076 | D101: =((SUM(E101:X101)))+0 -> 189 | E101: 4 | F101: 5 | G101: 3 | H101: 2 | I101: 8 | J101: 13 | K101: 13 | L101: 8 | M101: 8 | N101: 13 | O101: 11 | P101: 16 | Q101: 20 | R101: 14 | S101: 17 | T101: 10 | U101: 13 | V101: 5 | W101: 5 | X101: 1 | Y101: =((SUM(Z101:AS101))+0)+0 -> 157 | Z101: 1 | AA101: 2 | AB101: 4 | AC101: 8 | AD101: 4 | AE101: 8 | AF101: 11 | AG101: 4 | AH101: 6 | AI101: 7 | AJ101: 12 | AK101: 14 | AL101: 13 | AM101: 16 | AN101: 14 | AO101: 8 | AP101: 7 | AQ101: 11 | AR101: 6 | AS101: 1
A102: 101 | B102: 22077 Candasnos | C102: 22077 | D102: =((SUM(E102:X102)))+0 -> 217 | E102: 3 | F102: 6 | G102: 9 | H102: 4 | I102: 8 | J102: 11 | K102: 8 | L102: 9 | M102: 22 | N102: 18 | O102: 22 | P102: 16 | Q102: 20 | R102: 13 | S102: 12 | T102: 15 | U102: 10 | V102: 7 | W102: 3 | X102: 1 | Y102: =((SUM(Z102:AS102))+0)+0 -> 179 | Z102: 4 | AA102: 4 | AB102: 7 | AC102: 8 | AD102: 6 | AE102: 4 | AF102: 6 | AG102: 6 | AH102: 12 | AI102: 10 | AJ102: 14 | AK102: 13 | AL102: 11 | AM102: 20 | AN102: 15 | AO102: 13 | AP102: 9 | AQ102: 9 | AR102: 5 | AS102: 3
A103: 102 | B103: 22078 Canfranc | C103: 22078 | D103: =((SUM(E103:X103)))+0 -> 347 | E103: 6 | F103: 11 | G103: 15 | H103: 15 | I103: 17 | J103: 15 | K103: 26 | L103: 24 | M103: 24 | N103: 33 | O103: 40 | P103: 40 | Q103: 31 | R103: 21 | S103: 13 | T103: 9 | U103: 4 | V103: 1 | W103: 1 | X103: 1 | Y103: =((SUM(Z103:AS103))+0)+0 -> 265 | Z103: 5 | AA103: 10 | AB103: 7 | AC103: 26 | AD103: 16 | AE103: 18 | AF103: 18 | AG103: 25 | AH103: 16 | AI103: 28 | AJ103: 20 | AK103: 22 | AL103: 11 | AM103: 11 | AN103: 12 | AO103: 7 | AP103: 3 | AQ103: 7 | AR103: 3 | AS103: 0
A104: 103 | B104: 22079 Capdesaso | C104: 22079 | D104: =((SUM(E104:X104)))+0 -> 85 | E104: 3 | F104: 2 | G104: 1 | H104: 4 | I104: 2 | J104: 5 | K104: 3 | L104: 4 | M104: 9 | N104: 8 | O104: 6 | P104: 10 | Q104: 5 | R104: 6 | S104: 3 | T104: 3 | U104: 2 | V104: 6 | W104: 2 | X104: 1 | Y104: =((SUM(Z104:AS104))+0)+0 -> 119 | Z104: 1 | AA104: 1 | AB104: 1 | AC104: 2 | AD104: 0 | AE104: 5 | AF104: 8 | AG104: 15 | AH104: 9 | AI104: 16 | AJ104: 19 | AK104: 13 | AL104: 5 | AM104: 7 | AN104: 4 | AO104: 2 | AP104: 3 | AQ104: 3 | AR104: 4 | AS104: 1
A105: 104 | B105: 22080 Capella | C105: 22080 | D105: =((SUM(E105:X105)))+0 -> 187 | E105: 3 | F105: 8 | G105: 7 | H105: 2 | I105: 8 | J105: 8 | K105: 11 | L105: 14 | M105: 12 | N105: 16 | O105: 17 | P105: 13 | Q105: 13 | R105: 11 | S105: 16 | T105: 13 | U105: 4 | V105: 5 | W105: 6 | X105: 0 | Y105: =((SUM(Z105:AS105))+0)+0 -> 165 | Z105: 4 | AA105: 5 | AB105: 9 | AC105: 5 | AD105: 8 | AE105: 9 | AF105: 10 | AG105: 6 | AH105: 13 | AI105: 8 | AJ105: 13 | AK105: 5 | AL105: 21 | AM105: 9 | AN105: 11 | AO105: 13 | AP105: 4 | AQ105: 9 | AR105: 2 | AS105: 1
A106: 105 | B106: 22081 Casbas de Huesca | C106: 22081 | D106: =((SUM(E106:X106)))+0 -> 171 | E106: 1 | F106: 3 | G106: 1 | H106: 7 | I106: 5 | J106: 6 | K106: 7 | L106: 11 | M106: 15 | N106: 13 | O106: 16 | P106: 13 | Q106: 17 | R106: 15 | S106: 15 | T106: 13 | U106: 4 | V106: 7 | W106: 2 | X106: 0 | Y106: =((SUM(Z106:AS106))+0)+0 -> 130 | Z106: 4 | AA106: 0 | AB106: 2 | AC106: 3 | AD106: 2 | AE106: 2 | AF106: 7 | AG106: 5 | AH106: 10 | AI106: 9 | AJ106: 11 | AK106: 14 | AL106: 10 | AM106: 13 | AN106: 8 | AO106: 12 | AP106: 6 | AQ106: 6 | AR106: 1 | AS106: 5
A107: 106 | B107: 22082 Castejón del Puente | C107: 22082 | D107: =((SUM(E107:X107)))+0 -> 175 | E107: 5 | F107: 6 | G107: 3 | H107: 1 | I107: 11 | J107: 10 | K107: 16 | L107: 8 | M107: 16 | N107: 11 | O107: 13 | P107: 16 | Q107: 11 | R107: 13 | S107: 10 | T107: 8 | U107: 6 | V107: 7 | W107: 4 | X107: 0 | Y107: =((SUM(Z107:AS107))+0)+0 -> 158 | Z107: 3 | AA107: 5 | AB107: 8 | AC107: 6 | AD107: 7 | AE107: 7 | AF107: 10 | AG107: 10 | AH107: 5 | AI107: 5 | AJ107: 15 | AK107: 13 | AL107: 10 | AM107: 11 | AN107: 12 | AO107: 9 | AP107: 12 | AQ107: 6 | AR107: 4 | AS107: 0
A108: 107 | B108: 22083 Castejón de Monegros | C108: 22083 | D108: =((SUM(E108:X108)))+0 -> 271 | E108: 2 | F108: 8 | G108: 5 | H108: 7 | I108: 16 | J108: 5 | K108: 14 | L108: 16 | M108: 17 | N108: 20 | O108: 20 | P108: 24 | Q108: 22 | R108: 19 | S108: 16 | T108: 26 | U108: 15 | V108: 10 | W108: 6 | X108: 3 | Y108: =((SUM(Z108:AS108))+0)+0 -> 241 | Z108: 5 | AA108: 5 | AB108: 7 | AC108: 9 | AD108: 6 | AE108: 10 | AF108: 12 | AG108: 12 | AH108: 9 | AI108: 19 | AJ108: 11 | AK108: 24 | AL108: 14 | AM108: 20 | AN108: 20 | AO108: 21 | AP108: 18 | AQ108: 10 | AR108: 8 | AS108: 1
A109: 108 | B109: 22084 Castejón de Sos | C109: 22084 | D109: =((SUM(E109:X109)))+0 -> 405 | E109: 9 | F109: 25 | G109: 20 | H109: 22 | I109: 22 | J109: 17 | K109: 8 | L109: 25 | M109: 45 | N109: 48 | O109: 44 | P109: 31 | Q109: 32 | R109: 22 | S109: 10 | T109: 10 | U109: 5 | V109: 8 | W109: 1 | X109: 1 | Y109: =((SUM(Z109:AS109))+0)+0 -> 400 | Z109: 3 | AA109: 12 | AB109: 27 | AC109: 29 | AD109: 17 | AE109: 13 | AF109: 17 | AG109: 21 | AH109: 45 | AI109: 51 | AJ109: 34 | AK109: 27 | AL109: 29 | AM109: 18 | AN109: 14 | AO109: 14 | AP109: 8 | AQ109: 13 | AR109: 8 | AS109: 0
A110: 109 | B110: 22085 Castelflorite | C110: 22085 | D110: =((SUM(E110:X110)))+0 -> 49 | E110: 1 | F110: 0 | G110: 1 | H110: 2 | I110: 0 | J110: 1 | K110: 0 | L110: 2 | M110: 6 | N110: 10 | O110: 3 | P110: 3 | Q110: 3 | R110: 4 | S110: 4 | T110: 4 | U110: 3 | V110: 2 | W110: 0 | X110: 0 | Y110: =((SUM(Z110:AS110))+0)+0 -> 51 | Z110: 0 | AA110: 1 | AB110: 2 | AC110: 1 | AD110: 1 | AE110: 1 | AF110: 2 | AG110: 4 | AH110: 5 | AI110: 5 | AJ110: 1 | AK110: 2 | AL110: 2 | AM110: 3 | AN110: 6 | AO110: 5 | AP110: 2 | AQ110: 6 | AR110: 2 | AS110: 0
A111: 110 | B111: 22086 Castiello de Jaca | C111: 22086 | D111: =((SUM(E111:X111)))+0 -> 139 | E111: 2 | F111: 6 | G111: 4 | H111: 4 | I111: 10 | J111: 7 | K111: 9 | L111: 8 | M111: 10 | N111: 12 | O111: 14 | P111: 10 | Q111: 16 | R111: 11 | S111: 6 | T111: 5 | U111: 2 | V111: 2 | W111: 1 | X111: 0 | Y111: =((SUM(Z111:AS111))+0)+0 -> 110 | Z111: 3 | AA111: 3 | AB111: 6 | AC111: 2 | AD111: 2 | AE111: 4 | AF111: 7 | AG111: 8 | AH111: 7 | AI111: 14 | AJ111: 9 | AK111: 11 | AL111: 13 | AM111: 5 | AN111: 2 | AO111: 5 | AP111: 2 | AQ111: 4 | AR111: 3 | AS111: 0
A112: 111 | B112: 22087 Castigaleu | C112: 22087 | D112: =((SUM(E112:X112)))+0 -> 55 | E112: 3 | F112: 3 | G112: 3 | H112: 1 | I112: 4 | J112: 2 | K112: 3 | L112: 3 | M112: 7 | N112: 5 | O112: 4 | P112: 5 | Q112: 4 | R112: 2 | S112: 4 | T112: 1 | U112: 1 | V112: 0 | W112: 0 | X112: 0 | Y112: =((SUM(Z112:AS112))+0)+0 -> 33 | Z112: 0 | AA112: 2 | AB112: 2 | AC112: 0 | AD112: 0 | AE112: 4 | AF112: 2 | AG112: 2 | AH112: 0 | AI112: 4 | AJ112: 1 | AK112: 3 | AL112: 2 | AM112: 2 | AN112: 5 | AO112: 1 | AP112: 0 | AQ112: 1 | AR112: 2 | AS112: 0
A113: 112 | B113: 22088 Castillazuelo | C113: 22088 | D113: =((SUM(E113:X113)))+0 -> 86 | E113: 1 | F113: 1 | G113: 4 | H113: 4 | I113: 4 | J113: 2 | K113: 8 | L113: 4 | M113: 8 | N113: 4 | O113: 6 | P113: 8 | Q113: 10 | R113: 2 | S113: 7 | T113: 3 | U113: 1 | V113: 5 | W113: 3 | X113: 1 | Y113: =((SUM(Z113:AS113))+0)+0 -> 78 | Z113: 2 | AA113: 1 | AB113: 2 | AC113: 4 | AD113: 2 | AE113: 4 | AF113: 0 | AG113: 2 | AH113: 3 | AI113: 5 | AJ113: 12 | AK113: 6 | AL113: 4 | AM113: 3 | AN113: 9 | AO113: 3 | AP113: 7 | AQ113: 4 | AR113: 3 | AS113: 2
A114: 113 | B114: 22089 Castillonroy | C114: 22089 | D114: =((SUM(E114:X114)))+0 -> 170 | E114: 2 | F114: 5 | G114: 5 | H114: 8 | I114: 7 | J114: 13 | K114: 13 | L114: 8 | M114: 14 | N114: 14 | O114: 10 | P114: 13 | Q114: 12 | R114: 12 | S114: 16 | T114: 8 | U114: 7 | V114: 2 | W114: 1 | X114: 0 | Y114: =((SUM(Z114:AS114))+0)+0 -> 158 | Z114: 9 | AA114: 4 | AB114: 9 | AC114: 2 | AD114: 8 | AE114: 6 | AF114: 10 | AG114: 14 | AH114: 9 | AI114: 7 | AJ114: 5 | AK114: 14 | AL114: 12 | AM114: 11 | AN114: 10 | AO114: 8 | AP114: 6 | AQ114: 8 | AR114: 5 | AS114: 1
A115: 114 | B115: 22090 Colungo | C115: 22090 | D115: =((SUM(E115:X115)))+0 -> 69 | E115: 1 | F115: 0 | G115: 4 | H115: 1 | I115: 1 | J115: 0 | K115: 2 | L115: 6 | M115: 3 | N115: 9 | O115: 6 | P115: 8 | Q115: 6 | R115: 4 | S115: 6 | T115: 7 | U115: 2 | V115: 1 | W115: 2 | X115: 0 | Y115: =((SUM(Z115:AS115))+0)+0 -> 54 | Z115: 4 | AA115: 0 | AB115: 1 | AC115: 1 | AD115: 2 | AE115: 1 | AF115: 2 | AG115: 6 | AH115: 7 | AI115: 1 | AJ115: 5 | AK115: 2 | AL115: 0 | AM115: 3 | AN115: 7 | AO115: 5 | AP115: 3 | AQ115: 3 | AR115: 0 | AS115: 1
A116: 115 | B116: 22094 Chalamera | C116: 22094 | D116: =((SUM(E116:X116)))+0 -> 63 | E116: 2 | F116: 2 | G116: 3 | H116: 1 | I116: 2 | J116: 3 | K116: 3 | L116: 4 | M116: 3 | N116: 2 | O116: 2 | P116: 9 | Q116: 10 | R116: 3 | S116: 2 | T116: 2 | U116: 2 | V116: 3 | W116: 3 | X116: 2 | Y116: =((SUM(Z116:AS116))+0)+0 -> 54 | Z116: 1 | AA116: 1 | AB116: 4 | AC116: 1 | AD116: 4 | AE116: 4 | AF116: 1 | AG116: 3 | AH116: 1 | AI116: 1 | AJ116: 3 | AK116: 4 | AL116: 5 | AM116: 3 | AN116: 2 | AO116: 2 | AP116: 4 | AQ116: 5 | AR116: 3 | AS116: 2
A117: 116 | B117: 22095 Chía | C117: 22095 | D117: =((SUM(E117:X117)))+0 -> 54 | E117: 1 | F117: 4 | G117: 4 | H117: 2 | I117: 4 | J117: 1 | K117: 3 | L117: 2 | M117: 3 | N117: 8 | O117: 1 | P117: 7 | Q117: 3 | R117: 1 | S117: 4 | T117: 2 | U117: 1 | V117: 1 | W117: 1 | X117: 1 | Y117: =((SUM(Z117:AS117))+0)+0 -> 33 | Z117: 1 | AA117: 3 | AB117: 0 | AC117: 0 | AD117: 0 | AE117: 1 | AF117: 0 | AG117: 2 | AH117: 3 | AI117: 3 | AJ117: 1 | AK117: 4 | AL117: 2 | AM117: 1 | AN117: 0 | AO117: 3 | AP117: 1 | AQ117: 2 | AR117: 5 | AS117: 1
A118: 117 | B118: 22096 Chimillas | C118: 22096 | D118: =((SUM(E118:X118)))+0 -> 206 | E118: 5 | F118: 9 | G118: 22 | H118: 7 | I118: 4 | J118: 6 | K118: 17 | L118: 8 | M118: 15 | N118: 21 | O118: 16 | P118: 28 | Q118: 13 | R118: 11 | S118: 11 | T118: 7 | U118: 2 | V118: 1 | W118: 3 | X118: 0 | Y118: =((SUM(Z118:AS118))+0)+0 -> 196 | Z118: 3 | AA118: 5 | AB118: 13 | AC118: 9 | AD118: 13 | AE118: 13 | AF118: 6 | AG118: 5 | AH118: 16 | AI118: 20 | AJ118: 13 | AK118: 18 | AL118: 12 | AM118: 17 | AN118: 8 | AO118: 9 | AP118: 7 | AQ118: 5 | AR118: 1 | AS118: 3
A119: 118 | B119: 22099 Esplús | C119: 22099 | D119: =((SUM(E119:X119)))+0 -> 342 | E119: 13 | F119: 15 | G119: 10 | H119: 12 | I119: 20 | J119: 17 | K119: 16 | L119: 26 | M119: 27 | N119: 26 | O119: 24 | P119: 33 | Q119: 30 | R119: 19 | S119: 10 | T119: 14 | U119: 15 | V119: 10 | W119: 3 | X119: 2 | Y119: =((SUM(Z119:AS119))+0)+0 -> 314 | Z119: 12 | AA119: 9 | AB119: 6 | AC119: 7 | AD119: 20 | AE119: 17 | AF119: 7 | AG119: 14 | AH119: 25 | AI119: 27 | AJ119: 22 | AK119: 22 | AL119: 16 | AM119: 19 | AN119: 29 | AO119: 15 | AP119: 18 | AQ119: 12 | AR119: 10 | AS119: 7
A120: 119 | B120: 22102 Estada | C120: 22102 | D120: =((SUM(E120:X120)))+0 -> 117 | E120: 4 | F120: 2 | G120: 2 | H120: 4 | I120: 7 | J120: 9 | K120: 5 | L120: 5 | M120: 10 | N120: 6 | O120: 5 | P120: 14 | Q120: 10 | R120: 9 | S120: 11 | T120: 3 | U120: 7 | V120: 3 | W120: 1 | X120: 0 | Y120: =((SUM(Z120:AS120))+0)+0 -> 89 | Z120: 2 | AA120: 0 | AB120: 4 | AC120: 1 | AD120: 6 | AE120: 4 | AF120: 3 | AG120: 2 | AH120: 1 | AI120: 6 | AJ120: 9 | AK120: 10 | AL120: 9 | AM120: 5 | AN120: 4 | AO120: 9 | AP120: 5 | AQ120: 4 | AR120: 4 | AS120: 1
A121: 120 | B121: 22103 Estadilla | C121: 22103 | D121: =((SUM(E121:X121)))+0 -> 415 | E121: 14 | F121: 20 | G121: 16 | H121: 8 | I121: 27 | J121: 16 | K121: 16 | L121: 27 | M121: 45 | N121: 21 | O121: 36 | P121: 33 | Q121: 26 | R121: 22 | S121: 28 | T121: 23 | U121: 10 | V121: 20 | W121: 6 | X121: 1 | Y121: =((SUM(Z121:AS121))+0)+0 -> 397 | Z121: 14 | AA121: 11 | AB121: 18 | AC121: 17 | AD121: 19 | AE121: 18 | AF121: 21 | AG121: 26 | AH121: 30 | AI121: 19 | AJ121: 24 | AK121: 33 | AL121: 28 | AM121: 18 | AN121: 23 | AO121: 26 | AP121: 18 | AQ121: 20 | AR121: 10 | AS121: 4
A122: 121 | B122: 22105 Estopiñán del Castillo | C122: 22105 | D122: =((SUM(E122:X122)))+0 -> 62 | E122: 0 | F122: 0 | G122: 3 | H122: 4 | I122: 4 | J122: 4 | K122: 2 | L122: 3 | M122: 3 | N122: 3 | O122: 4 | P122: 11 | Q122: 3 | R122: 4 | S122: 5 | T122: 1 | U122: 1 | V122: 6 | W122: 1 | X122: 0 | Y122: =((SUM(Z122:AS122))+0)+0 -> 55 | Z122: 1 | AA122: 2 | AB122: 2 | AC122: 3 | AD122: 1 | AE122: 3 | AF122: 1 | AG122: 1 | AH122: 2 | AI122: 1 | AJ122: 9 | AK122: 9 | AL122: 1 | AM122: 3 | AN122: 5 | AO122: 0 | AP122: 2 | AQ122: 4 | AR122: 3 | AS122: 2
A123: 122 | B123: 22106 Fago | C123: 22106 | D123: =((SUM(E123:X123)))+0 -> 15 | E123: 0 | F123: 0 | G123: 0 | H123: 0 | I123: 0 | J123: 2 | K123: 0 | L123: 1 | M123: 0 | N123: 2 | O123: 3 | P123: 2 | Q123: 0 | R123: 2 | S123: 1 | T123: 0 | U123: 0 | V123: 2 | W123: 0 | X123: 0 | Y123: =((SUM(Z123:AS123))+0)+0 -> 10 | Z123: 0 | AA123: 0 | AB123: 0 | AC123: 1 | AD123: 0 | AE123: 0 | AF123: 1 | AG123: 0 | AH123: 1 | AI123: 1 | AJ123: 1 | AK123: 0 | AL123: 1 | AM123: 0 | AN123: 0 | AO123: 1 | AP123: 1 | AQ123: 1 | AR123: 1 | AS123: 0
A124: 123 | B124: 22107 Fanlo | C124: 22107 | D124: =((SUM(E124:X124)))+0 -> 67 | E124: 0 | F124: 1 | G124: 1 | H124: 1 | I124: 0 | J124: 2 | K124: 4 | L124: 0 | M124: 7 | N124: 5 | O124: 5 | P124: 7 | Q124: 10 | R124: 8 | S124: 6 | T124: 2 | U124: 5 | V124: 3 | W124: 0 | X124: 0 | Y124: =((SUM(Z124:AS124))+0)+0 -> 39 | Z124: 1 | AA124: 4 | AB124: 0 | AC124: 0 | AD124: 0 | AE124: 1 | AF124: 2 | AG124: 3 | AH124: 3 | AI124: 2 | AJ124: 4 | AK124: 2 | AL124: 5 | AM124: 3 | AN124: 3 | AO124: 1 | AP124: 1 | AQ124: 2 | AR124: 1 | AS124: 1
A125: 124 | B125: 22109 Fiscal | C125: 22109 | D125: =((SUM(E125:X125)))+0 -> 198 | E125: 6 | F125: 10 | G125: 7 | H125: 4 | I125: 7 | J125: 8 | K125: 12 | L125: 11 | M125: 15 | N125: 21 | O125: 23 | P125: 18 | Q125: 12 | R125: 15 | S125: 5 | T125: 8 | U125: 5 | V125: 8 | W125: 2 | X125: 1 | Y125: =((SUM(Z125:AS125))+0)+0 -> 163 | Z125: 9 | AA125: 4 | AB125: 6 | AC125: 8 | AD125: 7 | AE125: 5 | AF125: 4 | AG125: 15 | AH125: 11 | AI125: 17 | AJ125: 15 | AK125: 15 | AL125: 9 | AM125: 5 | AN125: 11 | AO125: 8 | AP125: 5 | AQ125: 5 | AR125: 3 | AS125: 1
A126: 125 | B126: 22110 Fonz | C126: 22110 | D126: =((SUM(E126:X126)))+0 -> 431 | E126: 12 | F126: 8 | G126: 14 | H126: 23 | I126: 21 | J126: 22 | K126: 33 | L126: 20 | M126: 26 | N126: 25 | O126: 36 | P126: 29 | Q126: 34 | R126: 32 | S126: 20 | T126: 28 | U126: 26 | V126: 15 | W126: 7 | X126: 0 | Y126: =((SUM(Z126:AS126))+0)+0 -> 426 | Z126: 5 | AA126: 11 | AB126: 18 | AC126: 16 | AD126: 23 | AE126: 14 | AF126: 16 | AG126: 19 | AH126: 23 | AI126: 32 | AJ126: 31 | AK126: 27 | AL126: 36 | AM126: 23 | AN126: 20 | AO126: 35 | AP126: 20 | AQ126: 31 | AR126: 19 | AS126: 7
A127: 126 | B127: 22111 Foradada del Toscar | C127: 22111 | D127: =((SUM(E127:X127)))+0 -> 92 | E127: 1 | F127: 1 | G127: 1 | H127: 4 | I127: 3 | J127: 3 | K127: 4 | L127: 8 | M127: 3 | N127: 4 | O127: 7 | P127: 12 | Q127: 9 | R127: 6 | S127: 9 | T127: 6 | U127: 3 | V127: 6 | W127: 1 | X127: 1 | Y127: =((SUM(Z127:AS127))+0)+0 -> 76 | Z127: 2 | AA127: 1 | AB127: 3 | AC127: 1 | AD127: 4 | AE127: 2 | AF127: 3 | AG127: 4 | AH127: 6 | AI127: 4 | AJ127: 7 | AK127: 6 | AL127: 7 | AM127: 8 | AN127: 5 | AO127: 4 | AP127: 1 | AQ127: 6 | AR127: 1 | AS127: 1
A128: 127 | B128: 22112 Fraga | C128: 22112 | D128: =((SUM(E128:X128)))+0 -> 7819 | E128: 376 | F128: 435 | G128: 427 | H128: 416 | I128: 450 | J128: 436 | K128: 464 | L128: 574 | M128: 748 | N128: 699 | O128: 624 | P128: 540 | Q128: 436 | R128: 368 | S128: 268 | T128: 222 | U128: 155 | V128: 126 | W128: 45 | X128: 10 | Y128: =((SUM(Z128:AS128))+0)+0 -> 7475 | Z128: 359 | AA128: 432 | AB128: 427 | AC128: 372 | AD128: 373 | AE128: 389 | AF128: 477 | AG128: 504 | AH128: 601 | AI128: 575 | AJ128: 544 | AK128: 475 | AL128: 454 | AM128: 356 | AN128: 319 | AO128: 265 | AP128: 208 | AQ128: 200 | AR128: 108 | AS128: 37
A129: 128 | B129: 22113 Fueva (La) | C129: 22113 | D129: =((SUM(E129:X129)))+0 -> 328 | E129: 13 | F129: 19 | G129: 21 | H129: 10 | I129: 11 | J129: 14 | K129: 14 | L129: 20 | M129: 21 | N129: 29 | O129: 14 | P129: 27 | Q129: 25 | R129: 25 | S129: 28 | T129: 17 | U129: 8 | V129: 6 | W129: 4 | X129: 2 | Y129: =((SUM(Z129:AS129))+0)+0 -> 281 | Z129: 9 | AA129: 12 | AB129: 15 | AC129: 4 | AD129: 11 | AE129: 10 | AF129: 17 | AG129: 27 | AH129: 19 | AI129: 15 | AJ129: 17 | AK129: 19 | AL129: 20 | AM129: 27 | AN129: 16 | AO129: 13 | AP129: 10 | AQ129: 11 | AR129: 5 | AS129: 4
A130: 129 | B130: 22114 Gistaín | C130: 22114 | D130: =((SUM(E130:X130)))+0 -> 74 | E130: 1 | F130: 0 | G130: 4 | H130: 2 | I130: 1 | J130: 0 | K130: 2 | L130: 1 | M130: 5 | N130: 5 | O130: 3 | P130: 10 | Q130: 7 | R130: 3 | S130: 8 | T130: 8 | U130: 7 | V130: 5 | W130: 2 | X130: 0 | Y130: =((SUM(Z130:AS130))+0)+0 -> 55 | Z130: 0 | AA130: 4 | AB130: 3 | AC130: 3 | AD130: 0 | AE130: 1 | AF130: 0 | AG130: 4 | AH130: 8 | AI130: 4 | AJ130: 4 | AK130: 4 | AL130: 1 | AM130: 1 | AN130: 7 | AO130: 3 | AP130: 2 | AQ130: 5 | AR130: 1 | AS130: 0
A131: 130 | B131: 22115 Grado (El) | C131: 22115 | D131: =((SUM(E131:X131)))+0 -> 208 | E131: 4 | F131: 3 | G131: 5 | H131: 3 | I131: 7 | J131: 9 | K131: 18 | L131: 12 | M131: 8 | N131: 11 | O131: 18 | P131: 24 | Q131: 17 | R131: 21 | S131: 18 | T131: 10 | U131: 4 | V131: 10 | W131: 5 | X131: 1 | Y131: =((SUM(Z131:AS131))+0)+0 -> 197 | Z131: 5 | AA131: 5 | AB131: 8 | AC131: 2 | AD131: 5 | AE131: 8 | AF131: 11 | AG131: 8 | AH131: 10 | AI131: 10 | AJ131: 18 | AK131: 16 | AL131: 24 | AM131: 14 | AN131: 12 | AO131: 12 | AP131: 10 | AQ131: 13 | AR131: 3 | AS131: 3
A132: 131 | B132: 22116 Grañén | C132: 22116 | D132: =((SUM(E132:X132)))+0 -> 899 | E132: 32 | F132: 29 | G132: 38 | H132: 30 | I132: 38 | J132: 54 | K132: 57 | L132: 69 | M132: 64 | N132: 78 | O132: 64 | P132: 65 | Q132: 69 | R132: 64 | S132: 43 | T132: 41 | U132: 27 | V132: 20 | W132: 14 | X132: 3 | Y132: =((SUM(Z132:AS132))+0)+0 -> 828 | Z132: 34 | AA132: 30 | AB132: 28 | AC132: 35 | AD132: 33 | AE132: 40 | AF132: 43 | AG132: 46 | AH132: 60 | AI132: 58 | AJ132: 54 | AK132: 65 | AL132: 59 | AM132: 45 | AN132: 42 | AO132: 50 | AP132: 24 | AQ132: 45 | AR132: 26 | AS132: 11
A133: 132 | B133: 22117 Graus | C133: 22117 | D133: =((SUM(E133:X133)))+0 -> 1698 | E133: 78 | F133: 72 | G133: 66 | H133: 87 | I133: 79 | J133: 86 | K133: 99 | L133: 102 | M133: 121 | N133: 132 | O133: 122 | P133: 153 | Q133: 134 | R133: 104 | S133: 90 | T133: 57 | U133: 52 | V133: 41 | W133: 17 | X133: 6 | Y133: =((SUM(Z133:AS133))+0)+0 -> 1722 | Z133: 61 | AA133: 79 | AB133: 70 | AC133: 80 | AD133: 77 | AE133: 84 | AF133: 87 | AG133: 104 | AH133: 133 | AI133: 88 | AJ133: 155 | AK133: 143 | AL133: 117 | AM133: 91 | AN133: 96 | AO133: 70 | AP133: 51 | AQ133: 77 | AR133: 47 | AS133: 12
A134: 133 | B134: 22119 Gurrea de Gállego | C134: 22119 | D134: =((SUM(E134:X134)))+0 -> 751 | E134: 23 | F134: 24 | G134: 20 | H134: 20 | I134: 19 | J134: 35 | K134: 34 | L134: 48 | M134: 53 | N134: 53 | O134: 66 | P134: 61 | Q134: 55 | R134: 72 | S134: 54 | T134: 56 | U134: 23 | V134: 23 | W134: 8 | X134: 4 | Y134: =((SUM(Z134:AS134))+0)+0 -> 709 | Z134: 24 | AA134: 20 | AB134: 20 | AC134: 19 | AD134: 17 | AE134: 23 | AF134: 33 | AG134: 37 | AH134: 42 | AI134: 53 | AJ134: 56 | AK134: 42 | AL134: 56 | AM134: 53 | AN134: 56 | AO134: 48 | AP134: 38 | AQ134: 40 | AR134: 18 | AS134: 14
A135: 134 | B135: 22122 Hoz de Jaca | C135: 22122 | D135: =((SUM(E135:X135)))+0 -> 40 | E135: 0 | F135: 0 | G135: 0 | H135: 0 | I135: 5 | J135: 1 | K135: 1 | L135: 1 | M135: 2 | N135: 4 | O135: 6 | P135: 5 | Q135: 4 | R135: 3 | S135: 1 | T135: 3 | U135: 2 | V135: 1 | W135: 1 | X135: 0 | Y135: =((SUM(Z135:AS135))+0)+0 -> 37 | Z135: 0 | AA135: 0 | AB135: 1 | AC135: 4 | AD135: 1 | AE135: 0 | AF135: 2 | AG135: 0 | AH135: 1 | AI135: 2 | AJ135: 7 | AK135: 2 | AL135: 6 | AM135: 4 | AN135: 3 | AO135: 3 | AP135: 0 | AQ135: 1 | AR135: 0 | AS135: 0
A136: 135 | B136: 22124 Huerto | C136: 22124 | D136: =((SUM(E136:X136)))+0 -> 125 | E136: 1 | F136: 4 | G136: 6 | H136: 5 | I136: 8 | J136: 4 | K136: 5 | L136: 6 | M136: 11 | N136: 9 | O136: 11 | P136: 12 | Q136: 13 | R136: 5 | S136: 7 | T136: 5 | U136: 6 | V136: 3 | W136: 2 | X136: 2 | Y136: =((SUM(Z136:AS136))+0)+0 -> 105 | Z136: 1 | AA136: 4 | AB136: 4 | AC136: 4 | AD136: 3 | AE136: 2 | AF136: 7 | AG136: 6 | AH136: 7 | AI136: 4 | AJ136: 7 | AK136: 10 | AL136: 10 | AM136: 2 | AN136: 5 | AO136: 7 | AP136: 11 | AQ136: 8 | AR136: 3 | AS136: 0
A137: 136 | B137: 22125 Huesca | C137: 22125 | D137: =((SUM(E137:X137)))+0 -> 25507 | E137: 1115 | F137: 1391 | G137: 1488 | H137: 1442 | I137: 1416 | J137: 1450 | K137: 1415 | L137: 1633 | M137: 2016 | N137: 2077 | O137: 1863 | P137: 1872 | Q137: 1669 | R137: 1370 | S137: 1156 | T137: 870 | U137: 523 | V137: 481 | W137: 204 | X137: 56 | Y137: =((SUM(Z137:AS137))+0)+0 -> 27798 | Z137: 1109 | AA137: 1379 | AB137: 1433 | AC137: 1361 | AD137: 1344 | AE137: 1347 | AF137: 1348 | AG137: 1669 | AH137: 2142 | AI137: 2172 | AJ137: 2038 | AK137: 1962 | AL137: 1876 | AM137: 1679 | AN137: 1403 | AO137: 1228 | AP137: 805 | AQ137: 822 | AR137: 497 | AS137: 184
A138: 137 | B138: 22126 Ibieca | C138: 22126 | D138: =((SUM(E138:X138)))+0 -> 61 | E138: 0 | F138: 0 | G138: 1 | H138: 0 | I138: 1 | J138: 4 | K138: 2 | L138: 1 | M138: 4 | N138: 6 | O138: 6 | P138: 10 | Q138: 3 | R138: 3 | S138: 7 | T138: 8 | U138: 3 | V138: 0 | W138: 2 | X138: 0 | Y138: =((SUM(Z138:AS138))+0)+0 -> 49 | Z138: 0 | AA138: 0 | AB138: 2 | AC138: 2 | AD138: 3 | AE138: 1 | AF138: 3 | AG138: 1 | AH138: 1 | AI138: 1 | AJ138: 4 | AK138: 2 | AL138: 5 | AM138: 6 | AN138: 6 | AO138: 4 | AP138: 1 | AQ138: 5 | AR138: 1 | AS138: 1
A139: 138 | B139: 22127 Igriés | C139: 22127 | D139: =((SUM(E139:X139)))+0 -> 370 | E139: 13 | F139: 18 | G139: 28 | H139: 33 | I139: 18 | J139: 14 | K139: 17 | L139: 20 | M139: 26 | N139: 42 | O139: 45 | P139: 26 | Q139: 28 | R139: 18 | S139: 6 | T139: 9 | U139: 2 | V139: 6 | W139: 1 | X139: 0 | Y139: =((SUM(Z139:AS139))+0)+0 -> 333 | Z139: 15 | AA139: 18 | AB139: 29 | AC139: 24 | AD139: 22 | AE139: 17 | AF139: 10 | AG139: 17 | AH139: 31 | AI139: 30 | AJ139: 35 | AK139: 27 | AL139: 17 | AM139: 11 | AN139: 14 | AO139: 6 | AP139: 2 | AQ139: 5 | AR139: 3 | AS139: 0
A140: 139 | B140: 22128 Ilche | C140: 22128 | D140: =((SUM(E140:X140)))+0 -> 97 | E140: 1 | F140: 0 | G140: 1 | H140: 1 | I140: 3 | J140: 2 | K140: 9 | L140: 5 | M140: 6 | N140: 11 | O140: 7 | P140: 7 | Q140: 10 | R140: 9 | S140: 8 | T140: 3 | U140: 5 | V140: 5 | W140: 2 | X140: 2 | Y140: =((SUM(Z140:AS140))+0)+0 -> 91 | Z140: 0 | AA140: 1 | AB140: 1 | AC140: 3 | AD140: 5 | AE140: 2 | AF140: 3 | AG140: 5 | AH140: 3 | AI140: 8 | AJ140: 5 | AK140: 10 | AL140: 5 | AM140: 3 | AN140: 8 | AO140: 8 | AP140: 8 | AQ140: 8 | AR140: 3 | AS140: 2
A141: 140 | B141: 22129 Isábena | C141: 22129 | D141: =((SUM(E141:X141)))+0 -> 123 | E141: 1 | F141: 2 | G141: 1 | H141: 4 | I141: 7 | J141: 11 | K141: 14 | L141: 8 | M141: 5 | N141: 8 | O141: 7 | P141: 9 | Q141: 6 | R141: 15 | S141: 10 | T141: 7 | U141: 6 | V141: 1 | W141: 0 | X141: 1 | Y141: =((SUM(Z141:AS141))+0)+0 -> 116 | Z141: 1 | AA141: 2 | AB141: 2 | AC141: 4 | AD141: 8 | AE141: 7 | AF141: 7 | AG141: 7 | AH141: 4 | AI141: 8 | AJ141: 8 | AK141: 9 | AL141: 14 | AM141: 8 | AN141: 6 | AO141: 6 | AP141: 8 | AQ141: 4 | AR141: 1 | AS141: 2
A142: 141 | B142: 22130 Jaca | C142: 22130 | D142: =((SUM(E142:X142)))+0 -> 6594 | E142: 234 | F142: 295 | G142: 341 | H142: 319 | I142: 347 | J142: 395 | K142: 394 | L142: 453 | M142: 585 | N142: 536 | O142: 515 | P142: 523 | Q142: 491 | R142: 374 | S142: 262 | T142: 210 | U142: 143 | V142: 111 | W142: 55 | X142: 11 | Y142: =((SUM(Z142:AS142))+0)+0 -> 6843 | Z142: 259 | AA142: 335 | AB142: 338 | AC142: 334 | AD142: 341 | AE142: 317 | AF142: 315 | AG142: 418 | AH142: 577 | AI142: 553 | AJ142: 532 | AK142: 577 | AL142: 477 | AM142: 331 | AN142: 304 | AO142: 245 | AP142: 208 | AQ142: 196 | AR142: 142 | AS142: 44
A143: 142 | B143: 22131 Jasa | C143: 22131 | D143: =((SUM(E143:X143)))+0 -> 62 | E143: 1 | F143: 4 | G143: 5 | H143: 1 | I143: 3 | J143: 2 | K143: 1 | L143: 1 | M143: 2 | N143: 2 | O143: 6 | P143: 11 | Q143: 7 | R143: 6 | S143: 0 | T143: 4 | U143: 3 | V143: 1 | W143: 2 | X143: 0 | Y143: =((SUM(Z143:AS143))+0)+0 -> 43 | Z143: 1 | AA143: 0 | AB143: 0 | AC143: 0 | AD143: 1 | AE143: 5 | AF143: 2 | AG143: 1 | AH143: 5 | AI143: 3 | AJ143: 3 | AK143: 6 | AL143: 5 | AM143: 0 | AN143: 3 | AO143: 2 | AP143: 1 | AQ143: 2 | AR143: 3 | AS143: 0
A144: 143 | B144: 22133 Labuerda | C144: 22133 | D144: =((SUM(E144:X144)))+0 -> 81 | E144: 1 | F144: 8 | G144: 3 | H144: 1 | I144: 2 | J144: 6 | K144: 3 | L144: 3 | M144: 4 | N144: 4 | O144: 7 | P144: 8 | Q144: 10 | R144: 11 | S144: 1 | T144: 1 | U144: 3 | V144: 4 | W144: 1 | X144: 0 | Y144: =((SUM(Z144:AS144))+0)+0 -> 65 | Z144: 3 | AA144: 1 | AB144: 3 | AC144: 4 | AD144: 3 | AE144: 3 | AF144: 3 | AG144: 6 | AH144: 6 | AI144: 3 | AJ144: 6 | AK144: 8 | AL144: 4 | AM144: 3 | AN144: 2 | AO144: 3 | AP144: 0 | AQ144: 3 | AR144: 1 | AS144: 0
A145: 144 | B145: 22135 Laluenga | C145: 22135 | D145: =((SUM(E145:X145)))+0 -> 104 | E145: 1 | F145: 4 | G145: 0 | H145: 2 | I145: 7 | J145: 5 | K145: 7 | L145: 6 | M145: 5 | N145: 10 | O145: 10 | P145: 6 | Q145: 11 | R145: 4 | S145: 6 | T145: 9 | U145: 4 | V145: 5 | W145: 2 | X145: 0 | Y145: =((SUM(Z145:AS145))+0)+0 -> 98 | Z145: 4 | AA145: 2 | AB145: 6 | AC145: 4 | AD145: 3 | AE145: 2 | AF145: 7 | AG145: 5 | AH145: 7 | AI145: 4 | AJ145: 8 | AK145: 7 | AL145: 3 | AM145: 3 | AN145: 7 | AO145: 11 | AP145: 4 | AQ145: 9 | AR145: 2 | AS145: 0
A146: 145 | B146: 22136 Lalueza | C146: 22136 | D146: =((SUM(E146:X146)))+0 -> 463 | E146: 8 | F146: 6 | G146: 11 | H146: 24 | I146: 23 | J146: 22 | K146: 17 | L146: 26 | M146: 41 | N146: 26 | O146: 38 | P146: 35 | Q146: 40 | R146: 44 | S146: 30 | T146: 25 | U146: 18 | V146: 18 | W146: 8 | X146: 3 | Y146: =((SUM(Z146:AS146))+0)+0 -> 425 | Z146: 5 | AA146: 20 | AB146: 9 | AC146: 11 | AD146: 12 | AE146: 19 | AF146: 17 | AG146: 19 | AH146: 30 | AI146: 31 | AJ146: 28 | AK146: 27 | AL146: 34 | AM146: 34 | AN146: 31 | AO146: 37 | AP146: 15 | AQ146: 31 | AR146: 13 | AS146: 2
A147: 146 | B147: 22137 Lanaja | C147: 22137 | D147: =((SUM(E147:X147)))+0 -> 631 | E147: 17 | F147: 16 | G147: 20 | H147: 13 | I147: 28 | J147: 24 | K147: 41 | L147: 33 | M147: 44 | N147: 36 | O147: 50 | P147: 68 | Q147: 67 | R147: 50 | S147: 26 | T147: 34 | U147: 26 | V147: 20 | W147: 15 | X147: 3 | Y147: =((SUM(Z147:AS147))+0)+0 -> 558 | Z147: 10 | AA147: 11 | AB147: 12 | AC147: 17 | AD147: 17 | AE147: 33 | AF147: 27 | AG147: 36 | AH147: 18 | AI147: 31 | AJ147: 37 | AK147: 48 | AL147: 52 | AM147: 42 | AN147: 29 | AO147: 33 | AP147: 38 | AQ147: 40 | AR147: 23 | AS147: 4
A148: 147 | B148: 22139 Laperdiguera | C148: 22139 | D148: =((SUM(E148:X148)))+0 -> 51 | E148: 0 | F148: 0 | G148: 1 | H148: 1 | I148: 1 | J148: 1 | K148: 4 | L148: 3 | M148: 5 | N148: 1 | O148: 6 | P148: 5 | Q148: 6 | R148: 4 | S148: 1 | T148: 4 | U148: 2 | V148: 5 | W148: 1 | X148: 0 | Y148: =((SUM(Z148:AS148))+0)+0 -> 44 | Z148: 0 | AA148: 0 | AB148: 3 | AC148: 1 | AD148: 3 | AE148: 2 | AF148: 1 | AG148: 3 | AH148: 3 | AI148: 1 | AJ148: 2 | AK148: 4 | AL148: 5 | AM148: 2 | AN148: 2 | AO148: 6 | AP148: 2 | AQ148: 2 | AR148: 2 | AS148: 0
A149: 148 | B149: 22141 Lascellas-Ponzano | C149: 22141 | D149: =((SUM(E149:X149)))+0 -> 84 | E149: 2 | F149: 4 | G149: 2 | H149: 3 | I149: 5 | J149: 2 | K149: 6 | L149: 7 | M149: 8 | N149: 6 | O149: 4 | P149: 5 | Q149: 12 | R149: 4 | S149: 4 | T149: 3 | U149: 4 | V149: 3 | W149: 0 | X149: 0 | Y149: =((SUM(Z149:AS149))+0)+0 -> 51 | Z149: 1 | AA149: 2 | AB149: 2 | AC149: 2 | AD149: 2 | AE149: 1 | AF149: 0 | AG149: 2 | AH149: 3 | AI149: 4 | AJ149: 2 | AK149: 6 | AL149: 8 | AM149: 5 | AN149: 2 | AO149: 2 | AP149: 4 | AQ149: 1 | AR149: 2 | AS149: 0
A150: 149 | B150: 22142 Lascuarre | C150: 22142 | D150: =((SUM(E150:X150)))+0 -> 72 | E150: 2 | F150: 7 | G150: 2 | H150: 0 | I150: 2 | J150: 4 | K150: 4 | L150: 4 | M150: 6 | N150: 4 | O150: 7 | P150: 3 | Q150: 7 | R150: 4 | S150: 5 | T150: 5 | U150: 2 | V150: 2 | W150: 2 | X150: 0 | Y150: =((SUM(Z150:AS150))+0)+0 -> 69 | Z150: 0 | AA150: 3 | AB150: 3 | AC150: 4 | AD150: 4 | AE150: 1 | AF150: 5 | AG150: 3 | AH150: 4 | AI150: 3 | AJ150: 3 | AK150: 6 | AL150: 9 | AM150: 4 | AN150: 4 | AO150: 6 | AP150: 2 | AQ150: 3 | AR150: 1 | AS150: 1
A151: 150 | B151: 22143 Laspaúles | C151: 22143 | D151: =((SUM(E151:X151)))+0 -> 127 | E151: 0 | F151: 5 | G151: 4 | H151: 5 | I151: 3 | J151: 7 | K151: 3 | L151: 9 | M151: 10 | N151: 8 | O151: 12 | P151: 8 | Q151: 9 | R151: 14 | S151: 7 | T151: 9 | U151: 7 | V151: 3 | W151: 2 | X151: 2 | Y151: =((SUM(Z151:AS151))+0)+0 -> 101 | Z151: 2 | AA151: 2 | AB151: 2 | AC151: 5 | AD151: 2 | AE151: 4 | AF151: 5 | AG151: 7 | AH151: 5 | AI151: 13 | AJ151: 11 | AK151: 6 | AL151: 7 | AM151: 6 | AN151: 8 | AO151: 5 | AP151: 3 | AQ151: 7 | AR151: 1 | AS151: 0
A152: 151 | B152: 22144 Laspuña | C152: 22144 | D152: =((SUM(E152:X152)))+0 -> 155 | E152: 3 | F152: 8 | G152: 5 | H152: 4 | I152: 2 | J152: 3 | K152: 10 | L152: 8 | M152: 13 | N152: 13 | O152: 16 | P152: 4 | Q152: 10 | R152: 18 | S152: 14 | T152: 7 | U152: 5 | V152: 7 | W152: 3 | X152: 2 | Y152: =((SUM(Z152:AS152))+0)+0 -> 131 | Z152: 5 | AA152: 3 | AB152: 3 | AC152: 4 | AD152: 6 | AE152: 7 | AF152: 6 | AG152: 8 | AH152: 12 | AI152: 10 | AJ152: 6 | AK152: 8 | AL152: 10 | AM152: 10 | AN152: 6 | AO152: 10 | AP152: 4 | AQ152: 9 | AR152: 3 | AS152: 1
A153: 152 | B153: 22149 Loarre | C153: 22149 | D153: =((SUM(E153:X153)))+0 -> 192 | E153: 5 | F153: 3 | G153: 1 | H153: 6 | I153: 6 | J153: 8 | K153: 8 | L153: 7 | M153: 14 | N153: 14 | O153: 21 | P153: 21 | Q153: 13 | R153: 12 | S153: 17 | T153: 16 | U153: 7 | V153: 8 | W153: 5 | X153: 0 | Y153: =((SUM(Z153:AS153))+0)+0 -> 161 | Z153: 1 | AA153: 7 | AB153: 4 | AC153: 4 | AD153: 7 | AE153: 3 | AF153: 8 | AG153: 5 | AH153: 14 | AI153: 16 | AJ153: 10 | AK153: 12 | AL153: 16 | AM153: 10 | AN153: 6 | AO153: 18 | AP153: 9 | AQ153: 8 | AR153: 2 | AS153: 1
A154: 153 | B154: 22150 Loporzano | C154: 22150 | D154: =((SUM(E154:X154)))+0 -> 321 | E154: 4 | F154: 6 | G154: 10 | H154: 10 | I154: 9 | J154: 13 | K154: 7 | L154: 24 | M154: 24 | N154: 27 | O154: 22 | P154: 32 | Q154: 29 | R154: 23 | S154: 35 | T154: 27 | U154: 10 | V154: 5 | W154: 1 | X154: 3 | Y154: =((SUM(Z154:AS154))+0)+0 -> 253 | Z154: 4 | AA154: 4 | AB154: 13 | AC154: 9 | AD154: 3 | AE154: 8 | AF154: 9 | AG154: 18 | AH154: 14 | AI154: 24 | AJ154: 22 | AK154: 19 | AL154: 21 | AM154: 28 | AN154: 20 | AO154: 18 | AP154: 7 | AQ154: 6 | AR154: 3 | AS154: 3
A155: 154 | B155: 22151 Loscorrales | C155: 22151 | D155: =((SUM(E155:X155)))+0 -> 47 | E155: 0 | F155: 2 | G155: 0 | H155: 0 | I155: 2 | J155: 3 | K155: 2 | L155: 3 | M155: 6 | N155: 6 | O155: 5 | P155: 3 | Q155: 3 | R155: 4 | S155: 5 | T155: 0 | U155: 2 | V155: 1 | W155: 0 | X155: 0 | Y155: =((SUM(Z155:AS155))+0)+0 -> 51 | Z155: 4 | AA155: 2 | AB155: 5 | AC155: 0 | AD155: 0 | AE155: 3 | AF155: 5 | AG155: 0 | AH155: 2 | AI155: 6 | AJ155: 2 | AK155: 5 | AL155: 2 | AM155: 2 | AN155: 3 | AO155: 2 | AP155: 1 | AQ155: 4 | AR155: 0 | AS155: 3
A156: 155 | B156: 22155 Monesma y Cajigar | C156: 22155 | D156: =((SUM(E156:X156)))+0 -> 36 | E156: 0 | F156: 1 | G156: 0 | H156: 0 | I156: 0 | J156: 4 | K156: 1 | L156: 4 | M156: 2 | N156: 1 | O156: 2 | P156: 3 | Q156: 4 | R156: 5 | S156: 1 | T156: 2 | U156: 2 | V156: 3 | W156: 1 | X156: 0 | Y156: =((SUM(Z156:AS156))+0)+0 -> 30 | Z156: 0 | AA156: 1 | AB156: 0 | AC156: 0 | AD156: 1 | AE156: 0 | AF156: 0 | AG156: 3 | AH156: 2 | AI156: 1 | AJ156: 3 | AK156: 2 | AL156: 4 | AM156: 4 | AN156: 1 | AO156: 2 | AP156: 2 | AQ156: 1 | AR156: 3 | AS156: 0
A157: 156 | B157: 22156 Monflorite-Lascasas | C157: 22156 | D157: =((SUM(E157:X157)))+0 -> 240 | E157: 17 | F157: 21 | G157: 14 | H157: 11 | I157: 3 | J157: 13 | K157: 18 | L157: 19 | M157: 15 | N157: 27 | O157: 16 | P157: 13 | Q157: 18 | R157: 15 | S157: 6 | T157: 9 | U157: 0 | V157: 3 | W157: 2 | X157: 0 | Y157: =((SUM(Z157:AS157))+0)+0 -> 202 | Z157: 10 | AA157: 9 | AB157: 20 | AC157: 19 | AD157: 4 | AE157: 9 | AF157: 17 | AG157: 12 | AH157: 19 | AI157: 15 | AJ157: 15 | AK157: 16 | AL157: 14 | AM157: 9 | AN157: 4 | AO157: 1 | AP157: 1 | AQ157: 5 | AR157: 3 | AS157: 0
A158: 157 | B158: 22157 Montanuy | C158: 22157 | D158: =((SUM(E158:X158)))+0 -> 130 | E158: 1 | F158: 3 | G158: 1 | H158: 4 | I158: 5 | J158: 4 | K158: 6 | L158: 12 | M158: 7 | N158: 11 | O158: 11 | P158: 15 | Q158: 19 | R158: 13 | S158: 8 | T158: 2 | U158: 4 | V158: 2 | W158: 1 | X158: 1 | Y158: =((SUM(Z158:AS158))+0)+0 -> 94 | Z158: 1 | AA158: 2 | AB158: 1 | AC158: 4 | AD158: 1 | AE158: 6 | AF158: 4 | AG158: 6 | AH158: 6 | AI158: 6 | AJ158: 7 | AK158: 4 | AL158: 13 | AM158: 7 | AN158: 6 | AO158: 6 | AP158: 7 | AQ158: 5 | AR158: 2 | AS158: 0
A159: 158 | B159: 22158 Monzón | C159: 22158 | D159: =((SUM(E159:X159)))+0 -> 8915 | E159: 404 | F159: 497 | G159: 531 | H159: 553 | I159: 469 | J159: 470 | K159: 463 | L159: 581 | M159: 709 | N159: 759 | O159: 757 | P159: 699 | Q159: 563 | R159: 419 | S159: 331 | T159: 289 | U159: 185 | V159: 157 | W159: 63 | X159: 16 | Y159: =((SUM(Z159:AS159))+0)+0 -> 8735 | Z159: 365 | AA159: 459 | AB159: 474 | AC159: 448 | AD159: 461 | AE159: 463 | AF159: 469 | AG159: 530 | AH159: 607 | AI159: 728 | AJ159: 655 | AK159: 660 | AL159: 527 | AM159: 428 | AN159: 370 | AO159: 350 | AP159: 314 | AQ159: 252 | AR159: 127 | AS159: 48
A160: 159 | B160: 22160 Naval | C160: 22160 | D160: =((SUM(E160:X160)))+0 -> 142 | E160: 2 | F160: 2 | G160: 2 | H160: 5 | I160: 7 | J160: 8 | K160: 10 | L160: 6 | M160: 20 | N160: 8 | O160: 13 | P160: 10 | Q160: 10 | R160: 11 | S160: 13 | T160: 6 | U160: 4 | V160: 3 | W160: 1 | X160: 1 | Y160: =((SUM(Z160:AS160))+0)+0 -> 121 | Z160: 8 | AA160: 6 | AB160: 8 | AC160: 6 | AD160: 0 | AE160: 5 | AF160: 4 | AG160: 9 | AH160: 10 | AI160: 8 | AJ160: 6 | AK160: 7 | AL160: 15 | AM160: 6 | AN160: 4 | AO160: 7 | AP160: 3 | AQ160: 6 | AR160: 1 | AS160: 2
A161: 160 | B161: 22162 Novales | C161: 22162 | D161: =((SUM(E161:X161)))+0 -> 78 | E161: 3 | F161: 3 | G161: 1 | H161: 3 | I161: 2 | J161: 2 | K161: 6 | L161: 7 | M161: 10 | N161: 5 | O161: 3 | P161: 10 | Q161: 7 | R161: 3 | S161: 8 | T161: 4 | U161: 0 | V161: 0 | W161: 1 | X161: 0 | Y161: =((SUM(Z161:AS161))+0)+0 -> 77 | Z161: 0 | AA161: 3 | AB161: 3 | AC161: 5 | AD161: 2 | AE161: 4 | AF161: 4 | AG161: 9 | AH161: 5 | AI161: 4 | AJ161: 5 | AK161: 2 | AL161: 10 | AM161: 3 | AN161: 6 | AO161: 2 | AP161: 4 | AQ161: 5 | AR161: 1 | AS161: 0
A162: 161 | B162: 22163 Nueno | C162: 22163 | D162: =((SUM(E162:X162)))+0 -> 332 | E162: 9 | F162: 18 | G162: 18 | H162: 11 | I162: 19 | J162: 7 | K162: 15 | L162: 23 | M162: 20 | N162: 22 | O162: 26 | P162: 33 | Q162: 25 | R162: 28 | S162: 30 | T162: 20 | U162: 5 | V162: 2 | W162: 1 | X162: 0 | Y162: =((SUM(Z162:AS162))+0)+0 -> 252 | Z162: 9 | AA162: 13 | AB162: 16 | AC162: 17 | AD162: 9 | AE162: 6 | AF162: 15 | AG162: 14 | AH162: 20 | AI162: 18 | AJ162: 18 | AK162: 18 | AL162: 24 | AM162: 16 | AN162: 20 | AO162: 7 | AP162: 5 | AQ162: 3 | AR162: 3 | AS162: 1
A163: 162 | B163: 22164 Olvena | C163: 22164 | D163: =((SUM(E163:X163)))+0 -> 33 | E163: 2 | F163: 2 | G163: 1 | H163: 3 | I163: 1 | J163: 0 | K163: 2 | L163: 0 | M163: 2 | N163: 3 | O163: 0 | P163: 2 | Q163: 1 | R163: 4 | S163: 3 | T163: 3 | U163: 1 | V163: 2 | W163: 1 | X163: 0 | Y163: =((SUM(Z163:AS163))+0)+0 -> 34 | Z163: 0 | AA163: 0 | AB163: 3 | AC163: 3 | AD163: 1 | AE163: 1 | AF163: 0 | AG163: 0 | AH163: 3 | AI163: 3 | AJ163: 3 | AK163: 2 | AL163: 0 | AM163: 4 | AN163: 5 | AO163: 2 | AP163: 2 | AQ163: 0 | AR163: 1 | AS163: 1
A164: 163 | B164: 22165 Ontiñena | C164: 22165 | D164: =((SUM(E164:X164)))+0 -> 266 | E164: 4 | F164: 4 | G164: 2 | H164: 11 | I164: 14 | J164: 12 | K164: 21 | L164: 19 | M164: 21 | N164: 16 | O164: 17 | P164: 24 | Q164: 25 | R164: 17 | S164: 17 | T164: 14 | U164: 13 | V164: 10 | W164: 5 | X164: 0 | Y164: =((SUM(Z164:AS164))+0)+0 -> 248 | Z164: 5 | AA164: 8 | AB164: 8 | AC164: 7 | AD164: 10 | AE164: 17 | AF164: 10 | AG164: 14 | AH164: 10 | AI164: 11 | AJ164: 18 | AK164: 17 | AL164: 27 | AM164: 19 | AN164: 14 | AO164: 14 | AP164: 14 | AQ164: 10 | AR164: 10 | AS164: 5
A165: 164 | B165: 22167 Osso de Cinca | C165: 22167 | D165: =((SUM(E165:X165)))+0 -> 366 | E165: 10 | F165: 10 | G165: 5 | H165: 9 | I165: 18 | J165: 18 | K165: 24 | L165: 25 | M165: 36 | N165: 24 | O165: 29 | P165: 39 | Q165: 31 | R165: 20 | S165: 22 | T165: 15 | U165: 17 | V165: 11 | W165: 2 | X165: 1 | Y165: =((SUM(Z165:AS165))+0)+0 -> 284 | Z165: 5 | AA165: 10 | AB165: 13 | AC165: 14 | AD165: 11 | AE165: 14 | AF165: 19 | AG165: 9 | AH165: 15 | AI165: 20 | AJ165: 21 | AK165: 29 | AL165: 15 | AM165: 19 | AN165: 14 | AO165: 19 | AP165: 8 | AQ165: 17 | AR165: 9 | AS165: 3
A166: 165 | B166: 22168 Palo | C166: 22168 | D166: =((SUM(E166:X166)))+0 -> 16 | E166: 0 | F166: 0 | G166: 0 | H166: 0 | I166: 0 | J166: 0 | K166: 5 | L166: 0 | M166: 3 | N166: 0 | O166: 1 | P166: 0 | Q166: 2 | R166: 2 | S166: 1 | T166: 1 | U166: 0 | V166: 0 | W166: 0 | X166: 1 | Y166: =((SUM(Z166:AS166))+0)+0 -> 14 | Z166: 0 | AA166: 1 | AB166: 1 | AC166: 0 | AD166: 0 | AE166: 0 | AF166: 1 | AG166: 1 | AH166: 0 | AI166: 2 | AJ166: 0 | AK166: 1 | AL166: 1 | AM166: 1 | AN166: 3 | AO166: 1 | AP166: 0 | AQ166: 1 | AR166: 0 | AS166: 0
A167: 166 | B167: 22170 Panticosa | C167: 22170 | D167: =((SUM(E167:X167)))+0 -> 466 | E167: 21 | F167: 12 | G167: 15 | H167: 20 | I167: 23 | J167: 26 | K167: 32 | L167: 39 | M167: 45 | N167: 49 | O167: 38 | P167: 41 | Q167: 33 | R167: 32 | S167: 15 | T167: 8 | U167: 9 | V167: 7 | W167: 1 | X167: 0 | Y167: =((SUM(Z167:AS167))+0)+0 -> 421 | Z167: 18 | AA167: 16 | AB167: 6 | AC167: 16 | AD167: 26 | AE167: 24 | AF167: 32 | AG167: 47 | AH167: 37 | AI167: 26 | AJ167: 27 | AK167: 38 | AL167: 32 | AM167: 19 | AN167: 11 | AO167: 14 | AP167: 15 | AQ167: 12 | AR167: 4 | AS167: 1
A168: 167 | B168: 22172 Peñalba | C168: 22172 | D168: =((SUM(E168:X168)))+0 -> 446 | E168: 11 | F168: 9 | G168: 12 | H168: 9 | I168: 33 | J168: 41 | K168: 55 | L168: 32 | M168: 39 | N168: 36 | O168: 29 | P168: 29 | Q168: 26 | R168: 29 | S168: 17 | T168: 12 | U168: 16 | V168: 7 | W168: 2 | X168: 2 | Y168: =((SUM(Z168:AS168))+0)+0 -> 311 | Z168: 12 | AA168: 11 | AB168: 3 | AC168: 13 | AD168: 15 | AE168: 14 | AF168: 21 | AG168: 14 | AH168: 18 | AI168: 23 | AJ168: 18 | AK168: 34 | AL168: 22 | AM168: 20 | AN168: 16 | AO168: 20 | AP168: 14 | AQ168: 10 | AR168: 8 | AS168: 5
A169: 168 | B169: 22173 Peñas de Riglos (Las) | C169: 22173 | D169: =((SUM(E169:X169)))+0 -> 163 | E169: 0 | F169: 6 | G169: 1 | H169: 4 | I169: 5 | J169: 8 | K169: 10 | L169: 3 | M169: 12 | N169: 10 | O169: 13 | P169: 25 | Q169: 21 | R169: 16 | S169: 13 | T169: 8 | U169: 6 | V169: 1 | W169: 1 | X169: 0 | Y169: =((SUM(Z169:AS169))+0)+0 -> 97 | Z169: 1 | AA169: 3 | AB169: 4 | AC169: 1 | AD169: 3 | AE169: 3 | AF169: 6 | AG169: 6 | AH169: 10 | AI169: 4 | AJ169: 10 | AK169: 11 | AL169: 10 | AM169: 3 | AN169: 3 | AO169: 9 | AP169: 2 | AQ169: 2 | AR169: 3 | AS169: 3
A170: 169 | B170: 22174 Peralta de Alcofea | C170: 22174 | D170: =((SUM(E170:X170)))+0 -> 304 | E170: 6 | F170: 6 | G170: 10 | H170: 8 | I170: 16 | J170: 11 | K170: 15 | L170: 20 | M170: 22 | N170: 38 | O170: 25 | P170: 20 | Q170: 17 | R170: 24 | S170: 24 | T170: 22 | U170: 3 | V170: 9 | W170: 8 | X170: 0 | Y170: =((SUM(Z170:AS170))+0)+0 -> 292 | Z170: 9 | AA170: 8 | AB170: 8 | AC170: 4 | AD170: 15 | AE170: 7 | AF170: 8 | AG170: 18 | AH170: 18 | AI170: 22 | AJ170: 17 | AK170: 22 | AL170: 26 | AM170: 23 | AN170: 23 | AO170: 17 | AP170: 14 | AQ170: 24 | AR170: 6 | AS170: 3
A171: 170 | B171: 22175 Peralta de Calasanz | C171: 22175 | D171: =((SUM(E171:X171)))+0 -> 124 | E171: 1 | F171: 2 | G171: 6 | H171: 1 | I171: 1 | J171: 6 | K171: 2 | L171: 7 | M171: 13 | N171: 7 | O171: 10 | P171: 11 | Q171: 12 | R171: 14 | S171: 9 | T171: 5 | U171: 5 | V171: 9 | W171: 2 | X171: 1 | Y171: =((SUM(Z171:AS171))+0)+0 -> 97 | Z171: 1 | AA171: 3 | AB171: 2 | AC171: 4 | AD171: 5 | AE171: 2 | AF171: 3 | AG171: 1 | AH171: 10 | AI171: 5 | AJ171: 12 | AK171: 7 | AL171: 5 | AM171: 6 | AN171: 6 | AO171: 5 | AP171: 5 | AQ171: 8 | AR171: 7 | AS171: 0
A172: 171 | B172: 22176 Peraltilla | C172: 22176 | D172: =((SUM(E172:X172)))+0 -> 107 | E172: 3 | F172: 8 | G172: 1 | H172: 0 | I172: 4 | J172: 8 | K172: 9 | L172: 5 | M172: 10 | N172: 9 | O172: 7 | P172: 8 | Q172: 9 | R172: 10 | S172: 8 | T172: 4 | U172: 1 | V172: 3 | W172: 0 | X172: 0 | Y172: =((SUM(Z172:AS172))+0)+0 -> 116 | Z172: 7 | AA172: 2 | AB172: 7 | AC172: 1 | AD172: 6 | AE172: 9 | AF172: 6 | AG172: 6 | AH172: 4 | AI172: 9 | AJ172: 7 | AK172: 9 | AL172: 9 | AM172: 9 | AN172: 6 | AO172: 3 | AP172: 2 | AQ172: 6 | AR172: 7 | AS172: 1
A173: 172 | B173: 22177 Perarrúa | C173: 22177 | D173: =((SUM(E173:X173)))+0 -> 59 | E173: 4 | F173: 2 | G173: 0 | H173: 1 | I173: 2 | J173: 1 | K173: 4 | L173: 4 | M173: 5 | N173: 4 | O173: 7 | P173: 4 | Q173: 0 | R173: 6 | S173: 2 | T173: 6 | U173: 0 | V173: 4 | W173: 2 | X173: 1 | Y173: =((SUM(Z173:AS173))+0)+0 -> 49 | Z173: 3 | AA173: 2 | AB173: 1 | AC173: 0 | AD173: 1 | AE173: 0 | AF173: 3 | AG173: 3 | AH173: 5 | AI173: 3 | AJ173: 5 | AK173: 2 | AL173: 5 | AM173: 4 | AN173: 3 | AO173: 2 | AP173: 3 | AQ173: 2 | AR173: 2 | AS173: 0
A174: 173 | B174: 22178 Pertusa | C174: 22178 | D174: =((SUM(E174:X174)))+0 -> 74 | E174: 2 | F174: 0 | G174: 3 | H174: 4 | I174: 6 | J174: 3 | K174: 3 | L174: 5 | M174: 5 | N174: 7 | O174: 4 | P174: 2 | Q174: 4 | R174: 8 | S174: 8 | T174: 8 | U174: 0 | V174: 1 | W174: 1 | X174: 0 | Y174: =((SUM(Z174:AS174))+0)+0 -> 51 | Z174: 2 | AA174: 1 | AB174: 0 | AC174: 1 | AD174: 2 | AE174: 2 | AF174: 3 | AG174: 4 | AH174: 3 | AI174: 3 | AJ174: 3 | AK174: 2 | AL174: 6 | AM174: 3 | AN174: 11 | AO174: 1 | AP174: 1 | AQ174: 2 | AR174: 1 | AS174: 0
A175: 174 | B175: 22181 Piracés | C175: 22181 | D175: =((SUM(E175:X175)))+0 -> 48 | E175: 1 | F175: 1 | G175: 0 | H175: 2 | I175: 2 | J175: 0 | K175: 1 | L175: 3 | M175: 4 | N175: 4 | O175: 7 | P175: 7 | Q175: 3 | R175: 1 | S175: 2 | T175: 5 | U175: 1 | V175: 3 | W175: 1 | X175: 0 | Y175: =((SUM(Z175:AS175))+0)+0 -> 47 | Z175: 0 | AA175: 2 | AB175: 4 | AC175: 2 | AD175: 2 | AE175: 0 | AF175: 4 | AG175: 2 | AH175: 1 | AI175: 5 | AJ175: 4 | AK175: 3 | AL175: 2 | AM175: 3 | AN175: 2 | AO175: 5 | AP175: 1 | AQ175: 3 | AR175: 0 | AS175: 2
A176: 175 | B176: 22182 Plan | C176: 22182 | D176: =((SUM(E176:X176)))+0 -> 150 | E176: 3 | F176: 6 | G176: 5 | H176: 5 | I176: 1 | J176: 7 | K176: 11 | L176: 8 | M176: 7 | N176: 13 | O176: 13 | P176: 18 | Q176: 14 | R176: 14 | S176: 8 | T176: 5 | U176: 5 | V176: 7 | W176: 0 | X176: 0 | Y176: =((SUM(Z176:AS176))+0)+0 -> 133 | Z176: 2 | AA176: 3 | AB176: 9 | AC176: 8 | AD176: 2 | AE176: 9 | AF176: 7 | AG176: 5 | AH176: 9 | AI176: 10 | AJ176: 10 | AK176: 6 | AL176: 6 | AM176: 9 | AN176: 11 | AO176: 13 | AP176: 3 | AQ176: 7 | AR176: 2 | AS176: 2
A177: 176 | B177: 22184 Poleñino | C177: 22184 | D177: =((SUM(E177:X177)))+0 -> 101 | E177: 0 | F177: 3 | G177: 2 | H177: 3 | I177: 2 | J177: 5 | K177: 7 | L177: 6 | M177: 9 | N177: 12 | O177: 6 | P177: 7 | Q177: 10 | R177: 11 | S177: 4 | T177: 4 | U177: 4 | V177: 5 | W177: 1 | X177: 0 | Y177: =((SUM(Z177:AS177))+0)+0 -> 92 | Z177: 2 | AA177: 6 | AB177: 6 | AC177: 1 | AD177: 2 | AE177: 2 | AF177: 6 | AG177: 3 | AH177: 7 | AI177: 7 | AJ177: 4 | AK177: 3 | AL177: 8 | AM177: 9 | AN177: 4 | AO177: 11 | AP177: 5 | AQ177: 4 | AR177: 2 | AS177: 0
A178: 177 | B178: 22186 Pozán de Vero | C178: 22186 | D178: =((SUM(E178:X178)))+0 -> 120 | E178: 7 | F178: 3 | G178: 6 | H178: 4 | I178: 3 | J178: 2 | K178: 4 | L178: 11 | M178: 10 | N178: 9 | O178: 10 | P178: 6 | Q178: 8 | R178: 13 | S178: 7 | T178: 5 | U178: 5 | V178: 4 | W178: 1 | X178: 2 | Y178: =((SUM(Z178:AS178))+0)+0 -> 121 | Z178: 5 | AA178: 9 | AB178: 8 | AC178: 2 | AD178: 5 | AE178: 4 | AF178: 5 | AG178: 7 | AH178: 12 | AI178: 10 | AJ178: 4 | AK178: 4 | AL178: 10 | AM178: 8 | AN178: 5 | AO178: 3 | AP178: 5 | AQ178: 8 | AR178: 5 | AS178: 2
A179: 178 | B179: 22187 Puebla de Castro (La) | C179: 22187 | D179: =((SUM(E179:X179)))+0 -> 221 | E179: 13 | F179: 8 | G179: 9 | H179: 7 | I179: 13 | J179: 10 | K179: 8 | L179: 10 | M179: 20 | N179: 22 | O179: 19 | P179: 23 | Q179: 15 | R179: 7 | S179: 19 | T179: 6 | U179: 4 | V179: 7 | W179: 1 | X179: 0 | Y179: =((SUM(Z179:AS179))+0)+0 -> 194 | Z179: 6 | AA179: 8 | AB179: 12 | AC179: 6 | AD179: 6 | AE179: 10 | AF179: 6 | AG179: 12 | AH179: 15 | AI179: 17 | AJ179: 22 | AK179: 18 | AL179: 15 | AM179: 13 | AN179: 14 | AO179: 6 | AP179: 5 | AQ179: 2 | AR179: 1 | AS179: 0
A180: 179 | B180: 22188 Puente de Montañana | C180: 22188 | D180: =((SUM(E180:X180)))+0 -> 44 | E180: 1 | F180: 2 | G180: 0 | H180: 1 | I180: 1 | J180: 1 | K180: 4 | L180: 2 | M180: 2 | N180: 6 | O180: 1 | P180: 6 | Q180: 4 | R180: 3 | S180: 1 | T180: 2 | U180: 4 | V180: 2 | W180: 1 | X180: 0 | Y180: =((SUM(Z180:AS180))+0)+0 -> 50 | Z180: 1 | AA180: 0 | AB180: 1 | AC180: 1 | AD180: 2 | AE180: 3 | AF180: 2 | AG180: 3 | AH180: 0 | AI180: 1 | AJ180: 6 | AK180: 2 | AL180: 4 | AM180: 3 | AN180: 5 | AO180: 5 | AP180: 3 | AQ180: 4 | AR180: 4 | AS180: 0
A181: 180 | B181: 22189 Puértolas | C181: 22189 | D181: =((SUM(E181:X181)))+0 -> 115 | E181: 2 | F181: 5 | G181: 5 | H181: 3 | I181: 3 | J181: 2 | K181: 5 | L181: 9 | M181: 12 | N181: 15 | O181: 7 | P181: 10 | Q181: 5 | R181: 10 | S181: 7 | T181: 5 | U181: 4 | V181: 5 | W181: 1 | X181: 0 | Y181: =((SUM(Z181:AS181))+0)+0 -> 101 | Z181: 6 | AA181: 4 | AB181: 4 | AC181: 3 | AD181: 1 | AE181: 6 | AF181: 5 | AG181: 7 | AH181: 14 | AI181: 9 | AJ181: 7 | AK181: 4 | AL181: 4 | AM181: 11 | AN181: 4 | AO181: 8 | AP181: 3 | AQ181: 1 | AR181: 0 | AS181: 0
A182: 181 | B182: 22190 Pueyo de Araguás (El) | C182: 22190 | D182: =((SUM(E182:X182)))+0 -> 93 | E182: 0 | F182: 3 | G182: 6 | H182: 7 | I182: 3 | J182: 6 | K182: 6 | L182: 1 | M182: 8 | N182: 10 | O182: 4 | P182: 10 | Q182: 6 | R182: 8 | S182: 7 | T182: 1 | U182: 4 | V182: 2 | W182: 1 | X182: 0 | Y182: =((SUM(Z182:AS182))+0)+0 -> 75 | Z182: 2 | AA182: 5 | AB182: 7 | AC182: 3 | AD182: 2 | AE182: 2 | AF182: 0 | AG182: 3 | AH182: 8 | AI182: 7 | AJ182: 10 | AK182: 4 | AL182: 4 | AM182: 6 | AN182: 4 | AO182: 4 | AP182: 2 | AQ182: 2 | AR182: 0 | AS182: 0
A183: 182 | B183: 22193 Pueyo de Santa Cruz | C183: 22193 | D183: =((SUM(E183:X183)))+0 -> 154 | E183: 2 | F183: 6 | G183: 9 | H183: 3 | I183: 5 | J183: 6 | K183: 12 | L183: 8 | M183: 15 | N183: 13 | O183: 7 | P183: 17 | Q183: 8 | R183: 8 | S183: 7 | T183: 9 | U183: 5 | V183: 8 | W183: 6 | X183: 0 | Y183: =((SUM(Z183:AS183))+0)+0 -> 164 | Z183: 4 | AA183: 9 | AB183: 4 | AC183: 5 | AD183: 9 | AE183: 8 | AF183: 12 | AG183: 9 | AH183: 12 | AI183: 7 | AJ183: 12 | AK183: 20 | AL183: 5 | AM183: 5 | AN183: 10 | AO183: 12 | AP183: 7 | AQ183: 9 | AR183: 2 | AS183: 3
A184: 183 | B184: 22195 Quicena | C184: 22195 | D184: =((SUM(E184:X184)))+0 -> 142 | E184: 2 | F184: 6 | G184: 5 | H184: 5 | I184: 7 | J184: 5 | K184: 6 | L184: 9 | M184: 11 | N184: 12 | O184: 13 | P184: 20 | Q184: 12 | R184: 7 | S184: 7 | T184: 8 | U184: 2 | V184: 3 | W184: 2 | X184: 0 | Y184: =((SUM(Z184:AS184))+0)+0 -> 153 | Z184: 5 | AA184: 3 | AB184: 11 | AC184: 9 | AD184: 12 | AE184: 6 | AF184: 5 | AG184: 12 | AH184: 3 | AI184: 12 | AJ184: 20 | AK184: 18 | AL184: 13 | AM184: 6 | AN184: 4 | AO184: 7 | AP184: 3 | AQ184: 3 | AR184: 1 | AS184: 0
A185: 184 | B185: 22197 Robres | C185: 22197 | D185: =((SUM(E185:X185)))+0 -> 280 | E185: 12 | F185: 10 | G185: 10 | H185: 10 | I185: 8 | J185: 9 | K185: 14 | L185: 17 | M185: 16 | N185: 19 | O185: 28 | P185: 33 | Q185: 22 | R185: 25 | S185: 10 | T185: 14 | U185: 14 | V185: 8 | W185: 1 | X185: 0 | Y185: =((SUM(Z185:AS185))+0)+0 -> 257 | Z185: 3 | AA185: 14 | AB185: 5 | AC185: 10 | AD185: 10 | AE185: 9 | AF185: 9 | AG185: 20 | AH185: 14 | AI185: 15 | AJ185: 13 | AK185: 21 | AL185: 22 | AM185: 17 | AN185: 18 | AO185: 13 | AP185: 16 | AQ185: 17 | AR185: 10 | AS185: 1
A186: 185 | B186: 22199 Sabiñánigo | C186: 22199 | D186: =((SUM(E186:X186)))+0 -> 4699 | E186: 175 | F186: 191 | G186: 228 | H186: 222 | I186: 232 | J186: 241 | K186: 243 | L186: 316 | M186: 395 | N186: 349 | O186: 366 | P186: 418 | Q186: 372 | R186: 283 | S186: 211 | T186: 153 | U186: 94 | V186: 142 | W186: 57 | X186: 11 | Y186: =((SUM(Z186:AS186))+0)+0 -> 4672 | Z186: 154 | AA186: 193 | AB186: 230 | AC186: 207 | AD186: 212 | AE186: 208 | AF186: 231 | AG186: 290 | AH186: 347 | AI186: 319 | AJ186: 405 | AK186: 328 | AL186: 361 | AM186: 323 | AN186: 200 | AO186: 191 | AP186: 180 | AQ186: 152 | AR186: 112 | AS186: 29
A187: 186 | B187: 22200 Sahún | C187: 22200 | D187: =((SUM(E187:X187)))+0 -> 150 | E187: 2 | F187: 3 | G187: 12 | H187: 9 | I187: 2 | J187: 10 | K187: 3 | L187: 9 | M187: 6 | N187: 14 | O187: 9 | P187: 22 | Q187: 10 | R187: 8 | S187: 13 | T187: 7 | U187: 1 | V187: 6 | W187: 4 | X187: 0 | Y187: =((SUM(Z187:AS187))+0)+0 -> 158 | Z187: 6 | AA187: 7 | AB187: 4 | AC187: 7 | AD187: 4 | AE187: 7 | AF187: 12 | AG187: 11 | AH187: 13 | AI187: 13 | AJ187: 21 | AK187: 6 | AL187: 14 | AM187: 4 | AN187: 10 | AO187: 9 | AP187: 1 | AQ187: 6 | AR187: 2 | AS187: 1
A188: 187 | B188: 22201 Salas Altas | C188: 22201 | D188: =((SUM(E188:X188)))+0 -> 164 | E188: 6 | F188: 7 | G188: 5 | H188: 3 | I188: 11 | J188: 4 | K188: 10 | L188: 9 | M188: 16 | N188: 11 | O188: 11 | P188: 6 | Q188: 12 | R188: 15 | S188: 10 | T188: 7 | U188: 2 | V188: 11 | W188: 5 | X188: 3 | Y188: =((SUM(Z188:AS188))+0)+0 -> 152 | Z188: 0 | AA188: 3 | AB188: 8 | AC188: 4 | AD188: 6 | AE188: 7 | AF188: 9 | AG188: 7 | AH188: 4 | AI188: 13 | AJ188: 8 | AK188: 13 | AL188: 9 | AM188: 12 | AN188: 7 | AO188: 8 | AP188: 9 | AQ188: 12 | AR188: 5 | AS188: 8
A189: 188 | B189: 22202 Salas Bajas | C189: 22202 | D189: =((SUM(E189:X189)))+0 -> 94 | E189: 1 | F189: 4 | G189: 0 | H189: 4 | I189: 3 | J189: 3 | K189: 5 | L189: 8 | M189: 11 | N189: 10 | O189: 8 | P189: 7 | Q189: 9 | R189: 3 | S189: 5 | T189: 6 | U189: 1 | V189: 4 | W189: 2 | X189: 0 | Y189: =((SUM(Z189:AS189))+0)+0 -> 96 | Z189: 1 | AA189: 4 | AB189: 10 | AC189: 3 | AD189: 5 | AE189: 3 | AF189: 2 | AG189: 5 | AH189: 9 | AI189: 7 | AJ189: 6 | AK189: 10 | AL189: 7 | AM189: 7 | AN189: 3 | AO189: 3 | AP189: 3 | AQ189: 4 | AR189: 3 | AS189: 1
A190: 189 | B190: 22203 Salillas | C190: 22203 | D190: =((SUM(E190:X190)))+0 -> 58 | E190: 2 | F190: 1 | G190: 0 | H190: 2 | I190: 2 | J190: 3 | K190: 2 | L190: 2 | M190: 4 | N190: 8 | O190: 6 | P190: 5 | Q190: 2 | R190: 1 | S190: 4 | T190: 5 | U190: 4 | V190: 1 | W190: 1 | X190: 3 | Y190: =((SUM(Z190:AS190))+0)+0 -> 44 | Z190: 2 | AA190: 2 | AB190: 1 | AC190: 2 | AD190: 1 | AE190: 1 | AF190: 2 | AG190: 3 | AH190: 5 | AI190: 2 | AJ190: 0 | AK190: 2 | AL190: 2 | AM190: 3 | AN190: 4 | AO190: 5 | AP190: 2 | AQ190: 3 | AR190: 1 | AS190: 1
A191: 190 | B191: 22204 Sallent de Gállego | C191: 22204 | D191: =((SUM(E191:X191)))+0 -> 781 | E191: 28 | F191: 21 | G191: 38 | H191: 27 | I191: 37 | J191: 35 | K191: 51 | L191: 66 | M191: 75 | N191: 71 | O191: 85 | P191: 68 | Q191: 52 | R191: 38 | S191: 30 | T191: 31 | U191: 17 | V191: 5 | W191: 6 | X191: 0 | Y191: =((SUM(Z191:AS191))+0)+0 -> 776 | Z191: 31 | AA191: 28 | AB191: 47 | AC191: 42 | AD191: 37 | AE191: 38 | AF191: 47 | AG191: 71 | AH191: 66 | AI191: 75 | AJ191: 62 | AK191: 61 | AL191: 50 | AM191: 31 | AN191: 31 | AO191: 28 | AP191: 10 | AQ191: 13 | AR191: 7 | AS191: 1
A192: 191 | B192: 22205 San Esteban de Litera | C192: 22205 | D192: =((SUM(E192:X192)))+0 -> 305 | E192: 6 | F192: 6 | G192: 9 | H192: 7 | I192: 20 | J192: 23 | K192: 24 | L192: 21 | M192: 24 | N192: 30 | O192: 15 | P192: 28 | Q192: 14 | R192: 20 | S192: 12 | T192: 13 | U192: 16 | V192: 16 | W192: 1 | X192: 0 | Y192: =((SUM(Z192:AS192))+0)+0 -> 281 | Z192: 9 | AA192: 15 | AB192: 14 | AC192: 2 | AD192: 9 | AE192: 13 | AF192: 12 | AG192: 19 | AH192: 16 | AI192: 18 | AJ192: 18 | AK192: 20 | AL192: 11 | AM192: 22 | AN192: 15 | AO192: 22 | AP192: 18 | AQ192: 15 | AR192: 11 | AS192: 2
A193: 192 | B193: 22206 Sangarrén | C193: 22206 | D193: =((SUM(E193:X193)))+0 -> 117 | E193: 3 | F193: 2 | G193: 1 | H193: 4 | I193: 2 | J193: 4 | K193: 7 | L193: 13 | M193: 11 | N193: 8 | O193: 10 | P193: 5 | Q193: 6 | R193: 8 | S193: 10 | T193: 9 | U193: 6 | V193: 6 | W193: 2 | X193: 0 | Y193: =((SUM(Z193:AS193))+0)+0 -> 102 | Z193: 3 | AA193: 2 | AB193: 1 | AC193: 2 | AD193: 0 | AE193: 2 | AF193: 4 | AG193: 9 | AH193: 8 | AI193: 5 | AJ193: 7 | AK193: 6 | AL193: 6 | AM193: 11 | AN193: 15 | AO193: 7 | AP193: 3 | AQ193: 6 | AR193: 3 | AS193: 2
A194: 193 | B194: 22207 San Juan de Plan | C194: 22207 | D194: =((SUM(E194:X194)))+0 -> 86 | E194: 3 | F194: 5 | G194: 2 | H194: 7 | I194: 3 | J194: 1 | K194: 0 | L194: 3 | M194: 10 | N194: 9 | O194: 8 | P194: 10 | Q194: 8 | R194: 4 | S194: 3 | T194: 3 | U194: 3 | V194: 3 | W194: 1 | X194: 0 | Y194: =((SUM(Z194:AS194))+0)+0 -> 72 | Z194: 2 | AA194: 5 | AB194: 5 | AC194: 1 | AD194: 1 | AE194: 5 | AF194: 4 | AG194: 7 | AH194: 4 | AI194: 3 | AJ194: 7 | AK194: 9 | AL194: 2 | AM194: 0 | AN194: 3 | AO194: 5 | AP194: 2 | AQ194: 5 | AR194: 2 | AS194: 0
A195: 194 | B195: 22208 Santa Cilia | C195: 22208 | D195: =((SUM(E195:X195)))+0 -> 129 | E195: 2 | F195: 8 | G195: 6 | H195: 6 | I195: 8 | J195: 6 | K195: 2 | L195: 11 | M195: 12 | N195: 10 | O195: 8 | P195: 18 | Q195: 12 | R195: 7 | S195: 4 | T195: 2 | U195: 1 | V195: 4 | W195: 1 | X195: 1 | Y195: =((SUM(Z195:AS195))+0)+0 -> 125 | Z195: 4 | AA195: 8 | AB195: 11 | AC195: 6 | AD195: 8 | AE195: 6 | AF195: 3 | AG195: 7 | AH195: 9 | AI195: 13 | AJ195: 7 | AK195: 12 | AL195: 4 | AM195: 3 | AN195: 4 | AO195: 4 | AP195: 3 | AQ195: 7 | AR195: 6 | AS195: 0
A196: 195 | B196: 22209 Santa Cruz de la Serós | C196: 22209 | D196: =((SUM(E196:X196)))+0 -> 109 | E196: 3 | F196: 2 | G196: 2 | H196: 3 | I196: 7 | J196: 7 | K196: 4 | L196: 9 | M196: 12 | N196: 4 | O196: 12 | P196: 9 | Q196: 9 | R196: 7 | S196: 7 | T196: 5 | U196: 3 | V196: 2 | W196: 2 | X196: 0 | Y196: =((SUM(Z196:AS196))+0)+0 -> 85 | Z196: 6 | AA196: 3 | AB196: 3 | AC196: 4 | AD196: 2 | AE196: 3 | AF196: 6 | AG196: 4 | AH196: 8 | AI196: 3 | AJ196: 9 | AK196: 5 | AL196: 9 | AM196: 7 | AN196: 3 | AO196: 4 | AP196: 2 | AQ196: 3 | AR196: 0 | AS196: 1
A197: 196 | B197: 22212 Santaliestra y San Quílez | C197: 22212 | D197: =((SUM(E197:X197)))+0 -> 47 | E197: 0 | F197: 3 | G197: 0 | H197: 0 | I197: 2 | J197: 2 | K197: 5 | L197: 4 | M197: 2 | N197: 1 | O197: 5 | P197: 4 | Q197: 2 | R197: 4 | S197: 6 | T197: 2 | U197: 0 | V197: 2 | W197: 3 | X197: 0 | Y197: =((SUM(Z197:AS197))+0)+0 -> 32 | Z197: 1 | AA197: 0 | AB197: 1 | AC197: 2 | AD197: 0 | AE197: 0 | AF197: 1 | AG197: 3 | AH197: 1 | AI197: 0 | AJ197: 1 | AK197: 3 | AL197: 2 | AM197: 6 | AN197: 1 | AO197: 4 | AP197: 3 | AQ197: 1 | AR197: 2 | AS197: 0
A198: 197 | B198: 22213 Sariñena | C198: 22213 | D198: =((SUM(E198:X198)))+0 -> 2169 | E198: 120 | F198: 96 | G198: 101 | H198: 106 | I198: 105 | J198: 122 | K198: 129 | L198: 145 | M198: 165 | N198: 170 | O198: 155 | P198: 179 | Q198: 146 | R198: 122 | S198: 105 | T198: 79 | U198: 59 | V198: 46 | W198: 15 | X198: 4 | Y198: =((SUM(Z198:AS198))+0)+0 -> 1995 | Z198: 96 | AA198: 76 | AB198: 88 | AC198: 106 | AD198: 82 | AE198: 95 | AF198: 132 | AG198: 124 | AH198: 129 | AI198: 142 | AJ198: 144 | AK198: 147 | AL198: 145 | AM198: 118 | AN198: 114 | AO198: 77 | AP198: 65 | AQ198: 59 | AR198: 40 | AS198: 16
A199: 198 | B199: 22214 Secastilla | C199: 22214 | D199: =((SUM(E199:X199)))+0 -> 70 | E199: 0 | F199: 5 | G199: 1 | H199: 4 | I199: 1 | J199: 2 | K199: 7 | L199: 3 | M199: 5 | N199: 4 | O199: 6 | P199: 9 | Q199: 3 | R199: 6 | S199: 5 | T199: 3 | U199: 1 | V199: 4 | W199: 0 | X199: 1 | Y199: =((SUM(Z199:AS199))+0)+0 -> 81 | Z199: 4 | AA199: 2 | AB199: 5 | AC199: 1 | AD199: 2 | AE199: 2 | AF199: 2 | AG199: 5 | AH199: 6 | AI199: 10 | AJ199: 6 | AK199: 8 | AL199: 8 | AM199: 6 | AN199: 4 | AO199: 3 | AP199: 1 | AQ199: 3 | AR199: 3 | AS199: 0
A200: 199 | B200: 22215 Seira | C200: 22215 | D200: =((SUM(E200:X200)))+0 -> 88 | E200: 2 | F200: 1 | G200: 3 | H200: 1 | I200: 3 | J200: 3 | K200: 3 | L200: 5 | M200: 8 | N200: 5 | O200: 10 | P200: 8 | Q200: 11 | R200: 6 | S200: 8 | T200: 4 | U200: 3 | V200: 3 | W200: 1 | X200: 0 | Y200: =((SUM(Z200:AS200))+0)+0 -> 71 | Z200: 2 | AA200: 1 | AB200: 5 | AC200: 3 | AD200: 1 | AE200: 3 | AF200: 3 | AG200: 4 | AH200: 4 | AI200: 4 | AJ200: 7 | AK200: 6 | AL200: 4 | AM200: 3 | AN200: 7 | AO200: 6 | AP200: 3 | AQ200: 1 | AR200: 2 | AS200: 2
... 570 more rows

Sheet datosext (hidden)
B1: referencia geográfica | C1: código | D1: TOTAL VARONES | E1: 01- de 0 a 4 | F1: 02- de 5 a 9 | G1: 03- de 10 a 14 | H1: 04- de 15 a 19 | I1: 05- de 20 a 24 | J1: 06- de 25 a 29 | K1: 07- de 30 a 34 | L1: 08- de 35 a 39 | M1: 09- de 40 a 44 | N1: 10- de 45 a 49 | O1: 11- de 50 a 54 | P1: 12- de 55 a 59 | Q1: 13- de 60 a 64 | R1: 14- de 65 a 69 | S1: 15- de 70 a 74 | T1: 16- de 75 a 79 | U1: 17- de 80 a 84 | V1: 18- de 85 a 89 | W1: 19- de 90 a 94 | X1: 20- de 95 y más | Y1: TOTAL MUJERES | Z1: 01- de 0 a 4 | AA1: 02- de 5 a 9 | AB1: 03- de 10 a 14 | AC1: 04- de 15 a 19 | AD1: 05- de 20 a 24 | AE1: 06- de 25 a 29 | AF1: 07- de 30 a 34 | AG1: 08- de 35 a 39 | AH1: 09- de 40 a 44 | AI1: 10- de 45 a 49 | AJ1: 11- de 50 a 54 | AK1: 12- de 55 a 59 | AL1: 13- de 60 a 64 | AM1: 14- de 65 a 69 | AN1: 15- de 70 a 74 | AO1: 16- de 75 a 79 | AP1: 17- de 80 a 84 | AQ1: 18- de 85 a 89 | AR1: 19- de 90 a 94 | AS1: 20- de 95 y más
A2: 1 | B2: ARAGÓN | C2: 2 | D2: =((SUM(E2:X2)))+0 -> 84233 | E2: 4593 | F2: 4757 | G2: 4359 | H2: 4526 | I2: 6402 | J2: 7658 | K2: 8255 | L2: 9137 | M2: 10244 | N2: 8860 | O2: 6650 | P2: 4016 | Q2: 2440 | R2: 1278 | S2: 558 | T2: 270 | U2: 152 | V2: 61 | W2: 15 | X2: 2 | Y2: 80529 | Z2: 4335 | AA2: 4440 | AB2: 3950 | AC2: 3784 | AD2: 5586 | AE2: 7377 | AF2: 9119 | AG2: 9694 | AH2: 9420 | AI2: 7584 | AJ2: 5999 | AK2: 3613 | AL2: 2442 | AM2: 1529 | AN2: 832 | AO2: 435 | AP2: 221 | AQ2: 120 | AR2: 37 | AS2: 12
A3: 2 | B3: PROVINCIA DE HUESCA | C3: 22 | D3: =((SUM(E3:X3)))+0 -> 15945 | E3: 830 | F3: 847 | G3: 778 | H3: 842 | I3: 1188 | J3: 1478 | K3: 1555 | L3: 1813 | M3: 2067 | N3: 1738 | O3: 1246 | P3: 716 | Q3: 404 | R3: 225 | S3: 112 | T3: 68 | U3: 22 | V3: 12 | W3: 3 | X3: 1 | Y3: =(SUM(Z3:AS3))+0 -> 13846 | Z3: 780 | AA3: 743 | AB3: 646 | AC3: 635 | AD3: 964 | AE3: 1248 | AF3: 1584 | AG3: 1705 | AH3: 1642 | AI3: 1298 | AJ3: 1047 | AK3: 664 | AL3: 365 | AM3: 245 | AN3: 129 | AO3: 73 | AP3: 37 | AQ3: 29 | AR3: 8 | AS3: 4
A4: 3 | B4: PROVINCIA DE TERUEL | C4: 44 | D4: =((SUM(E4:X4)))+0 -> 8042 | E4: 490 | F4: 545 | G4: 452 | H4: 455 | I4: 673 | J4: 637 | K4: 700 | L4: 829 | M4: 980 | N4: 823 | O4: 590 | P4: 388 | Q4: 248 | R4: 120 | S4: 66 | T4: 26 | U4: 12 | V4: 5 | W4: 3 | X4: 0 | Y4: =(SUM(Z4:AS4))+0 -> 7562 | Z4: 505 | AA4: 536 | AB4: 415 | AC4: 394 | AD4: 530 | AE4: 658 | AF4: 803 | AG4: 773 | AH4: 835 | AI4: 693 | AJ4: 576 | AK4: 295 | AL4: 245 | AM4: 147 | AN4: 73 | AO4: 33 | AP4: 35 | AQ4: 12 | AR4: 3 | AS4: 1
A5: 4 | B5: PROVINCIA DE ZARAGOZA | C5: 50 | D5: =((SUM(E5:X5)))+0 -> 60246 | E5: 3273 | F5: 3365 | G5: 3129 | H5: 3229 | I5: 4541 | J5: 5543 | K5: 6000 | L5: 6495 | M5: 7197 | N5: 6299 | O5: 4814 | P5: 2912 | Q5: 1788 | R5: 933 | S5: 380 | T5: 176 | U5: 118 | V5: 44 | W5: 9 | X5: 1 | Y5: =(SUM(Z5:AS5))+0 -> 59121 | Z5: 3050 | AA5: 3161 | AB5: 2889 | AC5: 2755 | AD5: 4092 | AE5: 5471 | AF5: 6732 | AG5: 7216 | AH5: 6943 | AI5: 5593 | AJ5: 4376 | AK5: 2654 | AL5: 1832 | AM5: 1137 | AN5: 630 | AO5: 329 | AP5: 149 | AQ5: 79 | AR5: 26 | AS5: 7
A6: 5 | B6: LA JACETANIA | C6: 1 | D6: =((SUM(E6:X6)))+0 -> 582 | E6: 18 | F6: 20 | G6: 29 | H6: 31 | I6: 39 | J6: 57 | K6: 58 | L6: 69 | M6: 67 | N6: 62 | O6: 44 | P6: 38 | Q6: 21 | R6: 9 | S6: 12 | T6: 5 | U6: 1 | V6: 2 | W6: 0 | X6: 0 | Y6: =(SUM(Z6:AS6))+0 -> 699 | Z6: 22 | AA6: 28 | AB6: 28 | AC6: 34 | AD6: 63 | AE6: 66 | AF6: 81 | AG6: 69 | AH6: 95 | AI6: 53 | AJ6: 57 | AK6: 42 | AL6: 20 | AM6: 10 | AN6: 16 | AO6: 7 | AP6: 5 | AQ6: 1 | AR6: 0 | AS6: 2
A7: 6 | B7: ALTO GÁLLEGO | C7: 2 | D7: =((SUM(E7:X7)))+0 -> 778 | E7: 35 | F7: 47 | G7: 45 | H7: 35 | I7: 54 | J7: 66 | K7: 60 | L7: 71 | M7: 93 | N7: 94 | O7: 72 | P7: 37 | Q7: 37 | R7: 17 | S7: 7 | T7: 6 | U7: 0 | V7: 2 | W7: 0 | X7: 0 | Y7: =(SUM(Z7:AS7))+0 -> 767 | Z7: 40 | AA7: 40 | AB7: 32 | AC7: 41 | AD7: 43 | AE7: 57 | AF7: 81 | AG7: 101 | AH7: 87 | AI7: 80 | AJ7: 58 | AK7: 43 | AL7: 25 | AM7: 18 | AN7: 8 | AO7: 6 | AP7: 3 | AQ7: 3 | AR7: 1 | AS7: 0
A8: 7 | B8: SOBRARBE | C8: 3 | D8: =((SUM(E8:X8)))+0 -> 490 | E8: 25 | F8: 33 | G8: 33 | H8: 25 | I8: 29 | J8: 28 | K8: 44 | L8: 51 | M8: 58 | N8: 38 | O8: 41 | P8: 37 | Q8: 18 | R8: 17 | S8: 8 | T8: 5 | U8: 0 | V8: 0 | W8: 0 | X8: 0 | Y8: =(SUM(Z8:AS8))+0 -> 485 | Z8: 20 | AA8: 14 | AB8: 15 | AC8: 17 | AD8: 29 | AE8: 32 | AF8: 71 | AG8: 54 | AH8: 43 | AI8: 47 | AJ8: 52 | AK8: 40 | AL8: 21 | AM8: 13 | AN8: 8 | AO8: 5 | AP8: 2 | AQ8: 2 | AR8: 0 | AS8: 0
A9: 8 | B9: LA RIBAGORZA | C9: 4 | D9: =((SUM(E9:X9)))+0 -> 838 | E9: 45 | F9: 41 | G9: 32 | H9: 26 | I9: 59 | J9: 75 | K9: 89 | L9: 92 | M9: 102 | N9: 96 | O9: 67 | P9: 44 | Q9: 26 | R9: 19 | S9: 12 | T9: 8 | U9: 5 | V9: 0 | W9: 0 | X9: 0 | Y9: =(SUM(Z9:AS9))+0 -> 835 | Z9: 30 | AA9: 37 | AB9: 35 | AC9: 32 | AD9: 56 | AE9: 80 | AF9: 81 | AG9: 100 | AH9: 108 | AI9: 87 | AJ9: 73 | AK9: 48 | AL9: 31 | AM9: 18 | AN9: 9 | AO9: 6 | AP9: 2 | AQ9: 1 | AR9: 1 | AS9: 0
A10: 9 | B10: CINCO VILLAS | C10: 5 | D10: =((SUM(E10:X10)))+0 -> 2563 | E10: 130 | F10: 140 | G10: 133 | H10: 132 | I10: 206 | J10: 259 | K10: 251 | L10: 263 | M10: 300 | N10: 284 | O10: 213 | P10: 122 | Q10: 76 | R10: 35 | S10: 12 | T10: 4 | U10: 1 | V10: 1 | W10: 1 | X10: 0 | Y10: =(SUM(Z10:AS10))+0 -> 2021 | Z10: 140 | AA10: 131 | AB10: 131 | AC10: 116 | AD10: 127 | AE10: 196 | AF10: 213 | AG10: 230 | AH10: 219 | AI10: 161 | AJ10: 141 | AK10: 93 | AL10: 65 | AM10: 29 | AN10: 16 | AO10: 6 | AP10: 5 | AQ10: 2 | AR10: 0 | AS10: 0
A11: 10 | B11: HOYA DE HUESCA/PLANA DE UESCA | C11: 6 | D11: =((SUM(E11:X11)))+0 -> 3402 | E11: 175 | F11: 220 | G11: 185 | H11: 223 | I11: 264 | J11: 331 | K11: 343 | L11: 381 | M11: 397 | N11: 312 | O11: 236 | P11: 133 | Q11: 92 | R11: 62 | S11: 21 | T11: 17 | U11: 3 | V11: 4 | W11: 2 | X11: 1 | Y11: =(SUM(Z11:AS11))+0 -> 3435 | Z11: 180 | AA11: 190 | AB11: 169 | AC11: 155 | AD11: 233 | AE11: 320 | AF11: 384 | AG11: 433 | AH11: 416 | AI11: 317 | AJ11: 236 | AK11: 156 | AL11: 90 | AM11: 68 | AN11: 44 | AO11: 19 | AP11: 13 | AQ11: 8 | AR11: 3 | AS11: 1
A12: 11 | B12: SOMONTANO DE BARBASTRO | C12: 7 | D12: =((SUM(E12:X12)))+0 -> 1333 | E12: 77 | F12: 68 | G12: 62 | H12: 78 | I12: 93 | J12: 110 | K12: 123 | L12: 146 | M12: 193 | N12: 138 | O12: 91 | P12: 62 | Q12: 39 | R12: 20 | S12: 18 | T12: 10 | U12: 3 | V12: 1 | W12: 1 | X12: 0 | Y12: =(SUM(Z12:AS12))+0 -> 1296 | Z12: 56 | AA12: 52 | AB12: 55 | AC12: 48 | AD12: 92 | AE12: 129 | AF12: 168 | AG12: 163 | AH12: 147 | AI12: 111 | AJ12: 87 | AK12: 73 | AL12: 41 | AM12: 34 | AN12: 18 | AO12: 9 | AP12: 5 | AQ12: 7 | AR12: 0 | AS12: 1
A13: 12 | B13: CINCA MEDIO | C13: 8 | D13: =((SUM(E13:X13)))+0 -> 2241 | E13: 131 | F13: 122 | G13: 120 | H13: 133 | I13: 157 | J13: 205 | K13: 193 | L13: 264 | M13: 272 | N13: 251 | O13: 195 | P13: 106 | Q13: 52 | R13: 19 | S13: 10 | T13: 6 | U13: 5 | V13: 0 | W13: 0 | X13: 0 | Y13: =(SUM(Z13:AS13))+0 -> 1824 | Z13: 111 | AA13: 118 | AB13: 90 | AC13: 87 | AD13: 130 | AE13: 197 | AF13: 204 | AG13: 203 | AH13: 207 | AI13: 181 | AJ13: 133 | AK13: 82 | AL13: 34 | AM13: 24 | AN13: 10 | AO13: 7 | AP13: 4 | AQ13: 2 | AR13: 0 | AS13: 0
A14: 13 | B14: LA LITERA/LA LLITERA | C14: 9 | D14: =((SUM(E14:X14)))+0 -> 1945 | E14: 84 | F14: 80 | G14: 73 | H14: 105 | I14: 158 | J14: 216 | K14: 202 | L14: 211 | M14: 291 | N14: 237 | O14: 144 | P14: 79 | Q14: 29 | R14: 15 | S14: 14 | T14: 3 | U14: 3 | V14: 1 | W14: 0 | X14: 0 | Y14: =(SUM(Z14:AS14))+0 -> 1215 | Z14: 91 | AA14: 59 | AB14: 74 | AC14: 57 | AD14: 93 | AE14: 106 | AF14: 139 | AG14: 162 | AH14: 143 | AI14: 110 | AJ14: 73 | AK14: 48 | AL14: 27 | AM14: 18 | AN14: 5 | AO14: 7 | AP14: 1 | AQ14: 2 | AR14: 0 | AS14: 0
A15: 14 | B15: LOS MONEGROS | C15: 10 | D15: =((SUM(E15:X15)))+0 -> 1240 | E15: 71 | F15: 59 | G15: 61 | H15: 64 | I15: 84 | J15: 128 | K15: 148 | L15: 129 | M15: 168 | N15: 133 | O15: 95 | P15: 37 | Q15: 28 | R15: 22 | S15: 5 | T15: 4 | U15: 2 | V15: 2 | W15: 0 | X15: 0 | Y15: =(SUM(Z15:AS15))+0 -> 1105 | Z15: 78 | AA15: 73 | AB15: 44 | AC15: 56 | AD15: 56 | AE15: 86 | AF15: 116 | AG15: 149 | AH15: 121 | AI15: 103 | AJ15: 87 | AK15: 54 | AL15: 37 | AM15: 22 | AN15: 12 | AO15: 3 | AP15: 3 | AQ15: 2 | AR15: 3 | AS15: 0
A16: 15 | B16: BAJO CINCA/BAIX CINCA | C16: 11 | D16: =((SUM(E16:X16)))+0 -> 3399 | E16: 180 | F16: 175 | G16: 153 | H16: 139 | I16: 258 | J16: 291 | K16: 328 | L16: 425 | M16: 463 | N16: 411 | O16: 293 | P16: 163 | Q16: 70 | R16: 34 | S16: 7 | T16: 6 | U16: 2 | V16: 1 | W16: 0 | X16: 0 | Y16: =(SUM(Z16:AS16))+0 -> 2447 | Z16: 167 | AA16: 151 | AB16: 113 | AC16: 120 | AD16: 181 | AE16: 195 | AF16: 289 | AG16: 301 | AH16: 305 | AI16: 233 | AJ16: 211 | AK16: 92 | AL16: 52 | AM16: 28 | AN16: 3 | AO16: 4 | AP16: 0 | AQ16: 1 | AR16: 1 | AS16: 0
A17: 16 | B17: TARAZONA Y EL MONCAYO | C17: 12 | D17: =((SUM(E17:X17)))+0 -> 633 | E17: 38 | F17: 41 | G17: 29 | H17: 35 | I17: 50 | J17: 62 | K17: 58 | L17: 82 | M17: 70 | N17: 58 | O17: 39 | P17: 34 | Q17: 18 | R17: 11 | S17: 5 | T17: 3 | U17: 0 | V17: 0 | W17: 0 | X17: 0 | Y17: =(SUM(Z17:AS17))+0 -> 568 | Z17: 38 | AA17: 29 | AB17: 26 | AC17: 23 | AD17: 42 | AE17: 52 | AF17: 73 | AG17: 77 | AH17: 63 | AI17: 42 | AJ17: 28 | AK17: 22 | AL17: 34 | AM17: 7 | AN17: 5 | AO17: 6 | AP17: 0 | AQ17: 0 | AR17: 1 | AS17: 0
A18: 17 | B18: CAMPO DE BORJA | C18: 13 | D18: =((SUM(E18:X18)))+0 -> 935 | E18: 52 | F18: 68 | G18: 62 | H18: 56 | I18: 57 | J18: 90 | K18: 73 | L18: 105 | M18: 112 | N18: 102 | O18: 71 | P18: 54 | Q18: 17 | R18: 8 | S18: 7 | T18: 1 | U18: 0 | V18: 0 | W18: 0 | X18: 0 | Y18: =(SUM(Z18:AS18))+0 -> 754 | Z18: 56 | AA18: 40 | AB18: 47 | AC18: 38 | AD18: 48 | AE18: 66 | AF18: 92 | AG18: 90 | AH18: 91 | AI18: 73 | AJ18: 50 | AK18: 23 | AL18: 20 | AM18: 5 | AN18: 3 | AO18: 7 | AP18: 4 | AQ18: 1 | AR18: 0 | AS18: 0
A19: 18 | B19: ARANDA | C19: 14 | D19: =((SUM(E19:X19)))+0 -> 258 | E19: 6 | F19: 9 | G19: 10 | H19: 17 | I19: 18 | J19: 16 | K19: 20 | L19: 25 | M19: 35 | N19: 41 | O19: 30 | P19: 13 | Q19: 10 | R19: 4 | S19: 3 | T19: 1 | U19: 0 | V19: 0 | W19: 0 | X19: 0 | Y19: =(SUM(Z19:AS19))+0 -> 256 | Z19: 6 | AA19: 10 | AB19: 11 | AC19: 14 | AD19: 12 | AE19: 19 | AF19: 25 | AG19: 34 | AH19: 32 | AI19: 33 | AJ19: 25 | AK19: 11 | AL19: 12 | AM19: 7 | AN19: 4 | AO19: 0 | AP19: 0 | AQ19: 1 | AR19: 0 | AS19: 0
A20: 19 | B20: RIBERA ALTA DEL EBRO | C20: 15 | D20: =((SUM(E20:X20)))+0 -> 1617 | E20: 66 | F20: 72 | G20: 76 | H20: 81 | I20: 91 | J20: 126 | K20: 142 | L20: 184 | M20: 194 | N20: 189 | O20: 187 | P20: 100 | Q20: 62 | R20: 26 | S20: 8 | T20: 9 | U20: 4 | V20: 0 | W20: 0 | X20: 0 | Y20: =(SUM(Z20:AS20))+0 -> 1554 | Z20: 56 | AA20: 97 | AB20: 81 | AC20: 68 | AD20: 101 | AE20: 129 | AF20: 173 | AG20: 182 | AH20: 170 | AI20: 159 | AJ20: 129 | AK20: 85 | AL20: 49 | AM20: 35 | AN20: 16 | AO20: 16 | AP20: 4 | AQ20: 3 | AR20: 1 | AS20: 0
A21: 20 | B21: VALDEJALÓN | C21: 16 | D21: =((SUM(E21:X21)))+0 -> 3835 | E21: 231 | F21: 202 | G21: 185 | H21: 166 | I21: 251 | J21: 279 | K21: 382 | L21: 389 | M21: 487 | N21: 442 | O21: 408 | P21: 193 | Q21: 124 | R21: 69 | S21: 17 | T21: 4 | U21: 4 | V21: 2 | W21: 0 | X21: 0 | Y21: =(SUM(Z21:AS21))+0 -> 3140 | Z21: 216 | AA21: 176 | AB21: 148 | AC21: 126 | AD21: 189 | AE21: 253 | AF21: 336 | AG21: 374 | AH21: 400 | AI21: 322 | AJ21: 289 | AK21: 131 | AL21: 83 | AM21: 50 | AN21: 23 | AO21: 11 | AP21: 8 | AQ21: 3 | AR21: 2 | AS21: 0
A22: 21 | B22: CENTRAL | C22: 17 | D22: =((SUM(E22:X22)))+0 -> 42635 | E22: 2376 | F22: 2385 | G22: 2246 | H22: 2337 | I22: 3283 | J22: 4051 | K22: 4304 | L22: 4661 | M22: 5049 | N22: 4346 | O22: 3174 | P22: 2033 | Q22: 1209 | R22: 636 | S22: 281 | T22: 127 | U22: 92 | V22: 37 | W22: 7 | X22: 1 | Y22: =(SUM(Z22:AS22))+0 -> 44259 | Z22: 2103 | AA22: 2276 | AB22: 2089 | AC22: 2014 | AD22: 3153 | AE22: 4229 | AF22: 5145 | AG22: 5491 | AH22: 5236 | AI22: 4149 | AJ22: 3201 | AK22: 2007 | AL22: 1349 | AM22: 862 | AN22: 497 | AO22: 251 | AP22: 116 | AQ22: 66 | AR22: 20 | AS22: 5
A23: 22 | B23: RIBERA BAJA DEL EBRO | C23: 18 | D23: =((SUM(E23:X23)))+0 -> 405 | E23: 16 | F23: 23 | G23: 25 | H23: 16 | I23: 39 | J23: 36 | K23: 35 | L23: 51 | M23: 45 | N23: 36 | O23: 26 | P23: 24 | Q23: 18 | R23: 6 | S23: 4 | T23: 2 | U23: 3 | V23: 0 | W23: 0 | X23: 0 | Y23: =(SUM(Z23:AS23))+0 -> 409 | Z23: 39 | AA23: 37 | AB23: 21 | AC23: 20 | AD23: 22 | AE23: 34 | AF23: 35 | AG23: 60 | AH23: 45 | AI23: 40 | AJ23: 17 | AK23: 10 | AL23: 6 | AM23: 11 | AN23: 4 | AO23: 6 | AP23: 1 | AQ23: 1 | AR23: 0 | AS23: 0
A24: 23 | B24: BAJO ARAGÓN-CASPE/BAIX ARAGÓ-CASP | C24: 19 | D24: =((SUM(E24:X24)))+0 -> 2508 | E24: 139 | F24: 151 | G24: 117 | H24: 141 | I24: 233 | J24: 229 | K24: 247 | L24: 243 | M24: 290 | N24: 236 | O24: 199 | P24: 124 | Q24: 87 | R24: 43 | S24: 16 | T24: 8 | U24: 3 | V24: 1 | W24: 1 | X24: 0 | Y24: =(SUM(Z24:AS24))+0 -> 1678 | Z24: 147 | AA24: 117 | AB24: 108 | AC24: 108 | AD24: 113 | AE24: 141 | AF24: 174 | AG24: 174 | AH24: 157 | AI24: 152 | AJ24: 113 | AK24: 69 | AL24: 51 | AM24: 28 | AN24: 13 | AO24: 8 | AP24: 3 | AQ24: 1 | AR24: 0 | AS24: 1
A25: 24 | B25: COMUNIDAD DE CALATAYUD | C25: 20 | D25: =((SUM(E25:X25)))+0 -> 2741 | E25: 118 | F25: 156 | G25: 139 | H25: 152 | I25: 182 | J25: 213 | K25: 236 | L25: 285 | M25: 353 | N25: 316 | O25: 256 | P25: 133 | Q25: 107 | R25: 57 | S25: 21 | T25: 10 | U25: 5 | V25: 2 | W25: 0 | X25: 0 | Y25: =(SUM(Z25:AS25))+0 -> 2679 | Z25: 118 | AA25: 126 | AB25: 133 | AC25: 127 | AD25: 168 | AE25: 194 | AF25: 278 | AG25: 306 | AH25: 332 | AI25: 285 | AJ25: 250 | AK25: 129 | AL25: 108 | AM25: 66 | AN25: 40 | AO25: 14 | AP25: 3 | AQ25: 1 | AR25: 0 | AS25: 1
A26: 25 | B26: CAMPO DE CARIÑENA | C26: 21 | D26: =((SUM(E26:X26)))+0 -> 1248 | E26: 54 | F26: 62 | G26: 60 | H26: 44 | I26: 86 | J26: 107 | K26: 148 | L26: 125 | M26: 151 | N26: 152 | O26: 134 | P26: 52 | Q26: 39 | R26: 26 | S26: 3 | T26: 3 | U26: 2 | V26: 0 | W26: 0 | X26: 0 | Y26: =(SUM(Z26:AS26))+0 -> 1009 | Z26: 75 | AA26: 61 | AB26: 68 | AC26: 60 | AD26: 60 | AE26: 86 | AF26: 102 | AG26: 111 | AH26: 110 | AI26: 100 | AJ26: 76 | AK26: 43 | AL26: 33 | AM26: 16 | AN26: 3 | AO26: 3 | AP26: 1 | AQ26: 0 | AR26: 1 | AS26: 0
A27: 26 | B27: CAMPO DE BELCHITE | C27: 22 | D27: =((SUM(E27:X27)))+0 -> 169 | E27: 7 | F27: 13 | G27: 12 | H27: 18 | I27: 16 | J27: 11 | K27: 11 | L27: 16 | M27: 22 | N27: 20 | O27: 12 | P27: 2 | Q27: 5 | R27: 1 | S27: 1 | T27: 1 | U27: 1 | V27: 0 | W27: 0 | X27: 0 | Y27: =(SUM(Z27:AS27))+0 -> 191 | Z27: 13 | AA27: 18 | AB27: 4 | AC27: 11 | AD27: 18 | AE27: 12 | AF27: 21 | AG27: 25 | AH27: 23 | AI27: 19 | AJ27: 9 | AK27: 8 | AL27: 4 | AM27: 4 | AN27: 2 | AO27: 0 | AP27: 0 | AQ27: 0 | AR27: 0 | AS27: 0
A28: 27 | B28: BAJO MARTÍN | C28: 23 | D28: =((SUM(E28:X28)))+0 -> 397 | E28: 31 | F28: 27 | G28: 19 | H28: 26 | I28: 33 | J28: 34 | K28: 32 | L28: 42 | M28: 44 | N28: 39 | O28: 30 | P28: 15 | Q28: 15 | R28: 6 | S28: 3 | T28: 1 | U28: 0 | V28: 0 | W28: 0 | X28: 0 | Y28: =(SUM(Z28:AS28))+0 -> 352 | Z28: 28 | AA28: 34 | AB28: 27 | AC28: 23 | AD28: 28 | AE28: 30 | AF28: 38 | AG28: 24 | AH28: 32 | AI28: 29 | AJ28: 22 | AK28: 10 | AL28: 11 | AM28: 5 | AN28: 5 | AO28: 1 | AP28: 2 | AQ28: 3 | AR28: 0 | AS28: 0
A29: 28 | B29: CAMPO DE DAROCA | C29: 24 | D29: =((SUM(E29:X29)))+0 -> 396 | E29: 29 | F29: 25 | G29: 20 | H29: 17 | I29: 22 | J29: 35 | K29: 60 | L29: 40 | M29: 52 | N29: 43 | O29: 33 | P29: 8 | Q29: 8 | R29: 2 | S29: 0 | T29: 1 | U29: 1 | V29: 0 | W29: 0 | X29: 0 | Y29: =(SUM(Z29:AS29))+0 -> 341 | Z29: 28 | AA29: 24 | AB29: 13 | AC29: 18 | AD29: 27 | AE29: 40 | AF29: 35 | AG29: 32 | AH29: 35 | AI29: 34 | AJ29: 28 | AK29: 9 | AL29: 5 | AM29: 9 | AN29: 0 | AO29: 1 | AP29: 3 | AQ29: 0 | AR29: 0 | AS29: 0
A30: 29 | B30: JILOCA | C30: 25 | D30: =((SUM(E30:X30)))+0 -> 937 | E30: 69 | F30: 57 | G30: 71 | H30: 57 | I30: 78 | J30: 75 | K30: 93 | L30: 89 | M30: 104 | N30: 106 | O30: 66 | P30: 35 | Q30: 20 | R30: 8 | S30: 6 | T30: 1 | U30: 2 | V30: 0 | W30: 0 | X30: 0 | Y30: =(SUM(Z30:AS30))+0 -> 871 | Z30: 57 | AA30: 70 | AB30: 55 | AC30: 49 | AD30: 74 | AE30: 76 | AF30: 96 | AG30: 83 | AH30: 104 | AI30: 65 | AJ30: 63 | AK30: 33 | AL30: 23 | AM30: 13 | AN30: 7 | AO30: 0 | AP30: 2 | AQ30: 0 | AR30: 1 | AS30: 0
A31: 30 | B31: CUENCAS MINERAS | C31: 26 | D31: =((SUM(E31:X31)))+0 -> 402 | E31: 22 | F31: 36 | G31: 24 | H31: 18 | I31: 40 | J31: 39 | K31: 39 | L31: 35 | M31: 45 | N31: 37 | O31: 26 | P31: 21 | Q31: 9 | R31: 9 | S31: 2 | T31: 0 | U31: 0 | V31: 0 | W31: 0 | X31: 0 | Y31: =(SUM(Z31:AS31))+0 -> 335 | Z31: 30 | AA31: 27 | AB31: 17 | AC31: 19 | AD31: 17 | AE31: 38 | AF31: 44 | AG31: 29 | AH31: 31 | AI31: 23 | AJ31: 23 | AK31: 16 | AL31: 11 | AM31: 6 | AN31: 2 | AO31: 1 | AP31: 1 | AQ31: 0 | AR31: 0 | AS31: 0
A32: 31 | B32: ANDORRA-SIERRA DE ARCOS | C32: 27 | D32: =((SUM(E32:X32)))+0 -> 411 | E32: 26 | F32: 36 | G32: 21 | H32: 30 | I32: 40 | J32: 30 | K32: 33 | L32: 30 | M32: 55 | N32: 46 | O32: 30 | P32: 18 | Q32: 9 | R32: 5 | S32: 1 | T32: 0 | U32: 1 | V32: 0 | W32: 0 | X32: 0 | Y32: =(SUM(Z32:AS32))+0 -> 404 | Z32: 16 | AA32: 30 | AB32: 26 | AC32: 21 | AD32: 38 | AE32: 33 | AF32: 45 | AG32: 40 | AH32: 45 | AI32: 44 | AJ32: 33 | AK32: 14 | AL32: 8 | AM32: 5 | AN32: 3 | AO32: 1 | AP32: 1 | AQ32: 1 | AR32: 0 | AS32: 0
A33: 32 | B33: BAJO ARAGÓN | C33: 28 | D33: =((SUM(E33:X33)))+0 -> 1978 | E33: 104 | F33: 128 | G33: 123 | H33: 104 | I33: 150 | J33: 148 | K33: 168 | L33: 218 | M33: 263 | N33: 216 | O33: 158 | P33: 92 | Q33: 56 | R33: 28 | S33: 14 | T33: 3 | U33: 2 | V33: 2 | W33: 1 | X33: 0 | Y33: =(SUM(Z33:AS33))+0 -> 1967 | Z33: 132 | AA33: 137 | AB33: 105 | AC33: 96 | AD33: 125 | AE33: 151 | AF33: 212 | AG33: 209 | AH33: 234 | AI33: 189 | AJ33: 170 | AK33: 76 | AL33: 62 | AM33: 32 | AN33: 15 | AO33: 9 | AP33: 10 | AQ33: 3 | AR33: 0 | AS33: 0
A34: 33 | B34: COMUNIDAD DE TERUEL | C34: 29 | D34: =((SUM(E34:X34)))+0 -> 2385 | E34: 145 | F34: 169 | G34: 117 | H34: 135 | I34: 232 | J34: 213 | K34: 226 | L34: 231 | M34: 254 | N34: 227 | O34: 166 | P34: 121 | Q34: 82 | R34: 34 | S34: 16 | T34: 10 | U34: 4 | V34: 1 | W34: 2 | X34: 0 | Y34: =(SUM(Z34:AS34))+0 -> 2355 | Z34: 156 | AA34: 130 | AB34: 120 | AC34: 135 | AD34: 183 | AE34: 223 | AF34: 233 | AG34: 247 | AH34: 254 | AI34: 231 | AJ34: 178 | AK34: 84 | AL34: 78 | AM34: 54 | AN34: 21 | AO34: 8 | AP34: 12 | AQ34: 5 | AR34: 2 | AS34: 1
A35: 34 | B35: MAESTRAZGO | C35: 30 | D35: =((SUM(E35:X35)))+0 -> 167 | E35: 9 | F35: 14 | G35: 7 | H35: 11 | I35: 11 | J35: 11 | K35: 15 | L35: 23 | M35: 17 | N35: 15 | O35: 19 | P35: 3 | Q35: 5 | R35: 2 | S35: 3 | T35: 1 | U35: 0 | V35: 1 | W35: 0 | X35: 0 | Y35: =(SUM(Z35:AS35))+0 -> 144 | Z35: 13 | AA35: 10 | AB35: 8 | AC35: 7 | AD35: 4 | AE35: 7 | AF35: 16 | AG35: 21 | AH35: 19 | AI35: 10 | AJ35: 10 | AK35: 7 | AL35: 5 | AM35: 3 | AN35: 2 | AO35: 2 | AP35: 0 | AQ35: 0 | AR35: 0 | AS35: 0
A36: 35 | B36: SIERRA DE ALBARRACÍN | C36: 31 | D36: =((SUM(E36:X36)))+0 -> 122 | E36: 8 | F36: 3 | G36: 3 | H36: 10 | I36: 7 | J36: 8 | K36: 5 | L36: 19 | M36: 19 | N36: 12 | O36: 7 | P36: 13 | Q36: 5 | R36: 2 | S36: 0 | T36: 0 | U36: 0 | V36: 1 | W36: 0 | X36: 0 | Y36: =(SUM(Z36:AS36))+0 -> 119 | Z36: 5 | AA36: 6 | AB36: 7 | AC36: 2 | AD36: 4 | AE36: 7 | AF36: 11 | AG36: 15 | AH36: 16 | AI36: 14 | AJ36: 8 | AK36: 7 | AL36: 7 | AM36: 3 | AN36: 3 | AO36: 3 | AP36: 1 | AQ36: 0 | AR36: 0 | AS36: 0
A37: 36 | B37: GÚDAR-JAVALAMBRE | C37: 32 | D37: =((SUM(E37:X37)))+0 -> 513 | E37: 29 | F37: 44 | G37: 32 | H37: 24 | I37: 37 | J37: 41 | K37: 33 | L37: 60 | M37: 73 | N37: 46 | O37: 38 | P37: 25 | Q37: 18 | R37: 5 | S37: 6 | T37: 1 | U37: 1 | V37: 0 | W37: 0 | X37: 0 | Y37: =(SUM(Z37:AS37))+0 -> 432 | Z37: 30 | AA37: 43 | AB37: 25 | AC37: 15 | AD37: 23 | AE37: 51 | AF37: 48 | AG37: 45 | AH37: 41 | AI37: 41 | AJ37: 29 | AK37: 18 | AL37: 13 | AM37: 6 | AN37: 2 | AO37: 0 | AP37: 2 | AQ37: 0 | AR37: 0 | AS37: 0
A38: 37 | B38: MATARRAÑA/MATARRANYA | C38: 33 | D38: =((SUM(E38:X38)))+0 -> 730 | E38: 47 | F38: 31 | G38: 35 | H38: 40 | I38: 45 | J38: 38 | K38: 56 | L38: 82 | M38: 106 | N38: 79 | O38: 50 | P38: 45 | Q38: 29 | R38: 21 | S38: 15 | T38: 9 | U38: 2 | V38: 0 | W38: 0 | X38: 0 | Y38: =(SUM(Z38:AS38))+0 -> 583 | Z38: 38 | AA38: 49 | AB38: 25 | AC38: 27 | AD38: 34 | AE38: 42 | AF38: 60 | AG38: 60 | AH38: 59 | AI38: 47 | AJ38: 40 | AK38: 30 | AL38: 27 | AM38: 20 | AN38: 13 | AO38: 8 | AP38: 4 | AQ38: 0 | AR38: 0 | AS38: 0
A39: 38 | B39: 22001 Abiego | C39: 22001 | D39: =((SUM(E39:X39)))+0 -> 10 | E39: 1 | F39: 3 | G39: 2 | H39: 0 | I39: 0 | J39: 0 | K39: 1 | L39: 0 | M39: 1 | N39: 2 | O39: 0 | P39: 0 | Q39: 0 | R39: 0 | S39: 0 | T39: 0 | U39: 0 | V39: 0 | W39: 0 | X39: 0 | Y39: =(SUM(Z39:AS39))+0 -> 14 | Z39: 0 | AA39: 2 | AB39: 1 | AC39: 0 | AD39: 1 | AE39: 2 | AF39: 2 | AG39: 1 | AH39: 2 | AI39: 0 | AJ39: 0 | AK39: 2 | AL39: 0 | AM39: 0 | AN39: 0 | AO39: 0 | AP39: 1 | AQ39: 0 | AR39: 0 | AS39: 0 | AU39: 0
A40: 39 | B40: 22002 Abizanda | C40: 22002 | D40: =((SUM(E40:X40)))+0 -> 13 | E40: 0 | F40: 0 | G40: 0 | H40: 0 | I40: 0 | J40: 0 | K40: 2 | L40: 2 | M40: 1 | N40: 1 | O40: 1 | P40: 4 | Q40: 0 | R40: 0 | S40: 0 | T40: 2 | U40: 0 | V40: 0 | W40: 0 | X40: 0 | Y40: =(SUM(Z40:AS40))+0 -> 11 | Z40: 0 | AA40: 0 | AB40: 0 | AC40: 0 | AD40: 0 | AE40: 1 | AF40: 1 | AG40: 1 | AH40: 0 | AI40: 0 | AJ40: 3 | AK40: 1 | AL40: 2 | AM40: 0 | AN40: 2 | AO40: 0 | AP40: 0 | AQ40: 0 | AR40: 0 | AS40: 0
A41: 40 | B41: 22003 Adahuesca | C41: 22003 | D41: =((SUM(E41:X41)))+0 -> 11 | E41: 0 | F41: 2 | G41: 0 | H41: 1 | I41: 0 | J41: 1 | K41: 0 | L41: 1 | M41: 2 | N41: 2 | O41: 1 | P41: 1 | Q41: 0 | R41: 0 | S41: 0 | T41: 0 | U41: 0 | V41: 0 | W41: 0 | X41: 0 | Y41: =(SUM(Z41:AS41))+0 -> 6 | Z41: 0 | AA41: 0 | AB41: 0 | AC41: 0 | AD41: 0 | AE41: 1 | AF41: 1 | AG41: 1 | AH41: 2 | AI41: 0 | AJ41: 0 | AK41: 1 | AL41: 0 | AM41: 0 | AN41: 0 | AO41: 0 | AP41: 0 | AQ41: 0 | AR41: 0 | AS41: 0
A42: 41 | B42: 22004 Agüero | C42: 22004 | D42: =((SUM(E42:X42)))+0 -> 4 | E42: 0 | F42: 0 | G42: 1 | H42: 0 | I42: 0 | J42: 0 | K42: 0 | L42: 2 | M42: 0 | N42: 0 | O42: 0 | P42: 0 | Q42: 0 | R42: 1 | S42: 0 | T42: 0 | U42: 0 | V42: 0 | W42: 0 | X42: 0 | Y42: =(SUM(Z42:AS42))+0 -> 4 | Z42: 0 | AA42: 0 | AB42: 1 | AC42: 0 | AD42: 0 | AE42: 0 | AF42: 1 | AG42: 1 | AH42: 1 | AI42: 0 | AJ42: 0 | AK42: 0 | AL42: 0 | AM42: 0 | AN42: 0 | AO42: 0 | AP42: 0 | AQ42: 0 | AR42: 0 | AS42: 0
A43: 42 | B43: 22006 Aísa | C43: 22006 | D43: =((SUM(E43:X43)))+0 -> 9 | E43: 0 | F43: 0 | G43: 0 | H43: 0 | I43: 1 | J43: 1 | K43: 1 | L43: 0 | M43: 2 | N43: 3 | O43: 0 | P43: 0 | Q43: 0 | R43: 0 | S43: 0 | T43: 0 | U43: 0 | V43: 1 | W43: 0 | X43: 0 | Y43: =(SUM(Z43:AS43))+0 -> 11 | Z43: 0 | AA43: 1 | AB43: 1 | AC43: 1 | AD43: 1 | AE43: 1 | AF43: 2 | AG43: 0 | AH43: 2 | AI43: 0 | AJ43: 0 | AK43: 1 | AL43: 1 | AM43: 0 | AN43: 0 | AO43: 0 | AP43: 0 | AQ43: 0 | AR43: 0 | AS43: 0
A44: 43 | B44: 22007 Albalate de Cinca | C44: 22007 | D44: =((SUM(E44:X44)))+0 -> 173 | E44: 7 | F44: 6 | G44: 3 | H44: 5 | I44: 13 | J44: 14 | K44: 16 | L44: 27 | M44: 12 | N44: 16 | O44: 31 | P44: 7 | Q44: 11 | R44: 2 | S44: 3 | T44: 0 | U44: 0 | V44: 0 | W44: 0 | X44: 0 | Y44: =(SUM(Z44:AS44))+0 -> 99 | Z44: 4 | AA44: 7 | AB44: 3 | AC44: 4 | AD44: 2 | AE44: 12 | AF44: 14 | AG44: 12 | AH44: 10 | AI44: 15 | AJ44: 10 | AK44: 4 | AL44: 1 | AM44: 1 | AN44: 0 | AO44: 0 | AP44: 0 | AQ44: 0 | AR44: 0 | AS44: 0
A45: 44 | B45: 22008 Albalatillo | C45: 22008 | D45: =((SUM(E45:X45)))+0 -> 26 | E45: 1 | F45: 1 | G45: 0 | H45: 2 | I45: 2 | J45: 5 | K45: 4 | L45: 1 | M45: 2 | N45: 2 | O45: 4 | P45: 1 | Q45: 0 | R45: 0 | S45: 0 | T45: 0 | U45: 0 | V45: 1 | W45: 0 | X45: 0 | Y45: =(SUM(Z45:AS45))+0 -> 29 | Z45: 2 | AA45: 3 | AB45: 0 | AC45: 1 | AD45: 3 | AE45: 6 | AF45: 1 | AG45: 1 | AH45: 3 | AI45: 4 | AJ45: 4 | AK45: 0 | AL45: 1 | AM45: 0 | AN45: 0 | AO45: 0 | AP45: 0 | AQ45: 0 | AR45: 0 | AS45: 0
A46: 45 | B46: 22009 Albelda | C46: 22009 | D46: =((SUM(E46:X46)))+0 -> 26 | E46: 1 | F46: 4 | G46: 1 | H46: 1 | I46: 2 | J46: 1 | K46: 2 | L46: 4 | M46: 3 | N46: 3 | O46: 0 | P46: 1 | Q46: 3 | R46: 0 | S46: 0 | T46: 0 | U46: 0 | V46: 0 | W46: 0 | X46: 0 | Y46: =(SUM(Z46:AS46))+0 -> 16 | Z46: 2 | AA46: 0 | AB46: 0 | AC46: 0 | AD46: 1 | AE46: 0 | AF46: 1 | AG46: 1 | AH46: 2 | AI46: 3 | AJ46: 3 | AK46: 2 | AL46: 1 | AM46: 0 | AN46: 0 | AO46: 0 | AP46: 0 | AQ46: 0 | AR46: 0 | AS46: 0
A47: 46 | B47: 22011 Albero Alto | C47: 22011 | D47: =((SUM(E47:X47)))+0 -> 1 | E47: 0 | F47: 0 | G47: 0 | H47: 0 | I47: 0 | J47: 0 | K47: 0 | L47: 0 | M47: 0 | N47: 0 | O47: 1 | P47: 0 | Q47: 0 | R47: 0 | S47: 0 | T47: 0 | U47: 0 | V47: 0 | W47: 0 | X47: 0 | Y47: =(SUM(Z47:AS47))+0 -> 3 | Z47: 0 | AA47: 0 | AB47: 0 | AC47: 0 | AD47: 0 | AE47: 0 | AF47: 0 | AG47: 0 | AH47: 0 | AI47: 0 | AJ47: 1 | AK47: 1 | AL47: 0 | AM47: 0 | AN47: 1 | AO47: 0 | AP47: 0 | AQ47: 0 | AR47: 0 | AS47: 0
A48: 47 | B48: 22012 Albero Bajo | C48: 22012 | D48: =((SUM(E48:X48)))+0 -> 3 | E48: 1 | F48: 0 | G48: 0 | H48: 0 | I48: 0 | J48: 0 | K48: 1 | L48: 0 | M48: 0 | N48: 0 | O48: 0 | P48: 0 | Q48: 0 | R48: 0 | S48: 0 | T48: 1 | U48: 0 | V48: 0 | W48: 0 | X48: 0 | Y48: =(SUM(Z48:AS48))+0 -> 8 | Z48: 0 | AA48: 0 | AB48: 0 | AC48: 0 | AD48: 1 | AE48: 0 | AF48: 1 | AG48: 2 | AH48: 0 | AI48: 2 | AJ48: 1 | AK48: 0 | AL48: 0 | AM48: 0 | AN48: 1 | AO48: 0 | AP48: 0 | AQ48: 0 | AR48: 0 | AS48: 0
A49: 48 | B49: 22013 Alberuela de Tubo | C49: 22013 | D49: =((SUM(E49:X49)))+0 -> 5 | E49: 0 | F49: 0 | G49: 1 | H49: 0 | I49: 0 | J49: 0 | K49: 1 | L49: 0 | M49: 1 | N49: 1 | O49: 1 | P49: 0 | Q49: 0 | R49: 0 | S49: 0 | T49: 0 | U49: 0 | V49: 0 | W49: 0 | X49: 0 | Y49: =(SUM(Z49:AS49))+0 -> 7 | Z49: 0 | AA49: 0 | AB49: 0 | AC49: 1 | AD49: 0 | AE49: 1 | AF49: 0 | AG49: 1 | AH49: 2 | AI49: 0 | AJ49: 0 | AK49: 1 | AL49: 1 | AM49: 0 | AN49: 0 | AO49: 0 | AP49: 0 | AQ49: 0 | AR49: 0 | AS49: 0
A50: 49 | B50: 22014 Alcalá de Gurrea | C50: 22014 | D50: =((SUM(E50:X50)))+0 -> 1 | E50: 0 | F50: 0 | G50: 0 | H50: 0 | I50: 1 | J50: 0 | K50: 0 | L50: 0 | M50: 0 | N50: 0 | O50: 0 | P50: 0 | Q50: 0 | R50: 0 | S50: 0 | T50: 0 | U50: 0 | V50: 0 | W50: 0 | X50: 0 | Y50: =(SUM(Z50:AS50))+0 -> 2 | Z50: 0 | AA50: 0 | AB50: 0 | AC50: 0 | AD50: 1 | AE50: 0 | AF50: 0 | AG50: 1 | AH50: 0 | AI50: 0 | AJ50: 0 | AK50: 0 | AL50: 0 | AM50: 0 | AN50: 0 | AO50: 0 | AP50: 0 | AQ50: 0 | AR50: 0 | AS50: 0
A51: 50 | B51: 22015 Alcalá del Obispo | C51: 22015 | D51: =((SUM(E51:X51)))+0 -> 15 | E51: 1 | F51: 5 | G51: 1 | H51: 1 | I51: 1 | J51: 1 | K51: 0 | L51: 1 | M51: 4 | N51: 0 | O51: 0 | P51: 0 | Q51: 0 | R51: 0 | S51: 0 | T51: 0 | U51: 0 | V51: 0 | W51: 0 | X51: 0 | Y51: =(SUM(Z51:AS51))+0 -> 8 | Z51: 0 | AA51: 1 | AB51: 0 | AC51: 0 | AD51: 1 | AE51: 0 | AF51: 0 | AG51: 2 | AH51: 1 | AI51: 1 | AJ51: 1 | AK51: 1 | AL51: 0 | AM51: 0 | AN51: 0 | AO51: 0 | AP51: 0 | AQ51: 0 | AR51: 0 | AS51: 0
A52: 51 | B52: 22016 Alcampell | C52: 22016 | D52: =((SUM(E52:X52)))+0 -> 12 | E52: 1 | F52: 0 | G52: 0 | H52: 0 | I52: 0 | J52: 2 | K52: 3 | L52: 0 | M52: 1 | N52: 3 | O52: 0 | P52: 2 | Q52: 0 | R52: 0 | S52: 0 | T52: 0 | U52: 0 | V52: 0 | W52: 0 | X52: 0 | Y52: =(SUM(Z52:AS52))+0 -> 11 | Z52: 2 | AA52: 0 | AB52: 0 | AC52: 0 | AD52: 1 | AE52: 1 | AF52: 2 | AG52: 4 | AH52: 1 | AI52: 0 | AJ52: 0 | AK52: 0 | AL52: 0 | AM52: 0 | AN52: 0 | AO52: 0 | AP52: 0 | AQ52: 0 | AR52: 0 | AS52: 0
A53: 52 | B53: 22017 Alcolea de Cinca | C53: 22017 | D53: =((SUM(E53:X53)))+0 -> 134 | E53: 8 | F53: 2 | G53: 1 | H53: 5 | I53: 8 | J53: 10 | K53: 14 | L53: 17 | M53: 24 | N53: 24 | O53: 12 | P53: 6 | Q53: 3 | R53: 0 | S53: 0 | T53: 0 | U53: 0 | V53: 0 | W53: 0 | X53: 0 | Y53: =(SUM(Z53:AS53))+0 -> 73 | Z53: 4 | AA53: 3 | AB53: 6 | AC53: 3 | AD53: 9 | AE53: 13 | AF53: 5 | AG53: 5 | AH53: 6 | AI53: 7 | AJ53: 6 | AK53: 4 | AL53: 1 | AM53: 1 | AN53: 0 | AO53: 0 | AP53: 0 | AQ53: 0 | AR53: 0 | AS53: 0
A54: 53 | B54: 22018 Alcubierre | C54: 22018 | D54: =((SUM(E54:X54)))+0 -> 25 | E54: 2 | F54: 2 | G54: 4 | H54: 0 | I54: 0 | J54: 4 | K54: 2 | L54: 1 | M54: 5 | N54: 3 | O54: 0 | P54: 0 | Q54: 0 | R54: 1 | S54: 0 | T54: 0 | U54: 0 | V54: 1 | W54: 0 | X54: 0 | Y54: =(SUM(Z54:AS54))+0 -> 17 | Z54: 1 | AA54: 0 | AB54: 1 | AC54: 1 | AD54: 0 | AE54: 1 | AF54: 4 | AG54: 5 | AH54: 0 | AI54: 0 | AJ54: 1 | AK54: 1 | AL54: 1 | AM54: 1 | AN54: 0 | AO54: 0 | AP54: 0 | AQ54: 0 | AR54: 0 | AS54: 0
A55: 54 | B55: 22019 Alerre | C55: 22019 | D55: =((SUM(E55:X55)))+0 -> 5 | E55: 0 | F55: 0 | G55: 1 | H55: 0 | I55: 0 | J55: 0 | K55: 0 | L55: 0 | M55: 2 | N55: 0 | O55: 1 | P55: 0 | Q55: 1 | R55: 0 | S55: 0 | T55: 0 | U55: 0 | V55: 0 | W55: 0 | X55: 0 | Y55: =(SUM(Z55:AS55))+0 -> 5 | Z55: 0 | AA55: 0 | AB55: 0 | AC55: 1 | AD55: 0 | AE55: 0 | AF55: 1 | AG55: 0 | AH55: 0 | AI55: 1 | AJ55: 0 | AK55: 0 | AL55: 1 | AM55: 0 | AN55: 1 | AO55: 0 | AP55: 0 | AQ55: 0 | AR55: 0 | AS55: 0
A56: 55 | B56: 22020 Alfántega | C56: 22020 | D56: =((SUM(E56:X56)))+0 -> 7 | E56: 0 | F56: 0 | G56: 0 | H56: 0 | I56: 0 | J56: 2 | K56: 2 | L56: 0 | M56: 0 | N56: 2 | O56: 0 | P56: 1 | Q56: 0 | R56: 0 | S56: 0 | T56: 0 | U56: 0 | V56: 0 | W56: 0 | X56: 0 | Y56: =(SUM(Z56:AS56))+0 -> 4 | Z56: 0 | AA56: 0 | AB56: 0 | AC56: 0 | AD56: 0 | AE56: 1 | AF56: 1 | AG56: 0 | AH56: 0 | AI56: 1 | AJ56: 0 | AK56: 0 | AL56: 0 | AM56: 0 | AN56: 1 | AO56: 0 | AP56: 0 | AQ56: 0 | AR56: 0 | AS56: 0
A57: 56 | B57: 22021 Almudévar | C57: 22021 | D57: =((SUM(E57:X57)))+0 -> 74 | E57: 2 | F57: 8 | G57: 2 | H57: 7 | I57: 7 | J57: 3 | K57: 9 | L57: 9 | M57: 8 | N57: 4 | O57: 8 | P57: 1 | Q57: 2 | R57: 0 | S57: 1 | T57: 1 | U57: 1 | V57: 1 | W57: 0 | X57: 0 | Y57: =(SUM(Z57:AS57))+0 -> 84 | Z57: 4 | AA57: 5 | AB57: 6 | AC57: 5 | AD57: 4 | AE57: 9 | AF57: 11 | AG57: 9 | AH57: 13 | AI57: 4 | AJ57: 8 | AK57: 2 | AL57: 1 | AM57: 1 | AN57: 1 | AO57: 1 | AP57: 0 | AQ57: 0 | AR57: 0 | AS57: 0
A58: 57 | B58: 22022 Almunia de San Juan | C58: 22022 | D58: =((SUM(E58:X58)))+0 -> 22 | E58: 2 | F58: 0 | G58: 2 | H58: 2 | I58: 1 | J58: 2 | K58: 1 | L58: 3 | M58: 3 | N58: 1 | O58: 3 | P58: 0 | Q58: 0 | R58: 1 | S58: 1 | T58: 0 | U58: 0 | V58: 0 | W58: 0 | X58: 0 | Y58: =(SUM(Z58:AS58))+0 -> 26 | Z58: 1 | AA58: 2 | AB58: 0 | AC58: 1 | AD58: 3 | AE58: 4 | AF58: 2 | AG58: 2 | AH58: 4 | AI58: 0 | AJ58: 3 | AK58: 2 | AL58: 1 | AM58: 0 | AN58: 1 | AO58: 0 | AP58: 0 | AQ58: 0 | AR58: 0 | AS58: 0
A59: 58 | B59: 22023 Almuniente | C59: 22023 | D59: =((SUM(E59:X59)))+0 -> 15 | E59: 0 | F59: 0 | G59: 1 | H59: 0 | I59: 0 | J59: 1 | K59: 2 | L59: 4 | M59: 3 | N59: 2 | O59: 0 | P59: 0 | Q59: 2 | R59: 0 | S59: 0 | T59: 0 | U59: 0 | V59: 0 | W59: 0 | X59: 0 | Y59: =(SUM(Z59:AS59))+0 -> 18 | Z59: 0 | AA59: 4 | AB59: 2 | AC59: 1 | AD59: 1 | AE59: 1 | AF59: 4 | AG59: 1 | AH59: 0 | AI59: 1 | AJ59: 1 | AK59: 2 | AL59: 0 | AM59: 0 | AN59: 0 | AO59: 0 | AP59: 0 | AQ59: 0 | AR59: 0 | AS59: 0
A60: 59 | B60: 22024 Alquézar | C60: 22024 | D60: =((SUM(E60:X60)))+0 -> 36 | E60: 3 | F60: 0 | G60: 3 | H60: 1 | I60: 0 | J60: 3 | K60: 3 | L60: 5 | M60: 2 | N60: 0 | O60: 1 | P60: 2 | Q60: 6 | R60: 4 | S60: 1 | T60: 1 | U60: 0 | V60: 1 | W60: 0 | X60: 0 | Y60: =(SUM(Z60:AS60))+0 -> 42 | Z60: 3 | AA60: 1 | AB60: 0 | AC60: 1 | AD60: 3 | AE60: 2 | AF60: 3 | AG60: 5 | AH60: 7 | AI60: 2 | AJ60: 1 | AK60: 2 | AL60: 4 | AM60: 3 | AN60: 0 | AO60: 1 | AP60: 3 | AQ60: 0 | AR60: 0 | AS60: 1
A61: 60 | B61: 22025 Altorricón | C61: 22025 | D61: =((SUM(E61:X61)))+0 -> 173 | E61: 5 | F61: 12 | G61: 5 | H61: 7 | I61: 18 | J61: 16 | K61: 18 | L61: 25 | M61: 20 | N61: 23 | O61: 12 | P61: 9 | Q61: 2 | R61: 0 | S61: 1 | T61: 0 | U61: 0 | V61: 0 | W61: 0 | X61: 0 | Y61: =(SUM(Z61:AS61))+0 -> 90 | Z61: 8 | AA61: 4 | AB61: 6 | AC61: 6 | AD61: 6 | AE61: 9 | AF61: 10 | AG61: 12 | AH61: 10 | AI61: 8 | AJ61: 5 | AK61: 4 | AL61: 2 | AM61: 0 | AN61: 0 | AO61: 0 | AP61: 0 | AQ61: 0 | AR61: 0 | AS61: 0
A62: 61 | B62: 22027 Angüés | C62: 22027 | D62: =((SUM(E62:X62)))+0 -> 18 | E62: 0 | F62: 1 | G62: 1 | H62: 3 | I62: 0 | J62: 1 | K62: 2 | L62: 1 | M62: 6 | N62: 2 | O62: 1 | P62: 0 | Q62: 0 | R62: 0 | S62: 0 | T62: 0 | U62: 0 | V62: 0 | W62: 0 | X62: 0 | Y62: =(SUM(Z62:AS62))+0 -> 17 | Z62: 2 | AA62: 0 | AB62: 3 | AC62: 2 | AD62: 2 | AE62: 0 | AF62: 1 | AG62: 3 | AH62: 0 | AI62: 2 | AJ62: 1 | AK62: 0 | AL62: 1 | AM62: 0 | AN62: 0 | AO62: 0 | AP62: 0 | AQ62: 0 | AR62: 0 | AS62: 0
A63: 62 | B63: 22028 Ansó | C63: 22028 | D63: =((SUM(E63:X63)))+0 -> 3 | E63: 0 | F63: 0 | G63: 0 | H63: 0 | I63: 0 | J63: 0 | K63: 0 | L63: 0 | M63: 0 | N63: 1 | O63: 0 | P63: 1 | Q63: 1 | R63: 0 | S63: 0 | T63: 0 | U63: 0 | V63: 0 | W63: 0 | X63: 0 | Y63: =(SUM(Z63:AS63))+0 -> 4 | Z63: 0 | AA63: 0 | AB63: 0 | AC63: 0 | AD63: 1 | AE63: 0 | AF63: 1 | AG63: 0 | AH63: 2 | AI63: 0 | AJ63: 0 | AK63: 0 | AL63: 0 | AM63: 0 | AN63: 0 | AO63: 0 | AP63: 0 | AQ63: 0 | AR63: 0 | AS63: 0
A64: 63 | B64: 22029 Antillón | C64: 22029 | D64: =((SUM(E64:X64)))+0 -> 2 | E64: 0 | F64: 0 | G64: 1 | H64: 0 | I64: 0 | J64: 1 | K64: 0 | L64: 0 | M64: 0 | N64: 0 | O64: 0 | P64: 0 | Q64: 0 | R64: 0 | S64: 0 | T64: 0 | U64: 0 | V64: 0 | W64: 0 | X64: 0 | Y64: =(SUM(Z64:AS64))+0 -> 5 | Z64: 0 | AA64: 0 | AB64: 0 | AC64: 0 | AD64: 0 | AE64: 0 | AF64: 1 | AG64: 1 | AH64: 1 | AI64: 0 | AJ64: 2 | AK64: 0 | AL64: 0 | AM64: 0 | AN64: 0 | AO64: 0 | AP64: 0 | AQ64: 0 | AR64: 0 | AS64: 0
A65: 64 | B65: 22032 Aragüés del Puerto | C65: 22032 | D65: =((SUM(E65:X65)))+0 -> 0 | E65: 0 | F65: 0 | G65: 0 | H65: 0 | I65: 0 | J65: 0 | K65: 0 | L65: 0 | M65: 0 | N65: 0 | O65: 0 | P65: 0 | Q65: 0 | R65: 0 | S65: 0 | T65: 0 | U65: 0 | V65: 0 | W65: 0 | X65: 0 | Y65: =(SUM(Z65:AS65))+0 -> 0 | Z65: 0 | AA65: 0 | AB65: 0 | AC65: 0 | AD65: 0 | AE65: 0 | AF65: 0 | AG65: 0 | AH65: 0 | AI65: 0 | AJ65: 0 | AK65: 0 | AL65: 0 | AM65: 0 | AN65: 0 | AO65: 0 | AP65: 0 | AQ65: 0 | AR65: 0 | AS65: 0
A66: 65 | B66: 22035 Arén | C66: 22035 | D66: =((SUM(E66:X66)))+0 -> 27 | E66: 0 | F66: 0 | G66: 0 | H66: 0 | I66: 0 | J66: 4 | K66: 2 | L66: 2 | M66: 5 | N66: 7 | O66: 2 | P66: 1 | Q66: 2 | R66: 0 | S66: 1 | T66: 0 | U66: 1 | V66: 0 | W66: 0 | X66: 0 | Y66: =(SUM(Z66:AS66))+0 -> 24 | Z66: 0 | AA66: 1 | AB66: 0 | AC66: 0 | AD66: 0 | AE66: 3 | AF66: 4 | AG66: 5 | AH66: 2 | AI66: 3 | AJ66: 2 | AK66: 1 | AL66: 2 | AM66: 0 | AN66: 1 | AO66: 0 | AP66: 0 | AQ66: 0 | AR66: 0 | AS66: 0
A67: 66 | B67: 22036 Argavieso | C67: 22036 | D67: =((SUM(E67:X67)))+0 -> 11 | E67: 0 | F67: 0 | G67: 2 | H67: 2 | I67: 3 | J67: 0 | K67: 1 | L67: 0 | M67: 0 | N67: 3 | O67: 0 | P67: 0 | Q67: 0 | R67: 0 | S67: 0 | T67: 0 | U67: 0 | V67: 0 | W67: 0 | X67: 0 | Y67: =(SUM(Z67:AS67))+0 -> 3 | Z67: 0 | AA67: 0 | AB67: 0 | AC67: 0 | AD67: 0 | AE67: 0 | AF67: 0 | AG67: 0 | AH67: 0 | AI67: 2 | AJ67: 1 | AK67: 0 | AL67: 0 | AM67: 0 | AN67: 0 | AO67: 0 | AP67: 0 | AQ67: 0 | AR67: 0 | AS67: 0
A68: 67 | B68: 22037 Arguis | C68: 22037 | D68: =((SUM(E68:X68)))+0 -> 0 | E68: 0 | F68: 0 | G68: 0 | H68: 0 | I68: 0 | J68: 0 | K68: 0 | L68: 0 | M68: 0 | N68: 0 | O68: 0 | P68: 0 | Q68: 0 | R68: 0 | S68: 0 | T68: 0 | U68: 0 | V68: 0 | W68: 0 | X68: 0 | Y68: =(SUM(Z68:AS68))+0 -> 2 | Z68: 0 | AA68: 0 | AB68: 0 | AC68: 0 | AD68: 0 | AE68: 1 | AF68: 1 | AG68: 0 | AH68: 0 | AI68: 0 | AJ68: 0 | AK68: 0 | AL68: 0 | AM68: 0 | AN68: 0 | AO68: 0 | AP68: 0 | AQ68: 0 | AR68: 0 | AS68: 0
A69: 68 | B69: 22039 Ayerbe | C69: 22039 | D69: =((SUM(E69:X69)))+0 -> 34 | E69: 3 | F69: 3 | G69: 3 | H69: 1 | I69: 2 | J69: 3 | K69: 2 | L69: 2 | M69: 8 | N69: 2 | O69: 0 | P69: 2 | Q69: 0 | R69: 1 | S69: 1 | T69: 0 | U69: 0 | V69: 1 | W69: 0 | X69: 0 | Y69: =(SUM(Z69:AS69))+0 -> 45 | Z69: 2 | AA69: 4 | AB69: 2 | AC69: 4 | AD69: 2 | AE69: 0 | AF69: 8 | AG69: 7 | AH69: 9 | AI69: 2 | AJ69: 2 | AK69: 1 | AL69: 1 | AM69: 0 | AN69: 0 | AO69: 0 | AP69: 0 | AQ69: 1 | AR69: 0 | AS69: 0
A70: 69 | B70: 22040 Azanuy-Alins | C70: 22040 | D70: =((SUM(E70:X70)))+0 -> 5 | E70: 1 | F70: 0 | G70: 0 | H70: 0 | I70: 0 | J70: 0 | K70: 2 | L70: 0 | M70: 0 | N70: 0 | O70: 0 | P70: 1 | Q70: 0 | R70: 1 | S70: 0 | T70: 0 | U70: 0 | V70: 0 | W70: 0 | X70: 0 | Y70: =(SUM(Z70:AS70))+0 -> 4 | Z70: 1 | AA70: 0 | AB70: 0 | AC70: 0 | AD70: 0 | AE70: 0 | AF70: 0 | AG70: 1 | AH70: 1 | AI70: 0 | AJ70: 0 | AK70: 0 | AL70: 0 | AM70: 1 | AN70: 0 | AO70: 0 | AP70: 0 | AQ70: 0 | AR70: 0 | AS70: 0
A71: 70 | B71: 22041 Azara | C71: 22041 | D71: =((SUM(E71:X71)))+0 -> 2 | E71: 0 | F71: 0 | G71: 0 | H71: 0 | I71: 0 | J71: 0 | K71: 0 | L71: 0 | M71: 0 | N71: 0 | O71: 0 | P71: 2 | Q71: 0 | R71: 0 | S71: 0 | T71: 0 | U71: 0 | V71: 0 | W71: 0 | X71: 0 | Y71: =(SUM(Z71:AS71))+0 -> 1 | Z71: 0 | AA71: 0 | AB71: 0 | AC71: 0 | AD71: 0 | AE71: 0 | AF71: 0 | AG71: 0 | AH71: 0 | AI71: 0 | AJ71: 0 | AK71: 0 | AL71: 1 | AM71: 0 | AN71: 0 | AO71: 0 | AP71: 0 | AQ71: 0 | AR71: 0 | AS71: 0
A72: 71 | B72: 22042 Azlor | C72: 22042 | D72: =((SUM(E72:X72)))+0 -> 5 | E72: 0 | F72: 1 | G72: 0 | H72: 0 | I72: 0 | J72: 1 | K72: 0 | L72: 1 | M72: 1 | N72: 0 | O72: 0 | P72: 1 | Q72: 0 | R72: 0 | S72: 0 | T72: 0 | U72: 0 | V72: 0 | W72: 0 | X72: 0 | Y72: =(SUM(Z72:AS72))+0 -> 5 | Z72: 0 | AA72: 0 | AB72: 0 | AC72: 0 | AD72: 0 | AE72: 0 | AF72: 2 | AG72: 0 | AH72: 0 | AI72: 0 | AJ72: 0 | AK72: 1 | AL72: 1 | AM72: 1 | AN72: 0 | AO72: 0 | AP72: 0 | AQ72: 0 | AR72: 0 | AS72: 0
A73: 72 | B73: 22043 Baells | C73: 22043 | D73: =((SUM(E73:X73)))+0 -> 2 | E73: 0 | F73: 0 | G73: 0 | H73: 0 | I73: 0 | J73: 0 | K73: 1 | L73: 0 | M73: 0 | N73: 0 | O73: 1 | P73: 0 | Q73: 0 | R73: 0 | S73: 0 | T73: 0 | U73: 0 | V73: 0 | W73: 0 | X73: 0 | Y73: =(SUM(Z73:AS73))+0 -> 4 | Z73: 0 | AA73: 0 | AB73: 0 | AC73: 0 | AD73: 0 | AE73: 1 | AF73: 0 | AG73: 0 | AH73: 1 | AI73: 1 | AJ73: 0 | AK73: 0 | AL73: 1 | AM73: 0 | AN73: 0 | AO73: 0 | AP73: 0 | AQ73: 0 | AR73: 0 | AS73: 0
A74: 73 | B74: 22044 Bailo | C74: 22044 | D74: =((SUM(E74:X74)))+0 -> 11 | E74: 0 | F74: 0 | G74: 1 | H74: 1 | I74: 0 | J74: 0 | K74: 0 | L74: 2 | M74: 1 | N74: 2 | O74: 0 | P74: 1 | Q74: 1 | R74: 0 | S74: 1 | T74: 0 | U74: 1 | V74: 0 | W74: 0 | X74: 0 | Y74: =(SUM(Z74:AS74))+0 -> 7 | Z74: 0 | AA74: 0 | AB74: 0 | AC74: 0 | AD74: 0 | AE74: 0 | AF74: 0 | AG74: 1 | AH74: 1 | AI74: 0 | AJ74: 0 | AK74: 1 | AL74: 0 | AM74: 0 | AN74: 2 | AO74: 1 | AP74: 1 | AQ74: 0 | AR74: 0 | AS74: 0
A75: 74 | B75: 22045 Baldellou | C75: 22045 | D75: =((SUM(E75:X75)))+0 -> 2 | E75: 0 | F75: 0 | G75: 0 | H75: 0 | I75: 0 | J75: 1 | K75: 0 | L75: 0 | M75: 0 | N75: 1 | O75: 0 | P75: 0 | Q75: 0 | R75: 0 | S75: 0 | T75: 0 | U75: 0 | V75: 0 | W75: 0 | X75: 0 | Y75: =(SUM(Z75:AS75))+0 -> 2 | Z75: 0 | AA75: 0 | AB75: 0 | AC75: 0 | AD75: 0 | AE75: 0 | AF75: 0 | AG75: 1 | AH75: 1 | AI75: 0 | AJ75: 0 | AK75: 0 | AL75: 0 | AM75: 0 | AN75: 0 | AO75: 0 | AP75: 0 | AQ75: 0 | AR75: 0 | AS75: 0
A76: 75 | B76: 22046 Ballobar | C76: 22046 | D76: =((SUM(E76:X76)))+0 -> 52 | E76: 2 | F76: 1 | G76: 2 | H76: 2 | I76: 3 | J76: 7 | K76: 5 | L76: 4 | M76: 10 | N76: 9 | O76: 2 | P76: 3 | Q76: 2 | R76: 0 | S76: 0 | T76: 0 | U76: 0 | V76: 0 | W76: 0 | X76: 0 | Y76: =(SUM(Z76:AS76))+0 -> 28 | Z76: 2 | AA76: 3 | AB76: 0 | AC76: 1 | AD76: 2 | AE76: 4 | AF76: 1 | AG76: 3 | AH76: 3 | AI76: 2 | AJ76: 5 | AK76: 1 | AL76: 1 | AM76: 0 | AN76: 0 | AO76: 0 | AP76: 0 | AQ76: 0 | AR76: 0 | AS76: 0
A77: 76 | B77: 22047 Banastás | C77: 22047 | D77: =((SUM(E77:X77)))+0 -> 2 | E77: 0 | F77: 0 | G77: 0 | H77: 0 | I77: 0 | J77: 0 | K77: 0 | L77: 0 | M77: 0 | N77: 0 | O77: 0 | P77: 2 | Q77: 0 | R77: 0 | S77: 0 | T77: 0 | U77: 0 | V77: 0 | W77: 0 | X77: 0 | Y77: =(SUM(Z77:AS77))+0 -> 5 | Z77: 0 | AA77: 0 | AB77: 0 | AC77: 0 | AD77: 0 | AE77: 0 | AF77: 0 | AG77: 2 | AH77: 1 | AI77: 1 | AJ77: 0 | AK77: 0 | AL77: 0 | AM77: 1 | AN77: 0 | AO77: 0 | AP77: 0 | AQ77: 0 | AR77: 0 | AS77: 0
A78: 77 | B78: 22048 Barbastro | C78: 22048 | D78: =((SUM(E78:X78)))+0 -> 1076 | E78: 68 | F78: 53 | G78: 46 | H78: 72 | I78: 77 | J78: 100 | K78: 96 | L78: 118 | M78: 166 | N78: 114 | O78: 71 | P78: 44 | Q78: 23 | R78: 10 | S78: 11 | T78: 5 | U78: 2 | V78: 0 | W78: 0 | X78: 0 | Y78: =(SUM(Z78:AS78))+0 -> 1025 | Z78: 47 | AA78: 44 | AB78: 46 | AC78: 43 | AD78: 72 | AE78: 103 | AF78: 135 | AG78: 132 | AH78: 115 | AI78: 90 | AJ78: 70 | AK78: 52 | AL78: 26 | AM78: 22 | AN78: 14 | AO78: 8 | AP78: 0 | AQ78: 6 | AR78: 0 | AS78: 0
A79: 78 | B79: 22049 Barbués | C79: 22049 | D79: =((SUM(E79:X79)))+0 -> 3 | E79: 0 | F79: 0 | G79: 1 | H79: 0 | I79: 0 | J79: 0 | K79: 0 | L79: 1 | M79: 0 | N79: 1 | O79: 0 | P79: 0 | Q79: 0 | R79: 0 | S79: 0 | T79: 0 | U79: 0 | V79: 0 | W79: 0 | X79: 0 | Y79: =(SUM(Z79:AS79))+0 -> 3 | Z79: 0 | AA79: 0 | AB79: 0 | AC79: 1 | AD79: 0 | AE79: 0 | AF79: 0 | AG79: 1 | AH79: 0 | AI79: 0 | AJ79: 1 | AK79: 0 | AL79: 0 | AM79: 0 | AN79: 0 | AO79: 0 | AP79: 0 | AQ79: 0 | AR79: 0 | AS79: 0
A80: 79 | B80: 22050 Barbuñales | C80: 22050 | D80: =((SUM(E80:X80)))+0 -> 1 | E80: 0 | F80: 0 | G80: 0 | H80: 0 | I80: 0 | J80: 0 | K80: 0 | L80: 0 | M80: 0 | N80: 0 | O80: 0 | P80: 1 | Q80: 0 | R80: 0 | S80: 0 | T80: 0 | U80: 0 | V80: 0 | W80: 0 | X80: 0 | Y80: =(SUM(Z80:AS80))+0 -> 1 | Z80: 0 | AA80: 0 | AB80: 0 | AC80: 0 | AD80: 0 | AE80: 0 | AF80: 0 | AG80: 0 | AH80: 0 | AI80: 0 | AJ80: 0 | AK80: 1 | AL80: 0 | AM80: 0 | AN80: 0 | AO80: 0 | AP80: 0 | AQ80: 0 | AR80: 0 | AS80: 0
A81: 80 | B81: 22051 Bárcabo | C81: 22051 | D81: =((SUM(E81:X81)))+0 -> 9 | E81: 0 | F81: 0 | G81: 0 | H81: 0 | I81: 0 | J81: 0 | K81: 0 | L81: 0 | M81: 1 | N81: 2 | O81: 0 | P81: 1 | Q81: 0 | R81: 4 | S81: 0 | T81: 1 | U81: 0 | V81: 0 | W81: 0 | X81: 0 | Y81: =(SUM(Z81:AS81))+0 -> 9 | Z81: 0 | AA81: 0 | AB81: 0 | AC81: 0 | AD81: 0 | AE81: 0 | AF81: 1 | AG81: 0 | AH81: 1 | AI81: 1 | AJ81: 0 | AK81: 1 | AL81: 0 | AM81: 3 | AN81: 1 | AO81: 1 | AP81: 0 | AQ81: 0 | AR81: 0 | AS81: 0
A82: 81 | B82: 22052 Belver de Cinca | C82: 22052 | D82: =((SUM(E82:X82)))+0 -> 223 | E82: 5 | F82: 7 | G82: 8 | H82: 9 | I82: 13 | J82: 28 | K82: 24 | L82: 31 | M82: 31 | N82: 31 | O82: 22 | P82: 9 | Q82: 1 | R82: 4 | S82: 0 | T82: 0 | U82: 0 | V82: 0 | W82: 0 | X82: 0 | Y82: =(SUM(Z82:AS82))+0 -> 84 | Z82: 9 | AA82: 5 | AB82: 4 | AC82: 3 | AD82: 4 | AE82: 7 | AF82: 16 | AG82: 12 | AH82: 7 | AI82: 3 | AJ82: 5 | AK82: 4 | AL82: 1 | AM82: 3 | AN82: 1 | AO82: 0 | AP82: 0 | AQ82: 0 | AR82: 0 | AS82: 0
A83: 82 | B83: 22053 Benabarre | C83: 22053 | D83: =((SUM(E83:X83)))+0 -> 118 | E83: 10 | F83: 7 | G83: 11 | H83: 5 | I83: 8 | J83: 8 | K83: 11 | L83: 10 | M83: 14 | N83: 15 | O83: 10 | P83: 1 | Q83: 2 | R83: 4 | S83: 0 | T83: 2 | U83: 0 | V83: 0 | W83: 0 | X83: 0 | Y83: =(SUM(Z83:AS83))+0 -> 108 | Z83: 4 | AA83: 3 | AB83: 4 | AC83: 9 | AD83: 9 | AE83: 11 | AF83: 10 | AG83: 11 | AH83: 16 | AI83: 14 | AJ83: 12 | AK83: 2 | AL83: 0 | AM83: 0 | AN83: 1 | AO83: 1 | AP83: 1 | AQ83: 0 | AR83: 0 | AS83: 0
A84: 83 | B84: 22054 Benasque | C84: 22054 | D84: =((SUM(E84:X84)))+0 -> 91 | E84: 2 | F84: 2 | G84: 6 | H84: 3 | I84: 7 | J84: 9 | K84: 8 | L84: 13 | M84: 16 | N84: 12 | O84: 6 | P84: 4 | Q84: 2 | R84: 1 | S84: 0 | T84: 0 | U84: 0 | V84: 0 | W84: 0 | X84: 0 | Y84: =(SUM(Z84:AS84))+0 -> 114 | Z84: 0 | AA84: 4 | AB84: 7 | AC84: 2 | AD84: 14 | AE84: 12 | AF84: 12 | AG84: 20 | AH84: 18 | AI84: 11 | AJ84: 8 | AK84: 1 | AL84: 2 | AM84: 1 | AN84: 1 | AO84: 0 | AP84: 0 | AQ84: 1 | AR84: 0 | AS84: 0
A85: 84 | B85: 22055 Berbegal | C85: 22055 | D85: =((SUM(E85:X85)))+0 -> 10 | E85: 0 | F85: 0 | G85: 1 | H85: 1 | I85: 0 | J85: 0 | K85: 1 | L85: 2 | M85: 2 | N85: 1 | O85: 2 | P85: 0 | Q85: 0 | R85: 0 | S85: 0 | T85: 0 | U85: 0 | V85: 0 | W85: 0 | X85: 0 | Y85: =(SUM(Z85:AS85))+0 -> 10 | Z85: 0 | AA85: 0 | AB85: 0 | AC85: 0 | AD85: 1 | AE85: 1 | AF85: 1 | AG85: 3 | AH85: 2 | AI85: 1 | AJ85: 1 | AK85: 0 | AL85: 0 | AM85: 0 | AN85: 0 | AO85: 0 | AP85: 0 | AQ85: 0 | AR85: 0 | AS85: 0
A86: 85 | B86: 22057 Bielsa | C86: 22057 | D86: =((SUM(E86:X86)))+0 -> 22 | E86: 0 | F86: 0 | G86: 3 | H86: 0 | I86: 0 | J86: 2 | K86: 1 | L86: 4 | M86: 4 | N86: 4 | O86: 1 | P86: 1 | Q86: 0 | R86: 0 | S86: 2 | T86: 0 | U86: 0 | V86: 0 | W86: 0 | X86: 0 | Y86: =(SUM(Z86:AS86))+0 -> 21 | Z86: 0 | AA86: 0 | AB86: 0 | AC86: 1 | AD86: 1 | AE86: 3 | AF86: 2 | AG86: 1 | AH86: 2 | AI86: 2 | AJ86: 2 | AK86: 1 | AL86: 1 | AM86: 3 | AN86: 1 | AO86: 0 | AP86: 0 | AQ86: 1 | AR86: 0 | AS86: 0
A87: 86 | B87: 22058 Bierge | C87: 22058 | D87: =((SUM(E87:X87)))+0 -> 11 | E87: 1 | F87: 0 | G87: 1 | H87: 0 | I87: 0 | J87: 0 | K87: 0 | L87: 2 | M87: 3 | N87: 1 | O87: 0 | P87: 1 | Q87: 0 | R87: 1 | S87: 0 | T87: 1 | U87: 0 | V87: 0 | W87: 0 | X87: 0 | Y87: =(SUM(Z87:AS87))+0 -> 16 | Z87: 1 | AA87: 0 | AB87: 0 | AC87: 0 | AD87: 0 | AE87: 1 | AF87: 4 | AG87: 1 | AH87: 1 | AI87: 2 | AJ87: 2 | AK87: 2 | AL87: 1 | AM87: 1 | AN87: 0 | AO87: 0 | AP87: 0 | AQ87: 0 | AR87: 0 | AS87: 0
A88: 87 | B88: 22059 Biescas | C88: 22059 | D88: =((SUM(E88:X88)))+0 -> 78 | E88: 1 | F88: 8 | G88: 5 | H88: 2 | I88: 2 | J88: 4 | K88: 6 | L88: 10 | M88: 5 | N88: 12 | O88: 5 | P88: 6 | Q88: 8 | R88: 3 | S88: 1 | T88: 0 | U88: 0 | V88: 0 | W88: 0 | X88: 0 | Y88: =(SUM(Z88:AS88))+0 -> 80 | Z88: 3 | AA88: 1 | AB88: 4 | AC88: 4 | AD88: 3 | AE88: 10 | AF88: 8 | AG88: 12 | AH88: 9 | AI88: 7 | AJ88: 4 | AK88: 8 | AL88: 1 | AM88: 4 | AN88: 1 | AO88: 0 | AP88: 0 | AQ88: 1 | AR88: 0 | AS88: 0
A89: 88 | B89: 22060 Binaced | C89: 22060 | D89: =((SUM(E89:X89)))+0 -> 194 | E89: 3 | F89: 4 | G89: 4 | H89: 13 | I89: 12 | J89: 35 | K89: 27 | L89: 39 | M89: 28 | N89: 14 | O89: 6 | P89: 3 | Q89: 4 | R89: 2 | S89: 0 | T89: 0 | U89: 0 | V89: 0 | W89: 0 | X89: 0 | Y89: =(SUM(Z89:AS89))+0 -> 67 | Z89: 3 | AA89: 4 | AB89: 2 | AC89: 5 | AD89: 9 | AE89: 10 | AF89: 6 | AG89: 10 | AH89: 7 | AI89: 4 | AJ89: 4 | AK89: 2 | AL89: 1 | AM89: 0 | AN89: 0 | AO89: 0 | AP89: 0 | AQ89: 0 | AR89: 0 | AS89: 0
A90: 89 | B90: 22061 Binéfar | C90: 22061 | D90: =((SUM(E90:X90)))+0 -> 1269 | E90: 56 | F90: 49 | G90: 49 | H90: 72 | I90: 100 | J90: 143 | K90: 132 | L90: 134 | M90: 208 | N90: 148 | O90: 92 | P90: 49 | Q90: 16 | R90: 12 | S90: 6 | T90: 2 | U90: 1 | V90: 0 | W90: 0 | X90: 0 | Y90: =(SUM(Z90:AS90))+0 -> 765 | Z90: 60 | AA90: 37 | AB90: 45 | AC90: 38 | AD90: 57 | AE90: 66 | AF90: 88 | AG90: 103 | AH90: 96 | AI90: 66 | AJ90: 46 | AK90: 30 | AL90: 13 | AM90: 10 | AN90: 3 | AO90: 6 | AP90: 0 | AQ90: 1 | AR90: 0 | AS90: 0
A91: 90 | B91: 22062 Bisaurri | C91: 22062 | D91: =((SUM(E91:X91)))+0 -> 1 | E91: 0 | F91: 0 | G91: 0 | H91: 0 | I91: 0 | J91: 0 | K91: 0 | L91: 0 | M91: 0 | N91: 0 | O91: 1 | P91: 0 | Q91: 0 | R91: 0 | S91: 0 | T91: 0 | U91: 0 | V91: 0 | W91: 0 | X91: 0 | Y91: =(SUM(Z91:AS91))+0 -> 6 | Z91: 0 | AA91: 0 | AB91: 0 | AC91: 0 | AD91: 0 | AE91: 1 | AF91: 0 | AG91: 0 | AH91: 2 | AI91: 2 | AJ91: 0 | AK91: 1 | AL91: 0 | AM91: 0 | AN91: 0 | AO91: 0 | AP91: 0 | AQ91: 0 | AR91: 0 | AS91: 0
A92: 91 | B92: 22063 Biscarrués | C92: 22063 | D92: =((SUM(E92:X92)))+0 -> 6 | E92: 0 | F92: 1 | G92: 0 | H92: 1 | I92: 1 | J92: 1 | K92: 0 | L92: 0 | M92: 1 | N92: 0 | O92: 1 | P92: 0 | Q92: 0 | R92: 0 | S92: 0 | T92: 0 | U92: 0 | V92: 0 | W92: 0 | X92: 0 | Y92: =(SUM(Z92:AS92))+0 -> 5 | Z92: 0 | AA92: 0 | AB92: 0 | AC92: 1 | AD92: 0 | AE92: 0 | AF92: 0 | AG92: 0 | AH92: 1 | AI92: 0 | AJ92: 2 | AK92: 0 | AL92: 0 | AM92: 1 | AN92: 0 | AO92: 0 | AP92: 0 | AQ92: 0 | AR92: 0 | AS92: 0
A93: 92 | B93: 22064 Blecua y Torres | C93: 22064 | D93: =((SUM(E93:X93)))+0 -> 4 | E93: 0 | F93: 0 | G93: 0 | H93: 0 | I93: 0 | J93: 0 | K93: 0 | L93: 0 | M93: 1 | N93: 0 | O93: 2 | P93: 0 | Q93: 1 | R93: 0 | S93: 0 | T93: 0 | U93: 0 | V93: 0 | W93: 0 | X93: 0 | Y93: =(SUM(Z93:AS93))+0 -> 4 | Z93: 0 | AA93: 0 | AB93: 0 | AC93: 0 | AD93: 0 | AE93: 0 | AF93: 1 | AG93: 1 | AH93: 2 | AI93: 0 | AJ93: 0 | AK93: 0 | AL93: 0 | AM93: 0 | AN93: 0 | AO93: 0 | AP93: 0 | AQ93: 0 | AR93: 0 | AS93: 0
A94: 93 | B94: 22066 Boltaña | C94: 22066 | D94: =((SUM(E94:X94)))+0 -> 74 | E94: 3 | F94: 5 | G94: 5 | H94: 2 | I94: 5 | J94: 4 | K94: 10 | L94: 4 | M94: 10 | N94: 4 | O94: 7 | P94: 6 | Q94: 5 | R94: 3 | S94: 1 | T94: 0 | U94: 0 | V94: 0 | W94: 0 | X94: 0 | Y94: =(SUM(Z94:AS94))+0 -> 78 | Z94: 4 | AA94: 0 | AB94: 2 | AC94: 2 | AD94: 6 | AE94: 4 | AF94: 14 | AG94: 8 | AH94: 7 | AI94: 6 | AJ94: 7 | AK94: 6 | AL94: 6 | AM94: 3 | AN94: 1 | AO94: 1 | AP94: 0 | AQ94: 1 | AR94: 0 | AS94: 0
A95: 94 | B95: 22067 Bonansa | C95: 22067 | D95: =((SUM(E95:X95)))+0 -> 3 | E95: 0 | F95: 0 | G95: 0 | H95: 0 | I95: 0 | J95: 1 | K95: 0 | L95: 0 | M95: 1 | N95: 0 | O95: 1 | P95: 0 | Q95: 0 | R95: 0 | S95: 0 | T95: 0 | U95: 0 | V95: 0 | W95: 0 | X95: 0 | Y95: =(SUM(Z95:AS95))+0 -> 1 | Z95: 0 | AA95: 0 | AB95: 0 | AC95: 0 | AD95: 0 | AE95: 0 | AF95: 0 | AG95: 1 | AH95: 0 | AI95: 0 | AJ95: 0 | AK95: 0 | AL95: 0 | AM95: 0 | AN95: 0 | AO95: 0 | AP95: 0 | AQ95: 0 | AR95: 0 | AS95: 0
A96: 95 | B96: 22068 Borau | C96: 22068 | D96: =((SUM(E96:X96)))+0 -> 2 | E96: 0 | F96: 0 | G96: 0 | H96: 0 | I96: 0 | J96: 0 | K96: 0 | L96: 0 | M96: 0 | N96: 0 | O96: 0 | P96: 0 | Q96: 1 | R96: 1 | S96: 0 | T96: 0 | U96: 0 | V96: 0 | W96: 0 | X96: 0 | Y96: =(SUM(Z96:AS96))+0 -> 3 | Z96: 0 | AA96: 0 | AB96: 0 | AC96: 0 | AD96: 0 | AE96: 1 | AF96: 0 | AG96: 0 | AH96: 1 | AI96: 0 | AJ96: 1 | AK96: 0 | AL96: 0 | AM96: 0 | AN96: 0 | AO96: 0 | AP96: 0 | AQ96: 0 | AR96: 0 | AS96: 0
A97: 96 | B97: 22069 Broto | C97: 22069 | D97: =((SUM(E97:X97)))+0 -> 32 | E97: 4 | F97: 2 | G97: 1 | H97: 3 | I97: 3 | J97: 2 | K97: 1 | L97: 6 | M97: 3 | N97: 2 | O97: 2 | P97: 1 | Q97: 0 | R97: 1 | S97: 1 | T97: 0 | U97: 0 | V97: 0 | W97: 0 | X97: 0 | Y97: =(SUM(Z97:AS97))+0 -> 24 | Z97: 1 | AA97: 0 | AB97: 1 | AC97: 1 | AD97: 2 | AE97: 0 | AF97: 5 | AG97: 3 | AH97: 2 | AI97: 4 | AJ97: 1 | AK97: 1 | AL97: 3 | AM97: 0 | AN97: 0 | AO97: 0 | AP97: 0 | AQ97: 0 | AR97: 0 | AS97: 0
A98: 97 | B98: 22072 Caldearenas | C98: 22072 | D98: =((SUM(E98:X98)))+0 -> 3 | E98: 0 | F98: 0 | G98: 0 | H98: 0 | I98: 0 | J98: 0 | K98: 0 | L98: 1 | M98: 1 | N98: 0 | O98: 0 | P98: 0 | Q98: 0 | R98: 1 | S98: 0 | T98: 0 | U98: 0 | V98: 0 | W98: 0 | X98: 0 | Y98: =(SUM(Z98:AS98))+0 -> 4 | Z98: 0 | AA98: 0 | AB98: 0 | AC98: 0 | AD98: 0 | AE98: 0 | AF98: 0 | AG98: 1 | AH98: 0 | AI98: 0 | AJ98: 0 | AK98: 1 | AL98: 1 | AM98: 0 | AN98: 1 | AO98: 0 | AP98: 0 | AQ98: 0 | AR98: 0 | AS98: 0
A99: 98 | B99: 22074 Campo | C99: 22074 | D99: =((SUM(E99:X99)))+0 -> 40 | E99: 1 | F99: 2 | G99: 1 | H99: 0 | I99: 5 | J99: 5 | K99: 4 | L99: 4 | M99: 3 | N99: 3 | O99: 10 | P99: 1 | Q99: 0 | R99: 1 | S99: 0 | T99: 0 | U99: 0 | V99: 0 | W99: 0 | X99: 0 | Y99: =(SUM(Z99:AS99))+0 -> 39 | Z99: 2 | AA99: 2 | AB99: 2 | AC99: 0 | AD99: 1 | AE99: 6 | AF99: 2 | AG99: 3 | AH99: 8 | AI99: 7 | AJ99: 3 | AK99: 1 | AL99: 1 | AM99: 1 | AN99: 0 | AO99: 0 | AP99: 0 | AQ99: 0 | AR99: 0 | AS99: 0
A100: 99 | B100: 22075 Camporrells | C100: 22075 | D100: =((SUM(E100:X100)))+0 -> 2 | E100: 0 | F100: 0 | G100: 0 | H100: 0 | I100: 0 | J100: 0 | K100: 0 | L100: 0 | M100: 0 | N100: 0 | O100: 1 | P100: 0 | Q100: 1 | R100: 0 | S100: 0 | T100: 0 | U100: 0 | V100: 0 | W100: 0 | X100: 0 | Y100: =(SUM(Z100:AS100))+0 -> 11 | Z100: 0 | AA100: 1 | AB100: 0 | AC100: 0 | AD100: 1 | AE100: 1 | AF100: 0 | AG100: 1 | AH100: 0 | AI100: 1 | AJ100: 2 | AK100: 2 | AL100: 1 | AM100: 0 | AN100: 1 | AO100: 0 | AP100: 0 | AQ100: 0 | AR100: 0 | AS100: 0
A101: 100 | B101: 22076 Canal de Berdún | C101: 22076 | D101: =((SUM(E101:X101)))+0 -> 8 | E101: 0 | F101: 0 | G101: 1 | H101: 0 | I101: 1 | J101: 1 | K101: 0 | L101: 0 | M101: 0 | N101: 1 | O101: 1 | P101: 1 | Q101: 1 | R101: 0 | S101: 1 | T101: 0 | U101: 0 | V101: 0 | W101: 0 | X101: 0 | Y101: =(SUM(Z101:AS101))+0 -> 18 | Z101: 0 | AA101: 1 | AB101: 1 | AC101: 1 | AD101: 1 | AE101: 0 | AF101: 4 | AG101: 0 | AH101: 0 | AI101: 2 | AJ101: 4 | AK101: 2 | AL101: 0 | AM101: 0 | AN101: 1 | AO101: 0 | AP101: 1 | AQ101: 0 | AR101: 0 | AS101: 0
A102: 101 | B102: 22077 Candasnos | C102: 22077 | D102: =((SUM(E102:X102)))+0 -> 21 | E102: 0 | F102: 0 | G102: 3 | H102: 0 | I102: 3 | J102: 2 | K102: 1 | L102: 1 | M102: 3 | N102: 2 | O102: 2 | P102: 2 | Q102: 2 | R102: 0 | S102: 0 | T102: 0 | U102: 0 | V102: 0 | W102: 0 | X102: 0 | Y102: =(SUM(Z102:AS102))+0 -> 16 | Z102: 1 | AA102: 0 | AB102: 1 | AC102: 1 | AD102: 0 | AE102: 2 | AF102: 1 | AG102: 4 | AH102: 4 | AI102: 1 | AJ102: 0 | AK102: 0 | AL102: 1 | AM102: 0 | AN102: 0 | AO102: 0 | AP102: 0 | AQ102: 0 | AR102: 0 | AS102: 0
A103: 102 | B103: 22078 Canfranc | C103: 22078 | D103: =((SUM(E103:X103)))+0 -> 24 | E103: 0 | F103: 1 | G103: 3 | H103: 0 | I103: 2 | J103: 5 | K103: 3 | L103: 4 | M103: 1 | N103: 3 | O103: 0 | P103: 2 | Q103: 0 | R103: 0 | S103: 0 | T103: 0 | U103: 0 | V103: 0 | W103: 0 | X103: 0 | Y103: =(SUM(Z103:AS103))+0 -> 23 | Z103: 1 | AA103: 1 | AB103: 0 | AC103: 0 | AD103: 6 | AE103: 2 | AF103: 3 | AG103: 4 | AH103: 2 | AI103: 2 | AJ103: 0 | AK103: 2 | AL103: 0 | AM103: 0 | AN103: 0 | AO103: 0 | AP103: 0 | AQ103: 0 | AR103: 0 | AS103: 0
A104: 103 | B104: 22079 Capdesaso | C104: 22079 | D104: =((SUM(E104:X104)))+0 -> 13 | E104: 0 | F104: 0 | G104: 0 | H104: 1 | I104: 0 | J104: 1 | K104: 1 | L104: 0 | M104: 3 | N104: 4 | O104: 1 | P104: 2 | Q104: 0 | R104: 0 | S104: 0 | T104: 0 | U104: 0 | V104: 0 | W104: 0 | X104: 0 | Y104: =(SUM(Z104:AS104))+0 -> 60 | Z104: 0 | AA104: 0 | AB104: 0 | AC104: 0 | AD104: 0 | AE104: 1 | AF104: 5 | AG104: 11 | AH104: 7 | AI104: 15 | AJ104: 14 | AK104: 6 | AL104: 1 | AM104: 0 | AN104: 0 | AO104: 0 | AP104: 0 | AQ104: 0 | AR104: 0 | AS104: 0
A105: 104 | B105: 22080 Capella | C105: 22080 | D105: =((SUM(E105:X105)))+0 -> 40 | E105: 1 | F105: 4 | G105: 0 | H105: 1 | I105: 4 | J105: 6 | K105: 4 | L105: 4 | M105: 3 | N105: 4 | O105: 4 | P105: 0 | Q105: 1 | R105: 2 | S105: 1 | T105: 0 | U105: 1 | V105: 0 | W105: 0 | X105: 0 | Y105: =(SUM(Z105:AS105))+0 -> 29 | Z105: 1 | AA105: 1 | AB105: 0 | AC105: 1 | AD105: 1 | AE105: 4 | AF105: 3 | AG105: 3 | AH105: 7 | AI105: 1 | AJ105: 1 | AK105: 1 | AL105: 2 | AM105: 1 | AN105: 1 | AO105: 1 | AP105: 0 | AQ105: 0 | AR105: 0 | AS105: 0
A106: 105 | B106: 22081 Casbas de Huesca | C106: 22081 | D106: =((SUM(E106:X106)))+0 -> 6 | E106: 0 | F106: 0 | G106: 0 | H106: 0 | I106: 0 | J106: 0 | K106: 1 | L106: 1 | M106: 0 | N106: 1 | O106: 0 | P106: 1 | Q106: 0 | R106: 1 | S106: 0 | T106: 1 | U106: 0 | V106: 0 | W106: 0 | X106: 0 | Y106: =(SUM(Z106:AS106))+0 -> 8 | Z106: 0 | AA106: 0 | AB106: 0 | AC106: 0 | AD106: 0 | AE106: 0 | AF106: 1 | AG106: 1 | AH106: 0 | AI106: 1 | AJ106: 4 | AK106: 0 | AL106: 0 | AM106: 1 | AN106: 0 | AO106: 0 | AP106: 0 | AQ106: 0 | AR106: 0 | AS106: 0
A107: 106 | B107: 22082 Castejón del Puente | C107: 22082 | D107: =((SUM(E107:X107)))+0 -> 6 | E107: 0 | F107: 2 | G107: 0 | H107: 0 | I107: 0 | J107: 0 | K107: 2 | L107: 1 | M107: 0 | N107: 0 | O107: 0 | P107: 1 | Q107: 0 | R107: 0 | S107: 0 | T107: 0 | U107: 0 | V107: 0 | W107: 0 | X107: 0 | Y107: =(SUM(Z107:AS107))+0 -> 4 | Z107: 0 | AA107: 0 | AB107: 0 | AC107: 0 | AD107: 0 | AE107: 3 | AF107: 1 | AG107: 0 | AH107: 0 | AI107: 0 | AJ107: 0 | AK107: 0 | AL107: 0 | AM107: 0 | AN107: 0 | AO107: 0 | AP107: 0 | AQ107: 0 | AR107: 0 | AS107: 0
A108: 107 | B108: 22083 Castejón de Monegros | C108: 22083 | D108: =((SUM(E108:X108)))+0 -> 23 | E108: 1 | F108: 2 | G108: 1 | H108: 1 | I108: 5 | J108: 1 | K108: 1 | L108: 1 | M108: 5 | N108: 3 | O108: 1 | P108: 0 | Q108: 1 | R108: 0 | S108: 0 | T108: 0 | U108: 0 | V108: 0 | W108: 0 | X108: 0 | Y108: =(SUM(Z108:AS108))+0 -> 23 | Z108: 1 | AA108: 0 | AB108: 1 | AC108: 2 | AD108: 2 | AE108: 1 | AF108: 3 | AG108: 5 | AH108: 0 | AI108: 4 | AJ108: 0 | AK108: 2 | AL108: 1 | AM108: 1 | AN108: 0 | AO108: 0 | AP108: 0 | AQ108: 0 | AR108: 0 | AS108: 0
A109: 108 | B109: 22084 Castejón de Sos | C109: 22084 | D109: =((SUM(E109:X109)))+0 -> 28 | E109: 1 | F109: 4 | G109: 1 | H109: 1 | I109: 2 | J109: 2 | K109: 2 | L109: 4 | M109: 2 | N109: 4 | O109: 1 | P109: 2 | Q109: 0 | R109: 0 | S109: 1 | T109: 0 | U109: 1 | V109: 0 | W109: 0 | X109: 0 | Y109: =(SUM(Z109:AS109))+0 -> 33 | Z109: 1 | AA109: 1 | AB109: 1 | AC109: 1 | AD109: 3 | AE109: 2 | AF109: 6 | AG109: 2 | AH109: 6 | AI109: 5 | AJ109: 3 | AK109: 1 | AL109: 1 | AM109: 0 | AN109: 0 | AO109: 0 | AP109: 0 | AQ109: 0 | AR109: 0 | AS109: 0
A110: 109 | B110: 22085 Castelflorite | C110: 22085 | D110: =((SUM(E110:X110)))+0 -> 3 | E110: 0 | F110: 0 | G110: 0 | H110: 1 | I110: 0 | J110: 0 | K110: 0 | L110: 0 | M110: 0 | N110: 1 | O110: 0 | P110: 1 | Q110: 0 | R110: 0 | S110: 0 | T110: 0 | U110: 0 | V110: 0 | W110: 0 | X110: 0 | Y110: =(SUM(Z110:AS110))+0 -> 5 | Z110: 0 | AA110: 1 | AB110: 0 | AC110: 0 | AD110: 1 | AE110: 0 | AF110: 0 | AG110: 1 | AH110: 1 | AI110: 0 | AJ110: 0 | AK110: 1 | AL110: 0 | AM110: 0 | AN110: 0 | AO110: 0 | AP110: 0 | AQ110: 0 | AR110: 0 | AS110: 0
A111: 110 | B111: 22086 Castiello de Jaca | C111: 22086 | D111: =((SUM(E111:X111)))+0 -> 5 | E111: 0 | F111: 0 | G111: 0 | H111: 0 | I111: 1 | J111: 0 | K111: 0 | L111: 0 | M111: 0 | N111: 3 | O111: 0 | P111: 0 | Q111: 0 | R111: 1 | S111: 0 | T111: 0 | U111: 0 | V111: 0 | W111: 0 | X111: 0 | Y111: =(SUM(Z111:AS111))+0 -> 5 | Z111: 0 | AA111: 0 | AB111: 0 | AC111: 0 | AD111: 0 | AE111: 0 | AF111: 1 | AG111: 1 | AH111: 2 | AI111: 0 | AJ111: 0 | AK111: 1 | AL111: 0 | AM111: 0 | AN111: 0 | AO111: 0 | AP111: 0 | AQ111: 0 | AR111: 0 | AS111: 0
A112: 111 | B112: 22087 Castigaleu | C112: 22087 | D112: =((SUM(E112:X112)))+0 -> 10 | E112: 1 | F112: 1 | G112: 0 | H112: 0 | I112: 1 | J112: 1 | K112: 2 | L112: 2 | M112: 1 | N112: 0 | O112: 1 | P112: 0 | Q112: 0 | R112: 0 | S112: 0 | T112: 0 | U112: 0 | V112: 0 | W112: 0 | X112: 0 | Y112: =(SUM(Z112:AS112))+0 -> 8 | Z112: 0 | AA112: 0 | AB112: 0 | AC112: 0 | AD112: 0 | AE112: 3 | AF112: 1 | AG112: 1 | AH112: 0 | AI112: 2 | AJ112: 0 | AK112: 0 | AL112: 1 | AM112: 0 | AN112: 0 | AO112: 0 | AP112: 0 | AQ112: 0 | AR112: 0 | AS112: 0
A113: 112 | B113: 22088 Castillazuelo | C113: 22088 | D113: =((SUM(E113:X113)))+0 -> 7 | E113: 1 | F113: 0 | G113: 1 | H113: 0 | I113: 0 | J113: 0 | K113: 2 | L113: 0 | M113: 2 | N113: 0 | O113: 0 | P113: 1 | Q113: 0 | R113: 0 | S113: 0 | T113: 0 | U113: 0 | V113: 0 | W113: 0 | X113: 0 | Y113: =(SUM(Z113:AS113))+0 -> 2 | Z113: 0 | AA113: 0 | AB113: 0 | AC113: 0 | AD113: 0 | AE113: 0 | AF113: 0 | AG113: 1 | AH113: 0 | AI113: 0 | AJ113: 1 | AK113: 0 | AL113: 0 | AM113: 0 | AN113: 0 | AO113: 0 | AP113: 0 | AQ113: 0 | AR113: 0 | AS113: 0
A114: 113 | B114: 22089 Castillonroy | C114: 22089 | D114: =((SUM(E114:X114)))+0 -> 14 | E114: 0 | F114: 1 | G114: 1 | H114: 1 | I114: 0 | J114: 6 | K114: 2 | L114: 0 | M114: 2 | N114: 1 | O114: 0 | P114: 0 | Q114: 0 | R114: 0 | S114: 0 | T114: 0 | U114: 0 | V114: 0 | W114: 0 | X114: 0 | Y114: =(SUM(Z114:AS114))+0 -> 18 | Z114: 2 | AA114: 0 | AB114: 3 | AC114: 0 | AD114: 1 | AE114: 2 | AF114: 2 | AG114: 3 | AH114: 2 | AI114: 1 | AJ114: 0 | AK114: 1 | AL114: 0 | AM114: 1 | AN114: 0 | AO114: 0 | AP114: 0 | AQ114: 0 | AR114: 0 | AS114: 0
A115: 114 | B115: 22090 Colungo | C115: 22090 | D115: =((SUM(E115:X115)))+0 -> 8 | E115: 0 | F115: 0 | G115: 1 | H115: 1 | I115: 0 | J115: 0 | K115: 1 | L115: 1 | M115: 0 | N115: 2 | O115: 0 | P115: 0 | Q115: 0 | R115: 0 | S115: 0 | T115: 1 | U115: 1 | V115: 0 | W115: 0 | X115: 0 | Y115: =(SUM(Z115:AS115))+0 -> 13 | Z115: 1 | AA115: 0 | AB115: 0 | AC115: 0 | AD115: 1 | AE115: 1 | AF115: 1 | AG115: 1 | AH115: 4 | AI115: 0 | AJ115: 1 | AK115: 1 | AL115: 0 | AM115: 0 | AN115: 1 | AO115: 0 | AP115: 0 | AQ115: 1 | AR115: 0 | AS115: 0
A116: 115 | B116: 22094 Chalamera | C116: 22094 | D116: =((SUM(E116:X116)))+0 -> 3 | E116: 0 | F116: 1 | G116: 0 | H116: 0 | I116: 0 | J116: 0 | K116: 0 | L116: 1 | M116: 0 | N116: 1 | O116: 0 | P116: 0 | Q116: 0 | R116: 0 | S116: 0 | T116: 0 | U116: 0 | V116: 0 | W116: 0 | X116: 0 | Y116: =(SUM(Z116:AS116))+0 -> 5 | Z116: 1 | AA116: 0 | AB116: 1 | AC116: 0 | AD116: 1 | AE116: 0 | AF116: 0 | AG116: 1 | AH116: 0 | AI116: 0 | AJ116: 0 | AK116: 1 | AL116: 0 | AM116: 0 | AN116: 0 | AO116: 0 | AP116: 0 | AQ116: 0 | AR116: 0 | AS116: 0
A117: 116 | B117: 22095 Chía | C117: 22095 | D117: =((SUM(E117:X117)))+0 -> 1 | E117: 0 | F117: 0 | G117: 0 | H117: 0 | I117: 0 | J117: 0 | K117: 0 | L117: 0 | M117: 0 | N117: 0 | O117: 0 | P117: 0 | Q117: 0 | R117: 0 | S117: 1 | T117: 0 | U117: 0 | V117: 0 | W117: 0 | X117: 0 | Y117: =(SUM(Z117:AS117))+0 -> 1 | Z117: 0 | AA117: 0 | AB117: 0 | AC117: 0 | AD117: 0 | AE117: 0 | AF117: 0 | AG117: 0 | AH117: 1 | AI117: 0 | AJ117: 0 | AK117: 0 | AL117: 0 | AM117: 0 | AN117: 0 | AO117: 0 | AP117: 0 | AQ117: 0 | AR117: 0 | AS117: 0
A118: 117 | B118: 22096 Chimillas | C118: 22096 | D118: =((SUM(E118:X118)))+0 -> 5 | E118: 1 | F118: 0 | G118: 0 | H118: 1 | I118: 0 | J118: 0 | K118: 0 | L118: 1 | M118: 1 | N118: 0 | O118: 1 | P118: 0 | Q118: 0 | R118: 0 | S118: 0 | T118: 0 | U118: 0 | V118: 0 | W118: 0 | X118: 0 | Y118: =(SUM(Z118:AS118))+0 -> 3 | Z118: 0 | AA118: 0 | AB118: 1 | AC118: 0 | AD118: 0 | AE118: 0 | AF118: 0 | AG118: 0 | AH118: 1 | AI118: 0 | AJ118: 1 | AK118: 0 | AL118: 0 | AM118: 0 | AN118: 0 | AO118: 0 | AP118: 0 | AQ118: 0 | AR118: 0 | AS118: 0
A119: 118 | B119: 22099 Esplús | C119: 22099 | D119: =((SUM(E119:X119)))+0 -> 51 | E119: 3 | F119: 2 | G119: 2 | H119: 2 | I119: 5 | J119: 4 | K119: 6 | L119: 7 | M119: 7 | N119: 6 | O119: 1 | P119: 3 | Q119: 0 | R119: 0 | S119: 1 | T119: 0 | U119: 1 | V119: 1 | W119: 0 | X119: 0 | Y119: =(SUM(Z119:AS119))+0 -> 32 | Z119: 4 | AA119: 1 | AB119: 0 | AC119: 2 | AD119: 3 | AE119: 5 | AF119: 0 | AG119: 5 | AH119: 3 | AI119: 3 | AJ119: 4 | AK119: 0 | AL119: 0 | AM119: 1 | AN119: 0 | AO119: 0 | AP119: 0 | AQ119: 1 | AR119: 0 | AS119: 0
A120: 119 | B120: 22102 Estada | C120: 22102 | D120: =((SUM(E120:X120)))+0 -> 5 | E120: 1 | F120: 0 | G120: 0 | H120: 1 | I120: 0 | J120: 0 | K120: 0 | L120: 1 | M120: 1 | N120: 1 | O120: 0 | P120: 0 | Q120: 0 | R120: 0 | S120: 0 | T120: 0 | U120: 0 | V120: 0 | W120: 0 | X120: 0 | Y120: =(SUM(Z120:AS120))+0 -> 7 | Z120: 0 | AA120: 0 | AB120: 1 | AC120: 0 | AD120: 0 | AE120: 1 | AF120: 1 | AG120: 1 | AH120: 0 | AI120: 1 | AJ120: 0 | AK120: 1 | AL120: 1 | AM120: 0 | AN120: 0 | AO120: 0 | AP120: 0 | AQ120: 0 | AR120: 0 | AS120: 0
A121: 120 | B121: 22103 Estadilla | C121: 22103 | D121: =((SUM(E121:X121)))+0 -> 18 | E121: 0 | F121: 2 | G121: 3 | H121: 0 | I121: 2 | J121: 0 | K121: 1 | L121: 1 | M121: 3 | N121: 1 | O121: 5 | P121: 0 | Q121: 0 | R121: 0 | S121: 0 | T121: 0 | U121: 0 | V121: 0 | W121: 0 | X121: 0 | Y121: =(SUM(Z121:AS121))+0 -> 21 | Z121: 1 | AA121: 0 | AB121: 2 | AC121: 0 | AD121: 3 | AE121: 2 | AF121: 3 | AG121: 4 | AH121: 3 | AI121: 0 | AJ121: 3 | AK121: 0 | AL121: 0 | AM121: 0 | AN121: 0 | AO121: 0 | AP121: 0 | AQ121: 0 | AR121: 0 | AS121: 0
A122: 121 | B122: 22105 Estopiñán del Castillo | C122: 22105 | D122: =((SUM(E122:X122)))+0 -> 2 | E122: 0 | F122: 0 | G122: 0 | H122: 0 | I122: 0 | J122: 0 | K122: 0 | L122: 1 | M122: 1 | N122: 0 | O122: 0 | P122: 0 | Q122: 0 | R122: 0 | S122: 0 | T122: 0 | U122: 0 | V122: 0 | W122: 0 | X122: 0 | Y122: =(SUM(Z122:AS122))+0 -> 3 | Z122: 0 | AA122: 0 | AB122: 0 | AC122: 0 | AD122: 0 | AE122: 1 | AF122: 1 | AG122: 0 | AH122: 0 | AI122: 0 | AJ122: 1 | AK122: 0 | AL122: 0 | AM122: 0 | AN122: 0 | AO122: 0 | AP122: 0 | AQ122: 0 | AR122: 0 | AS122: 0
A123: 122 | B123: 22106 Fago | C123: 22106 | D123: =((SUM(E123:X123)))+0 -> 1 | E123: 0 | F123: 0 | G123: 0 | H123: 0 | I123: 0 | J123: 0 | K123: 0 | L123: 0 | M123: 0 | N123: 1 | O123: 0 | P123: 0 | Q123: 0 | R123: 0 | S123: 0 | T123: 0 | U123: 0 | V123: 0 | W123: 0 | X123: 0 | Y123: =(SUM(Z123:AS123))+0 -> 0 | Z123: 0 | AA123: 0 | AB123: 0 | AC123: 0 | AD123: 0 | AE123: 0 | AF123: 0 | AG123: 0 | AH123: 0 | AI123: 0 | AJ123: 0 | AK123: 0 | AL123: 0 | AM123: 0 | AN123: 0 | AO123: 0 | AP123: 0 | AQ123: 0 | AR123: 0 | AS123: 0
A124: 123 | B124: 22107 Fanlo | C124: 22107 | D124: =((SUM(E124:X124)))+0 -> 3 | E124: 0 | F124: 1 | G124: 1 | H124: 0 | I124: 0 | J124: 0 | K124: 0 | L124: 0 | M124: 1 | N124: 0 | O124: 0 | P124: 0 | Q124: 0 | R124: 0 | S124: 0 | T124: 0 | U124: 0 | V124: 0 | W124: 0 | X124: 0 | Y124: =(SUM(Z124:AS124))+0 -> 4 | Z124: 0 | AA124: 0 | AB124: 0 | AC124: 0 | AD124: 0 | AE124: 0 | AF124: 1 | AG124: 0 | AH124: 0 | AI124: 1 | AJ124: 2 | AK124: 0 | AL124: 0 | AM124: 0 | AN124: 0 | AO124: 0 | AP124: 0 | AQ124: 0 | AR124: 0 | AS124: 0
A125: 124 | B125: 22109 Fiscal | C125: 22109 | D125: =((SUM(E125:X125)))+0 -> 10 | E125: 0 | F125: 1 | G125: 0 | H125: 0 | I125: 0 | J125: 1 | K125: 0 | L125: 1 | M125: 1 | N125: 0 | O125: 3 | P125: 2 | Q125: 0 | R125: 1 | S125: 0 | T125: 0 | U125: 0 | V125: 0 | W125: 0 | X125: 0 | Y125: =(SUM(Z125:AS125))+0 -> 16 | Z125: 0 | AA125: 0 | AB125: 2 | AC125: 2 | AD125: 0 | AE125: 1 | AF125: 0 | AG125: 2 | AH125: 2 | AI125: 1 | AJ125: 4 | AK125: 1 | AL125: 0 | AM125: 0 | AN125: 1 | AO125: 0 | AP125: 0 | AQ125: 0 | AR125: 0 | AS125: 0
A126: 125 | B126: 22110 Fonz | C126: 22110 | D126: =((SUM(E126:X126)))+0 -> 42 | E126: 3 | F126: 2 | G126: 2 | H126: 2 | I126: 8 | J126: 5 | K126: 3 | L126: 4 | M126: 2 | N126: 6 | O126: 3 | P126: 1 | Q126: 0 | R126: 0 | S126: 0 | T126: 0 | U126: 1 | V126: 0 | W126: 0 | X126: 0 | Y126: =(SUM(Z126:AS126))+0 -> 29 | Z126: 0 | AA126: 3 | AB126: 1 | AC126: 0 | AD126: 3 | AE126: 1 | AF126: 5 | AG126: 4 | AH126: 4 | AI126: 2 | AJ126: 2 | AK126: 2 | AL126: 0 | AM126: 1 | AN126: 0 | AO126: 1 | AP126: 0 | AQ126: 0 | AR126: 0 | AS126: 0
A127: 126 | B127: 22111 Foradada del Toscar | C127: 22111 | D127: =((SUM(E127:X127)))+0 -> 12 | E127: 1 | F127: 0 | G127: 1 | H127: 1 | I127: 1 | J127: 2 | K127: 1 | L127: 3 | M127: 0 | N127: 1 | O127: 0 | P127: 1 | Q127: 0 | R127: 0 | S127: 0 | T127: 0 | U127: 0 | V127: 0 | W127: 0 | X127: 0 | Y127: =(SUM(Z127:AS127))+0 -> 11 | Z127: 1 | AA127: 0 | AB127: 0 | AC127: 0 | AD127: 2 | AE127: 0 | AF127: 1 | AG127: 2 | AH127: 1 | AI127: 1 | AJ127: 1 | AK127: 2 | AL127: 0 | AM127: 0 | AN127: 0 | AO127: 0 | AP127: 0 | AQ127: 0 | AR127: 0 | AS127: 0
A128: 127 | B128: 22112 Fraga | C128: 22112 | D128: =((SUM(E128:X128)))+0 -> 2104 | E128: 139 | F128: 135 | G128: 115 | H128: 92 | I128: 159 | J128: 151 | K128: 179 | L128: 255 | M128: 280 | N128: 256 | O128: 171 | P128: 97 | Q128: 45 | R128: 20 | S128: 5 | T128: 5 | U128: 0 | V128: 0 | W128: 0 | X128: 0 | Y128: =(SUM(Z128:AS128))+0 -> 1668 | Z128: 115 | AA128: 116 | AB128: 89 | AC128: 82 | AD128: 118 | AE128: 124 | AF128: 206 | AG128: 216 | AH128: 210 | AI128: 154 | AJ128: 121 | AK128: 60 | AL128: 32 | AM128: 17 | AN128: 2 | AO128: 4 | AP128: 0 | AQ128: 1 | AR128: 1 | AS128: 0
A129: 128 | B129: 22113 Fueva (La) | C129: 22113 | D129: =((SUM(E129:X129)))+0 -> 20 | E129: 0 | F129: 1 | G129: 3 | H129: 2 | I129: 0 | J129: 2 | K129: 2 | L129: 1 | M129: 4 | N129: 0 | O129: 1 | P129: 1 | Q129: 2 | R129: 1 | S129: 0 | T129: 0 | U129: 0 | V129: 0 | W129: 0 | X129: 0 | Y129: =(SUM(Z129:AS129))+0 -> 16 | Z129: 0 | AA129: 0 | AB129: 0 | AC129: 1 | AD129: 2 | AE129: 1 | AF129: 3 | AG129: 3 | AH129: 3 | AI129: 1 | AJ129: 1 | AK129: 0 | AL129: 0 | AM129: 1 | AN129: 0 | AO129: 0 | AP129: 0 | AQ129: 0 | AR129: 0 | AS129: 0
A130: 129 | B130: 22114 Gistaín | C130: 22114 | D130: =((SUM(E130:X130)))+0 -> 0 | E130: 0 | F130: 0 | G130: 0 | H130: 0 | I130: 0 | J130: 0 | K130: 0 | L130: 0 | M130: 0 | N130: 0 | O130: 0 | P130: 0 | Q130: 0 | R130: 0 | S130: 0 | T130: 0 | U130: 0 | V130: 0 | W130: 0 | X130: 0 | Y130: =(SUM(Z130:AS130))+0 -> 1 | Z130: 0 | AA130: 0 | AB130: 0 | AC130: 0 | AD130: 0 | AE130: 0 | AF130: 0 | AG130: 0 | AH130: 1 | AI130: 0 | AJ130: 0 | AK130: 0 | AL130: 0 | AM130: 0 | AN130: 0 | AO130: 0 | AP130: 0 | AQ130: 0 | AR130: 0 | AS130: 0
A131: 130 | B131: 22115 Grado (El) | C131: 22115 | D131: =((SUM(E131:X131)))+0 -> 14 | E131: 0 | F131: 1 | G131: 0 | H131: 0 | I131: 1 | J131: 0 | K131: 3 | L131: 1 | M131: 0 | N131: 1 | O131: 2 | P131: 1 | Q131: 0 | R131: 1 | S131: 2 | T131: 0 | U131: 0 | V131: 0 | W131: 1 | X131: 0 | Y131: =(SUM(Z131:AS131))+0 -> 17 | Z131: 1 | AA131: 1 | AB131: 1 | AC131: 0 | AD131: 1 | AE131: 2 | AF131: 4 | AG131: 0 | AH131: 0 | AI131: 2 | AJ131: 2 | AK131: 0 | AL131: 1 | AM131: 1 | AN131: 1 | AO131: 0 | AP131: 0 | AQ131: 0 | AR131: 0 | AS131: 0
A132: 131 | B132: 22116 Grañén | C132: 22116 | D132: =((SUM(E132:X132)))+0 -> 113 | E132: 5 | F132: 5 | G132: 7 | H132: 8 | I132: 7 | J132: 10 | K132: 9 | L132: 11 | M132: 10 | N132: 18 | O132: 12 | P132: 3 | Q132: 6 | R132: 1 | S132: 1 | T132: 0 | U132: 0 | V132: 0 | W132: 0 | X132: 0 | Y132: =(SUM(Z132:AS132))+0 -> 117 | Z132: 14 | AA132: 3 | AB132: 5 | AC132: 8 | AD132: 9 | AE132: 9 | AF132: 8 | AG132: 16 | AH132: 14 | AI132: 8 | AJ132: 8 | AK132: 5 | AL132: 3 | AM132: 1 | AN132: 2 | AO132: 2 | AP132: 0 | AQ132: 1 | AR132: 1 | AS132: 0
A133: 132 | B133: 22117 Graus | C133: 22117 | D133: =((SUM(E133:X133)))+0 -> 315 | E133: 24 | F133: 13 | G133: 11 | H133: 13 | I133: 20 | J133: 23 | K133: 35 | L133: 34 | M133: 36 | N133: 38 | O133: 20 | P133: 20 | Q133: 12 | R133: 8 | S133: 2 | T133: 4 | U133: 2 | V133: 0 | W133: 0 | X133: 0 | Y133: =(SUM(Z133:AS133))+0 -> 302 | Z133: 14 | AA133: 21 | AB133: 15 | AC133: 17 | AD133: 15 | AE133: 27 | AF133: 26 | AG133: 31 | AH133: 33 | AI133: 26 | AJ133: 31 | AK133: 22 | AL133: 14 | AM133: 5 | AN133: 1 | AO133: 3 | AP133: 0 | AQ133: 0 | AR133: 1 | AS133: 0
A134: 133 | B134: 22119 Gurrea de Gállego | C134: 22119 | D134: =((SUM(E134:X134)))+0 -> 38 | E134: 2 | F134: 1 | G134: 1 | H134: 0 | I134: 1 | J134: 2 | K134: 5 | L134: 7 | M134: 6 | N134: 4 | O134: 3 | P134: 5 | Q134: 0 | R134: 0 | S134: 1 | T134: 0 | U134: 0 | V134: 0 | W134: 0 | X134: 0 | Y134: =(SUM(Z134:AS134))+0 -> 44 | Z134: 4 | AA134: 3 | AB134: 0 | AC134: 0 | AD134: 3 | AE134: 1 | AF134: 3 | AG134: 5 | AH134: 2 | AI134: 7 | AJ134: 10 | AK134: 2 | AL134: 0 | AM134: 1 | AN134: 2 | AO134: 1 | AP134: 0 | AQ134: 0 | AR134: 0 | AS134: 0
A135: 134 | B135: 22122 Hoz de Jaca | C135: 22122 | D135: =((SUM(E135:X135)))+0 -> 0 | E135: 0 | F135: 0 | G135: 0 | H135: 0 | I135: 0 | J135: 0 | K135: 0 | L135: 0 | M135: 0 | N135: 0 | O135: 0 | P135: 0 | Q135: 0 | R135: 0 | S135: 0 | T135: 0 | U135: 0 | V135: 0 | W135: 0 | X135: 0 | Y135: =(SUM(Z135:AS135))+0 -> 0 | Z135: 0 | AA135: 0 | AB135: 0 | AC135: 0 | AD135: 0 | AE135: 0 | AF135: 0 | AG135: 0 | AH135: 0 | AI135: 0 | AJ135: 0 | AK135: 0 | AL135: 0 | AM135: 0 | AN135: 0 | AO135: 0 | AP135: 0 | AQ135: 0 | AR135: 0 | AS135: 0
A136: 135 | B136: 22124 Huerto | C136: 22124 | D136: =((SUM(E136:X136)))+0 -> 13 | E136: 0 | F136: 1 | G136: 2 | H136: 1 | I136: 1 | J136: 2 | K136: 1 | L136: 2 | M136: 2 | N136: 0 | O136: 0 | P136: 0 | Q136: 0 | R136: 0 | S136: 0 | T136: 1 | U136: 0 | V136: 0 | W136: 0 | X136: 0 | Y136: =(SUM(Z136:AS136))+0 -> 12 | Z136: 0 | AA136: 1 | AB136: 1 | AC136: 2 | AD136: 0 | AE136: 1 | AF136: 2 | AG136: 2 | AH136: 0 | AI136: 0 | AJ136: 1 | AK136: 1 | AL136: 1 | AM136: 0 | AN136: 0 | AO136: 0 | AP136: 0 | AQ136: 0 | AR136: 0 | AS136: 0
A137: 136 | B137: 22125 Huesca | C137: 22125 | D137: =((SUM(E137:X137)))+0 -> 2948 | E137: 152 | F137: 184 | G137: 163 | H137: 192 | I137: 237 | J137: 300 | K137: 301 | L137: 341 | M137: 337 | N137: 274 | O137: 202 | P137: 114 | Q137: 78 | R137: 45 | S137: 14 | T137: 9 | U137: 0 | V137: 2 | W137: 2 | X137: 1 | Y137: =(SUM(Z137:AS137))+0 -> 2992 | Z137: 162 | AA137: 170 | AB137: 150 | AC137: 132 | AD137: 212 | AE137: 297 | AF137: 333 | AG137: 374 | AH137: 363 | AI137: 281 | AJ137: 187 | AK137: 137 | AL137: 78 | AM137: 52 | AN137: 31 | AO137: 13 | AP137: 10 | AQ137: 6 | AR137: 3 | AS137: 1
A138: 137 | B138: 22126 Ibieca | C138: 22126 | D138: =((SUM(E138:X138)))+0 -> 2 | E138: 0 | F138: 0 | G138: 0 | H138: 0 | I138: 0 | J138: 0 | K138: 1 | L138: 1 | M138: 0 | N138: 0 | O138: 0 | P138: 0 | Q138: 0 | R138: 0 | S138: 0 | T138: 0 | U138: 0 | V138: 0 | W138: 0 | X138: 0 | Y138: =(SUM(Z138:AS138))+0 -> 0 | Z138: 0 | AA138: 0 | AB138: 0 | AC138: 0 | AD138: 0 | AE138: 0 | AF138: 0 | AG138: 0 | AH138: 0 | AI138: 0 | AJ138: 0 | AK138: 0 | AL138: 0 | AM138: 0 | AN138: 0 | AO138: 0 | AP138: 0 | AQ138: 0 | AR138: 0 | AS138: 0
A139: 138 | B139: 22127 Igriés | C139: 22127 | D139: =((SUM(E139:X139)))+0 -> 14 | E139: 0 | F139: 0 | G139: 0 | H139: 2 | I139: 1 | J139: 1 | K139: 1 | L139: 2 | M139: 2 | N139: 2 | O139: 1 | P139: 0 | Q139: 1 | R139: 1 | S139: 0 | T139: 0 | U139: 0 | V139: 0 | W139: 0 | X139: 0 | Y139: =(SUM(Z139:AS139))+0 -> 14 | Z139: 0 | AA139: 0 | AB139: 0 | AC139: 0 | AD139: 0 | AE139: 0 | AF139: 3 | AG139: 1 | AH139: 1 | AI139: 3 | AJ139: 0 | AK139: 2 | AL139: 0 | AM139: 2 | AN139: 1 | AO139: 1 | AP139: 0 | AQ139: 0 | AR139: 0 | AS139: 0
A140: 139 | B140: 22128 Ilche | C140: 22128 | D140: =((SUM(E140:X140)))+0 -> 5 | E140: 0 | F140: 0 | G140: 0 | H140: 0 | I140: 1 | J140: 0 | K140: 2 | L140: 0 | M140: 0 | N140: 0 | O140: 0 | P140: 0 | Q140: 2 | R140: 0 | S140: 0 | T140: 0 | U140: 0 | V140: 0 | W140: 0 | X140: 0 | Y140: =(SUM(Z140:AS140))+0 -> 4 | Z140: 0 | AA140: 0 | AB140: 0 | AC140: 0 | AD140: 0 | AE140: 0 | AF140: 0 | AG140: 0 | AH140: 0 | AI140: 0 | AJ140: 1 | AK140: 3 | AL140: 0 | AM140: 0 | AN140: 0 | AO140: 0 | AP140: 0 | AQ140: 0 | AR140: 0 | AS140: 0
A141: 140 | B141: 22129 Isábena | C141: 22129 | D141: =((SUM(E141:X141)))+0 -> 30 | E141: 0 | F141: 0 | G141: 0 | H141: 1 | I141: 3 | J141: 5 | K141: 7 | L141: 4 | M141: 3 | N141: 1 | O141: 3 | P141: 2 | Q141: 1 | R141: 0 | S141: 0 | T141: 0 | U141: 0 | V141: 0 | W141: 0 | X141: 0 | Y141: =(SUM(Z141:AS141))+0 -> 27 | Z141: 0 | AA141: 0 | AB141: 2 | AC141: 0 | AD141: 3 | AE141: 3 | AF141: 4 | AG141: 3 | AH141: 1 | AI141: 3 | AJ141: 1 | AK141: 3 | AL141: 2 | AM141: 2 | AN141: 0 | AO141: 0 | AP141: 0 | AQ141: 0 | AR141: 0 | AS141: 0
A142: 141 | B142: 22130 Jaca | C142: 22130 | D142: =((SUM(E142:X142)))+0 -> 463 | E142: 16 | F142: 17 | G142: 21 | H142: 27 | I142: 32 | J142: 49 | K142: 49 | L142: 58 | M142: 52 | N142: 42 | O142: 37 | P142: 29 | Q142: 15 | R142: 5 | S142: 10 | T142: 3 | U142: 0 | V142: 1 | W142: 0 | X142: 0 | Y142: =(SUM(Z142:AS142))+0 -> 563 | Z142: 19 | AA142: 20 | AB142: 26 | AC142: 30 | AD142: 49 | AE142: 58 | AF142: 60 | AG142: 57 | AH142: 75 | AI142: 43 | AJ142: 48 | AK142: 34 | AL142: 17 | AM142: 7 | AN142: 10 | AO142: 6 | AP142: 1 | AQ142: 1 | AR142: 0 | AS142: 2
A143: 142 | B143: 22131 Jasa | C143: 22131 | D143: =((SUM(E143:X143)))+0 -> 1 | E143: 0 | F143: 0 | G143: 0 | H143: 0 | I143: 0 | J143: 0 | K143: 0 | L143: 0 | M143: 0 | N143: 0 | O143: 0 | P143: 1 | Q143: 0 | R143: 0 | S143: 0 | T143: 0 | U143: 0 | V143: 0 | W143: 0 | X143: 0 | Y143: =(SUM(Z143:AS143))+0 -> 2 | Z143: 0 | AA143: 0 | AB143: 0 | AC143: 0 | AD143: 1 | AE143: 0 | AF143: 0 | AG143: 0 | AH143: 1 | AI143: 0 | AJ143: 0 | AK143: 0 | AL143: 0 | AM143: 0 | AN143: 0 | AO143: 0 | AP143: 0 | AQ143: 0 | AR143: 0 | AS143: 0
A144: 143 | B144: 22133 Labuerda | C144: 22133 | D144: =((SUM(E144:X144)))+0 -> 14 | E144: 0 | F144: 4 | G144: 0 | H144: 1 | I144: 0 | J144: 2 | K144: 1 | L144: 2 | M144: 1 | N144: 1 | O144: 0 | P144: 1 | Q144: 0 | R144: 1 | S144: 0 | T144: 0 | U144: 0 | V144: 0 | W144: 0 | X144: 0 | Y144: =(SUM(Z144:AS144))+0 -> 13 | Z144: 1 | AA144: 0 | AB144: 1 | AC144: 1 | AD144: 0 | AE144: 1 | AF144: 2 | AG144: 2 | AH144: 0 | AI144: 0 | AJ144: 3 | AK144: 1 | AL144: 1 | AM144: 0 | AN144: 0 | AO144: 0 | AP144: 0 | AQ144: 0 | AR144: 0 | AS144: 0
A145: 144 | B145: 22135 Laluenga | C145: 22135 | D145: =((SUM(E145:X145)))+0 -> 3 | E145: 0 | F145: 1 | G145: 0 | H145: 0 | I145: 1 | J145: 1 | K145: 0 | L145: 0 | M145: 0 | N145: 0 | O145: 0 | P145: 0 | Q145: 0 | R145: 0 | S145: 0 | T145: 0 | U145: 0 | V145: 0 | W145: 0 | X145: 0 | Y145: =(SUM(Z145:AS145))+0 -> 6 | Z145: 0 | AA145: 0 | AB145: 1 | AC145: 0 | AD145: 0 | AE145: 2 | AF145: 2 | AG145: 0 | AH145: 0 | AI145: 0 | AJ145: 1 | AK145: 0 | AL145: 0 | AM145: 0 | AN145: 0 | AO145: 0 | AP145: 0 | AQ145: 0 | AR145: 0 | AS145: 0
A146: 145 | B146: 22136 Lalueza | C146: 22136 | D146: =((SUM(E146:X146)))+0 -> 42 | E146: 3 | F146: 0 | G146: 0 | H146: 3 | I146: 8 | J146: 3 | K146: 5 | L146: 2 | M146: 7 | N146: 3 | O146: 4 | P146: 0 | Q146: 0 | R146: 2 | S146: 1 | T146: 0 | U146: 1 | V146: 0 | W146: 0 | X146: 0 | Y146: =(SUM(Z146:AS146))+0 -> 45 | Z146: 2 | AA146: 8 | AB146: 1 | AC146: 1 | AD146: 1 | AE146: 5 | AF146: 4 | AG146: 7 | AH146: 5 | AI146: 5 | AJ146: 3 | AK146: 0 | AL146: 2 | AM146: 1 | AN146: 0 | AO146: 0 | AP146: 0 | AQ146: 0 | AR146: 0 | AS146: 0
A147: 146 | B147: 22137 Lanaja | C147: 22137 | D147: =((SUM(E147:X147)))+0 -> 58 | E147: 3 | F147: 3 | G147: 3 | H147: 1 | I147: 5 | J147: 7 | K147: 8 | L147: 6 | M147: 9 | N147: 5 | O147: 4 | P147: 0 | Q147: 3 | R147: 1 | S147: 0 | T147: 0 | U147: 0 | V147: 0 | W147: 0 | X147: 0 | Y147: =(SUM(Z147:AS147))+0 -> 47 | Z147: 1 | AA147: 5 | AB147: 2 | AC147: 2 | AD147: 4 | AE147: 3 | AF147: 4 | AG147: 8 | AH147: 6 | AI147: 7 | AJ147: 1 | AK147: 1 | AL147: 1 | AM147: 0 | AN147: 1 | AO147: 0 | AP147: 0 | AQ147: 0 | AR147: 1 | AS147: 0
A148: 147 | B148: 22139 Laperdiguera | C148: 22139 | D148: =((SUM(E148:X148)))+0 -> 4 | E148: 0 | F148: 0 | G148: 0 | H148: 0 | I148: 0 | J148: 0 | K148: 0 | L148: 0 | M148: 1 | N148: 0 | O148: 0 | P148: 0 | Q148: 3 | R148: 0 | S148: 0 | T148: 0 | U148: 0 | V148: 0 | W148: 0 | X148: 0 | Y148: =(SUM(Z148:AS148))+0 -> 3 | Z148: 0 | AA148: 0 | AB148: 0 | AC148: 0 | AD148: 1 | AE148: 0 | AF148: 0 | AG148: 0 | AH148: 1 | AI148: 0 | AJ148: 0 | AK148: 1 | AL148: 0 | AM148: 0 | AN148: 0 | AO148: 0 | AP148: 0 | AQ148: 0 | AR148: 0 | AS148: 0
A149: 148 | B149: 22141 Lascellas-Ponzano | C149: 22141 | D149: =((SUM(E149:X149)))+0 -> 0 | E149: 0 | F149: 0 | G149: 0 | H149: 0 | I149: 0 | J149: 0 | K149: 0 | L149: 0 | M149: 0 | N149: 0 | O149: 0 | P149: 0 | Q149: 0 | R149: 0 | S149: 0 | T149: 0 | U149: 0 | V149: 0 | W149: 0 | X149: 0 | Y149: =(SUM(Z149:AS149))+0 -> 2 | Z149: 0 | AA149: 0 | AB149: 0 | AC149: 0 | AD149: 1 | AE149: 0 | AF149: 0 | AG149: 0 | AH149: 0 | AI149: 0 | AJ149: 0 | AK149: 0 | AL149: 1 | AM149: 0 | AN149: 0 | AO149: 0 | AP149: 0 | AQ149: 0 | AR149: 0 | AS149: 0
A150: 149 | B150: 22142 Lascuarre | C150: 22142 | D150: =((SUM(E150:X150)))+0 -> 10 | E150: 0 | F150: 0 | G150: 1 | H150: 0 | I150: 2 | J150: 2 | K150: 1 | L150: 1 | M150: 1 | N150: 0 | O150: 0 | P150: 1 | Q150: 0 | R150: 1 | S150: 0 | T150: 0 | U150: 0 | V150: 0 | W150: 0 | X150: 0 | Y150: =(SUM(Z150:AS150))+0 -> 10 | Z150: 0 | AA150: 1 | AB150: 0 | AC150: 0 | AD150: 2 | AE150: 0 | AF150: 1 | AG150: 0 | AH150: 1 | AI150: 0 | AJ150: 0 | AK150: 1 | AL150: 1 | AM150: 2 | AN150: 0 | AO150: 0 | AP150: 1 | AQ150: 0 | AR150: 0 | AS150: 0
A151: 150 | B151: 22143 Laspaúles | C151: 22143 | D151: =((SUM(E151:X151)))+0 -> 10 | E151: 0 | F151: 2 | G151: 0 | H151: 0 | I151: 0 | J151: 1 | K151: 0 | L151: 2 | M151: 1 | N151: 1 | O151: 1 | P151: 1 | Q151: 0 | R151: 0 | S151: 1 | T151: 0 | U151: 0 | V151: 0 | W151: 0 | X151: 0 | Y151: =(SUM(Z151:AS151))+0 -> 14 | Z151: 0 | AA151: 0 | AB151: 1 | AC151: 2 | AD151: 0 | AE151: 1 | AF151: 1 | AG151: 3 | AH151: 1 | AI151: 2 | AJ151: 2 | AK151: 1 | AL151: 0 | AM151: 0 | AN151: 0 | AO151: 0 | AP151: 0 | AQ151: 0 | AR151: 0 | AS151: 0
A152: 151 | B152: 22144 Laspuña | C152: 22144 | D152: =((SUM(E152:X152)))+0 -> 3 | E152: 0 | F152: 0 | G152: 0 | H152: 0 | I152: 0 | J152: 0 | K152: 0 | L152: 0 | M152: 1 | N152: 0 | O152: 1 | P152: 1 | Q152: 0 | R152: 0 | S152: 0 | T152: 0 | U152: 0 | V152: 0 | W152: 0 | X152: 0 | Y152: =(SUM(Z152:AS152))+0 -> 3 | Z152: 0 | AA152: 0 | AB152: 0 | AC152: 0 | AD152: 0 | AE152: 0 | AF152: 1 | AG152: 0 | AH152: 1 | AI152: 0 | AJ152: 0 | AK152: 0 | AL152: 0 | AM152: 0 | AN152: 0 | AO152: 0 | AP152: 1 | AQ152: 0 | AR152: 0 | AS152: 0
A153: 152 | B153: 22149 Loarre | C153: 22149 | D153: =((SUM(E153:X153)))+0 -> 1 | E153: 0 | F153: 0 | G153: 0 | H153: 0 | I153: 0 | J153: 0 | K153: 0 | L153: 0 | M153: 1 | N153: 0 | O153: 0 | P153: 0 | Q153: 0 | R153: 0 | S153: 0 | T153: 0 | U153: 0 | V153: 0 | W153: 0 | X153: 0 | Y153: =(SUM(Z153:AS153))+0 -> 4 | Z153: 0 | AA153: 0 | AB153: 0 | AC153: 1 | AD153: 0 | AE153: 0 | AF153: 0 | AG153: 0 | AH153: 1 | AI153: 1 | AJ153: 1 | AK153: 0 | AL153: 0 | AM153: 0 | AN153: 0 | AO153: 0 | AP153: 0 | AQ153: 0 | AR153: 0 | AS153: 0
A154: 153 | B154: 22150 Loporzano | C154: 22150 | D154: =((SUM(E154:X154)))+0 -> 8 | E154: 0 | F154: 0 | G154: 1 | H154: 0 | I154: 1 | J154: 1 | K154: 0 | L154: 0 | M154: 0 | N154: 0 | O154: 1 | P154: 0 | Q154: 1 | R154: 0 | S154: 1 | T154: 2 | U154: 0 | V154: 0 | W154: 0 | X154: 0 | Y154: =(SUM(Z154:AS154))+0 -> 10 | Z154: 0 | AA154: 0 | AB154: 0 | AC154: 0 | AD154: 1 | AE154: 0 | AF154: 0 | AG154: 0 | AH154: 3 | AI154: 1 | AJ154: 1 | AK154: 0 | AL154: 0 | AM154: 1 | AN154: 1 | AO154: 1 | AP154: 1 | AQ154: 0 | AR154: 0 | AS154: 0
A155: 154 | B155: 22151 Loscorrales | C155: 22151 | D155: =((SUM(E155:X155)))+0 -> 0 | E155: 0 | F155: 0 | G155: 0 | H155: 0 | I155: 0 | J155: 0 | K155: 0 | L155: 0 | M155: 0 | N155: 0 | O155: 0 | P155: 0 | Q155: 0 | R155: 0 | S155: 0 | T155: 0 | U155: 0 | V155: 0 | W155: 0 | X155: 0 | Y155: =(SUM(Z155:AS155))+0 -> 1 | Z155: 0 | AA155: 0 | AB155: 0 | AC155: 0 | AD155: 0 | AE155: 0 | AF155: 1 | AG155: 0 | AH155: 0 | AI155: 0 | AJ155: 0 | AK155: 0 | AL155: 0 | AM155: 0 | AN155: 0 | AO155: 0 | AP155: 0 | AQ155: 0 | AR155: 0 | AS155: 0
A156: 155 | B156: 22155 Monesma y Cajigar | C156: 22155 | D156: =((SUM(E156:X156)))+0 -> 2 | E156: 0 | F156: 0 | G156: 0 | H156: 0 | I156: 0 | J156: 0 | K156: 0 | L156: 1 | M156: 0 | N156: 0 | O156: 1 | P156: 0 | Q156: 0 | R156: 0 | S156: 0 | T156: 0 | U156: 0 | V156: 0 | W156: 0 | X156: 0 | Y156: =(SUM(Z156:AS156))+0 -> 2 | Z156: 0 | AA156: 0 | AB156: 0 | AC156: 0 | AD156: 0 | AE156: 0 | AF156: 0 | AG156: 1 | AH156: 0 | AI156: 0 | AJ156: 0 | AK156: 0 | AL156: 0 | AM156: 1 | AN156: 0 | AO156: 0 | AP156: 0 | AQ156: 0 | AR156: 0 | AS156: 0
A157: 156 | B157: 22156 Monflorite-Lascasas | C157: 22156 | D157: =((SUM(E157:X157)))+0 -> 26 | E157: 3 | F157: 6 | G157: 5 | H157: 2 | I157: 0 | J157: 2 | K157: 4 | L157: 0 | M157: 1 | N157: 1 | O157: 0 | P157: 0 | Q157: 0 | R157: 2 | S157: 0 | T157: 0 | U157: 0 | V157: 0 | W157: 0 | X157: 0 | Y157: =(SUM(Z157:AS157))+0 -> 16 | Z157: 1 | AA157: 0 | AB157: 0 | AC157: 2 | AD157: 0 | AE157: 2 | AF157: 3 | AG157: 1 | AH157: 2 | AI157: 0 | AJ157: 1 | AK157: 3 | AL157: 0 | AM157: 0 | AN157: 0 | AO157: 0 | AP157: 1 | AQ157: 0 | AR157: 0 | AS157: 0
A158: 157 | B158: 22157 Montanuy | C158: 22157 | D158: =((SUM(E158:X158)))+0 -> 4 | E158: 0 | F158: 0 | G158: 0 | H158: 0 | I158: 0 | J158: 0 | K158: 0 | L158: 1 | M158: 2 | N158: 1 | O158: 0 | P158: 0 | Q158: 0 | R158: 0 | S158: 0 | T158: 0 | U158: 0 | V158: 0 | W158: 0 | X158: 0 | Y158: =(SUM(Z158:AS158))+0 -> 8 | Z158: 0 | AA158: 0 | AB158: 0 | AC158: 0 | AD158: 0 | AE158: 2 | AF158: 0 | AG158: 2 | AH158: 1 | AI158: 1 | AJ158: 0 | AK158: 0 | AL158: 1 | AM158: 1 | AN158: 0 | AO158: 0 | AP158: 0 | AQ158: 0 | AR158: 0 | AS158: 0
A159: 158 | B159: 22158 Monzón | C159: 22158 | D159: =((SUM(E159:X159)))+0 -> 1611 | E159: 107 | F159: 103 | G159: 101 | H159: 104 | I159: 112 | J159: 133 | K159: 121 | L159: 165 | M159: 196 | N159: 182 | O159: 137 | P159: 86 | Q159: 34 | R159: 14 | S159: 6 | T159: 6 | U159: 4 | V159: 0 | W159: 0 | X159: 0 | Y159: =(SUM(Z159:AS159))+0 -> 1462 | Z159: 94 | AA159: 95 | AB159: 77 | AC159: 71 | AD159: 97 | AE159: 152 | AF159: 159 | AG159: 162 | AH159: 172 | AI159: 147 | AJ159: 104 | AK159: 65 | AL159: 28 | AM159: 19 | AN159: 8 | AO159: 6 | AP159: 4 | AQ159: 2 | AR159: 0 | AS159: 0
A160: 159 | B160: 22160 Naval | C160: 22160 | D160: =((SUM(E160:X160)))+0 -> 14 | E160: 0 | F160: 0 | G160: 0 | H160: 0 | I160: 1 | J160: 1 | K160: 0 | L160: 1 | M160: 1 | N160: 0 | O160: 4 | P160: 1 | Q160: 1 | R160: 0 | S160: 3 | T160: 1 | U160: 0 | V160: 0 | W160: 0 | X160: 0 | Y160: =(SUM(Z160:AS160))+0 -> 8 | Z160: 0 | AA160: 0 | AB160: 0 | AC160: 0 | AD160: 0 | AE160: 1 | AF160: 0 | AG160: 1 | AH160: 1 | AI160: 1 | AJ160: 1 | AK160: 0 | AL160: 1 | AM160: 1 | AN160: 1 | AO160: 0 | AP160: 0 | AQ160: 0 | AR160: 0 | AS160: 0
A161: 160 | B161: 22162 Novales | C161: 22162 | D161: =((SUM(E161:X161)))+0 -> 14 | E161: 2 | F161: 2 | G161: 0 | H161: 1 | I161: 0 | J161: 0 | K161: 2 | L161: 3 | M161: 1 | N161: 0 | O161: 0 | P161: 1 | Q161: 1 | R161: 0 | S161: 0 | T161: 1 | U161: 0 | V161: 0 | W161: 0 | X161: 0 | Y161: =(SUM(Z161:AS161))+0 -> 9 | Z161: 0 | AA161: 0 | AB161: 2 | AC161: 2 | AD161: 0 | AE161: 2 | AF161: 0 | AG161: 2 | AH161: 0 | AI161: 0 | AJ161: 1 | AK161: 0 | AL161: 0 | AM161: 0 | AN161: 0 | AO161: 0 | AP161: 0 | AQ161: 0 | AR161: 0 | AS161: 0
A162: 161 | B162: 22163 Nueno | C162: 22163 | D162: =((SUM(E162:X162)))+0 -> 20 | E162: 1 | F162: 0 | G162: 0 | H162: 0 | I162: 2 | J162: 2 | K162: 1 | L162: 1 | M162: 1 | N162: 1 | O162: 2 | P162: 1 | Q162: 1 | R162: 4 | S162: 2 | T162: 1 | U162: 0 | V162: 0 | W162: 0 | X162: 0 | Y162: =(SUM(Z162:AS162))+0 -> 13 | Z162: 2 | AA162: 0 | AB162: 0 | AC162: 0 | AD162: 3 | AE162: 2 | AF162: 1 | AG162: 1 | AH162: 1 | AI162: 0 | AJ162: 0 | AK162: 1 | AL162: 0 | AM162: 1 | AN162: 1 | AO162: 0 | AP162: 0 | AQ162: 0 | AR162: 0 | AS162: 0
A163: 162 | B163: 22164 Olvena | C163: 22164 | D163: =((SUM(E163:X163)))+0 -> 1 | E163: 0 | F163: 0 | G163: 0 | H163: 0 | I163: 0 | J163: 0 | K163: 0 | L163: 0 | M163: 1 | N163: 0 | O163: 0 | P163: 0 | Q163: 0 | R163: 0 | S163: 0 | T163: 0 | U163: 0 | V163: 0 | W163: 0 | X163: 0 | Y163: =(SUM(Z163:AS163))+0 -> 2 | Z163: 0 | AA163: 0 | AB163: 0 | AC163: 0 | AD163: 1 | AE163: 0 | AF163: 0 | AG163: 0 | AH163: 0 | AI163: 1 | AJ163: 0 | AK163: 0 | AL163: 0 | AM163: 0 | AN163: 0 | AO163: 0 | AP163: 0 | AQ163: 0 | AR163: 0 | AS163: 0
A164: 163 | B164: 22165 Ontiñena | C164: 22165 | D164: =((SUM(E164:X164)))+0 -> 36 | E164: 1 | F164: 0 | G164: 0 | H164: 4 | I164: 4 | J164: 4 | K164: 3 | L164: 4 | M164: 8 | N164: 3 | O164: 2 | P164: 2 | Q164: 1 | R164: 0 | S164: 0 | T164: 0 | U164: 0 | V164: 0 | W164: 0 | X164: 0 | Y164: =(SUM(Z164:AS164))+0 -> 19 | Z164: 0 | AA164: 0 | AB164: 2 | AC164: 1 | AD164: 2 | AE164: 1 | AF164: 4 | AG164: 2 | AH164: 4 | AI164: 0 | AJ164: 0 | AK164: 1 | AL164: 2 | AM164: 0 | AN164: 0 | AO164: 0 | AP164: 0 | AQ164: 0 | AR164: 0 | AS164: 0
A165: 164 | B165: 22167 Osso de Cinca | C165: 22167 | D165: =((SUM(E165:X165)))+0 -> 105 | E165: 4 | F165: 0 | G165: 1 | H165: 4 | I165: 5 | J165: 5 | K165: 9 | L165: 19 | M165: 16 | N165: 13 | O165: 11 | P165: 9 | Q165: 6 | R165: 3 | S165: 0 | T165: 0 | U165: 0 | V165: 0 | W165: 0 | X165: 0 | Y165: =(SUM(Z165:AS165))+0 -> 40 | Z165: 0 | AA165: 2 | AB165: 0 | AC165: 3 | AD165: 4 | AE165: 3 | AF165: 4 | AG165: 3 | AH165: 4 | AI165: 7 | AJ165: 6 | AK165: 3 | AL165: 1 | AM165: 0 | AN165: 0 | AO165: 0 | AP165: 0 | AQ165: 0 | AR165: 0 | AS165: 0
A166: 165 | B166: 22168 Palo | C166: 22168 | D166: =((SUM(E166:X166)))+0 -> 0 | E166: 0 | F166: 0 | G166: 0 | H166: 0 | I166: 0 | J166: 0 | K166: 0 | L166: 0 | M166: 0 | N166: 0 | O166: 0 | P166: 0 | Q166: 0 | R166: 0 | S166: 0 | T166: 0 | U166: 0 | V166: 0 | W166: 0 | X166: 0 | Y166: =(SUM(Z166:AS166))+0 -> 3 | Z166: 0 | AA166: 0 | AB166: 0 | AC166: 0 | AD166: 0 | AE166: 0 | AF166: 0 | AG166: 1 | AH166: 0 | AI166: 0 | AJ166: 0 | AK166: 1 | AL166: 1 | AM166: 0 | AN166: 0 | AO166: 0 | AP166: 0 | AQ166: 0 | AR166: 0 | AS166: 0
A167: 166 | B167: 22170 Panticosa | C167: 22170 | D167: =((SUM(E167:X167)))+0 -> 16 | E167: 0 | F167: 0 | G167: 0 | H167: 0 | I167: 2 | J167: 2 | K167: 1 | L167: 1 | M167: 1 | N167: 4 | O167: 4 | P167: 1 | Q167: 0 | R167: 0 | S167: 0 | T167: 0 | U167: 0 | V167: 0 | W167: 0 | X167: 0 | Y167: =(SUM(Z167:AS167))+0 -> 16 | Z167: 1 | AA167: 0 | AB167: 1 | AC167: 0 | AD167: 2 | AE167: 0 | AF167: 3 | AG167: 2 | AH167: 2 | AI167: 0 | AJ167: 3 | AK167: 1 | AL167: 0 | AM167: 0 | AN167: 0 | AO167: 0 | AP167: 1 | AQ167: 0 | AR167: 0 | AS167: 0
A168: 167 | B168: 22172 Peñalba | C168: 22172 | D168: =((SUM(E168:X168)))+0 -> 173 | E168: 2 | F168: 1 | G168: 4 | H168: 3 | I168: 24 | J168: 26 | K168: 42 | L168: 16 | M168: 22 | N168: 18 | O168: 7 | P168: 6 | Q168: 1 | R168: 0 | S168: 1 | T168: 0 | U168: 0 | V168: 0 | W168: 0 | X168: 0 | Y168: =(SUM(Z168:AS168))+0 -> 47 | Z168: 6 | AA168: 1 | AB168: 0 | AC168: 1 | AD168: 3 | AE168: 4 | AF168: 4 | AG168: 4 | AH168: 6 | AI168: 7 | AJ168: 4 | AK168: 3 | AL168: 1 | AM168: 1 | AN168: 2 | AO168: 0 | AP168: 0 | AQ168: 0 | AR168: 0 | AS168: 0
A169: 168 | B169: 22173 Peñas de Riglos (Las) | C169: 22173 | D169: =((SUM(E169:X169)))+0 -> 8 | E169: 0 | F169: 1 | G169: 0 | H169: 0 | I169: 0 | J169: 1 | K169: 0 | L169: 0 | M169: 1 | N169: 1 | O169: 0 | P169: 1 | Q169: 1 | R169: 1 | S169: 0 | T169: 0 | U169: 1 | V169: 0 | W169: 0 | X169: 0 | Y169: =(SUM(Z169:AS169))+0 -> 8 | Z169: 0 | AA169: 0 | AB169: 0 | AC169: 0 | AD169: 0 | AE169: 1 | AF169: 1 | AG169: 2 | AH169: 0 | AI169: 1 | AJ169: 0 | AK169: 0 | AL169: 1 | AM169: 0 | AN169: 0 | AO169: 1 | AP169: 0 | AQ169: 1 | AR169: 0 | AS169: 0
A170: 169 | B170: 22174 Peralta de Alcofea | C170: 22174 | D170: =((SUM(E170:X170)))+0 -> 46 | E170: 2 | F170: 2 | G170: 3 | H170: 0 | I170: 5 | J170: 2 | K170: 5 | L170: 2 | M170: 5 | N170: 10 | O170: 3 | P170: 3 | Q170: 2 | R170: 1 | S170: 1 | T170: 0 | U170: 0 | V170: 0 | W170: 0 | X170: 0 | Y170: =(SUM(Z170:AS170))+0 -> 46 | Z170: 2 | AA170: 3 | AB170: 2 | AC170: 2 | AD170: 5 | AE170: 2 | AF170: 2 | AG170: 8 | AH170: 6 | AI170: 5 | AJ170: 0 | AK170: 4 | AL170: 2 | AM170: 3 | AN170: 0 | AO170: 0 | AP170: 0 | AQ170: 0 | AR170: 0 | AS170: 0
A171: 170 | B171: 22175 Peralta de Calasanz | C171: 22175 | D171: =((SUM(E171:X171)))+0 -> 8 | E171: 0 | F171: 0 | G171: 0 | H171: 0 | I171: 0 | J171: 0 | K171: 0 | L171: 0 | M171: 2 | N171: 1 | O171: 3 | P171: 2 | Q171: 0 | R171: 0 | S171: 0 | T171: 0 | U171: 0 | V171: 0 | W171: 0 | X171: 0 | Y171: =(SUM(Z171:AS171))+0 -> 9 | Z171: 0 | AA171: 0 | AB171: 0 | AC171: 0 | AD171: 2 | AE171: 1 | AF171: 0 | AG171: 0 | AH171: 2 | AI171: 1 | AJ171: 1 | AK171: 0 | AL171: 2 | AM171: 0 | AN171: 0 | AO171: 0 | AP171: 0 | AQ171: 0 | AR171: 0 | AS171: 0
A172: 171 | B172: 22176 Peraltilla | C172: 22176 | D172: =((SUM(E172:X172)))+0 -> 4 | E172: 0 | F172: 0 | G172: 0 | H172: 0 | I172: 0 | J172: 0 | K172: 1 | L172: 0 | M172: 0 | N172: 1 | O172: 1 | P172: 1 | Q172: 0 | R172: 0 | S172: 0 | T172: 0 | U172: 0 | V172: 0 | W172: 0 | X172: 0 | Y172: =(SUM(Z172:AS172))+0 -> 8 | Z172: 0 | AA172: 0 | AB172: 0 | AC172: 1 | AD172: 0 | AE172: 3 | AF172: 2 | AG172: 0 | AH172: 1 | AI172: 0 | AJ172: 0 | AK172: 1 | AL172: 0 | AM172: 0 | AN172: 0 | AO172: 0 | AP172: 0 | AQ172: 0 | AR172: 0 | AS172: 0
A173: 172 | B173: 22177 Perarrúa | C173: 22177 | D173: =((SUM(E173:X173)))+0 -> 4 | E173: 0 | F173: 1 | G173: 0 | H173: 0 | I173: 0 | J173: 0 | K173: 1 | L173: 0 | M173: 0 | N173: 2 | O173: 0 | P173: 0 | Q173: 0 | R173: 0 | S173: 0 | T173: 0 | U173: 0 | V173: 0 | W173: 0 | X173: 0 | Y173: =(SUM(Z173:AS173))+0 -> 4 | Z173: 0 | AA173: 1 | AB173: 1 | AC173: 0 | AD173: 0 | AE173: 0 | AF173: 0 | AG173: 0 | AH173: 1 | AI173: 0 | AJ173: 0 | AK173: 0 | AL173: 1 | AM173: 0 | AN173: 0 | AO173: 0 | AP173: 0 | AQ173: 0 | AR173: 0 | AS173: 0
A174: 173 | B174: 22178 Pertusa | C174: 22178 | D174: =((SUM(E174:X174)))+0 -> 0 | E174: 0 | F174: 0 | G174: 0 | H174: 0 | I174: 0 | J174: 0 | K174: 0 | L174: 0 | M174: 0 | N174: 0 | O174: 0 | P174: 0 | Q174: 0 | R174: 0 | S174: 0 | T174: 0 | U174: 0 | V174: 0 | W174: 0 | X174: 0 | Y174: =(SUM(Z174:AS174))+0 -> 3 | Z174: 0 | AA174: 0 | AB174: 0 | AC174: 0 | AD174: 0 | AE174: 1 | AF174: 0 | AG174: 0 | AH174: 0 | AI174: 1 | AJ174: 0 | AK174: 0 | AL174: 0 | AM174: 0 | AN174: 1 | AO174: 0 | AP174: 0 | AQ174: 0 | AR174: 0 | AS174: 0
A175: 174 | B175: 22181 Piracés | C175: 22181 | D175: =((SUM(E175:X175)))+0 -> 1 | E175: 0 | F175: 0 | G175: 0 | H175: 0 | I175: 0 | J175: 0 | K175: 1 | L175: 0 | M175: 0 | N175: 0 | O175: 0 | P175: 0 | Q175: 0 | R175: 0 | S175: 0 | T175: 0 | U175: 0 | V175: 0 | W175: 0 | X175: 0 | Y175: =(SUM(Z175:AS175))+0 -> 3 | Z175: 0 | AA175: 0 | AB175: 0 | AC175: 0 | AD175: 0 | AE175: 0 | AF175: 0 | AG175: 0 | AH175: 0 | AI175: 2 | AJ175: 1 | AK175: 0 | AL175: 0 | AM175: 0 | AN175: 0 | AO175: 0 | AP175: 0 | AQ175: 0 | AR175: 0 | AS175: 0
A176: 175 | B176: 22182 Plan | C176: 22182 | D176: =((SUM(E176:X176)))+0 -> 7 | E176: 0 | F176: 0 | G176: 0 | H176: 0 | I176: 0 | J176: 2 | K176: 1 | L176: 1 | M176: 0 | N176: 2 | O176: 0 | P176: 0 | Q176: 0 | R176: 0 | S176: 1 | T176: 0 | U176: 0 | V176: 0 | W176: 0 | X176: 0 | Y176: =(SUM(Z176:AS176))+0 -> 3 | Z176: 0 | AA176: 0 | AB176: 0 | AC176: 1 | AD176: 0 | AE176: 1 | AF176: 0 | AG176: 0 | AH176: 0 | AI176: 0 | AJ176: 0 | AK176: 1 | AL176: 0 | AM176: 0 | AN176: 0 | AO176: 0 | AP176: 0 | AQ176: 0 | AR176: 0 | AS176: 0
A177: 176 | B177: 22184 Poleñino | C177: 22184 | D177: =((SUM(E177:X177)))+0 -> 5 | E177: 0 | F177: 1 | G177: 1 | H177: 0 | I177: 0 | J177: 0 | K177: 0 | L177: 0 | M177: 2 | N177: 0 | O177: 0 | P177: 0 | Q177: 1 | R177: 0 | S177: 0 | T177: 0 | U177: 0 | V177: 0 | W177: 0 | X177: 0 | Y177: =(SUM(Z177:AS177))+0 -> 9 | Z177: 0 | AA177: 1 | AB177: 2 | AC177: 0 | AD177: 0 | AE177: 0 | AF177: 1 | AG177: 0 | AH177: 2 | AI177: 2 | AJ177: 0 | AK177: 0 | AL177: 1 | AM177: 0 | AN177: 0 | AO177: 0 | AP177: 0 | AQ177: 0 | AR177: 0 | AS177: 0
A178: 177 | B178: 22186 Pozán de Vero | C178: 22186 | D178: =((SUM(E178:X178)))+0 -> 3 | E178: 0 | F178: 0 | G178: 0 | H178: 0 | I178: 1 | J178: 0 | K178: 0 | L178: 1 | M178: 0 | N178: 1 | O178: 0 | P178: 0 | Q178: 0 | R178: 0 | S178: 0 | T178: 0 | U178: 0 | V178: 0 | W178: 0 | X178: 0 | Y178: =(SUM(Z178:AS178))+0 -> 0 | Z178: 0 | AA178: 0 | AB178: 0 | AC178: 0 | AD178: 0 | AE178: 0 | AF178: 0 | AG178: 0 | AH178: 0 | AI178: 0 | AJ178: 0 | AK178: 0 | AL178: 0 | AM178: 0 | AN178: 0 | AO178: 0 | AP178: 0 | AQ178: 0 | AR178: 0 | AS178: 0
A179: 178 | B179: 22187 Puebla de Castro (La) | C179: 22187 | D179: =((SUM(E179:X179)))+0 -> 24 | E179: 2 | F179: 3 | G179: 0 | H179: 0 | I179: 2 | J179: 1 | K179: 0 | L179: 1 | M179: 6 | N179: 2 | O179: 0 | P179: 1 | Q179: 2 | R179: 1 | S179: 2 | T179: 1 | U179: 0 | V179: 0 | W179: 0 | X179: 0 | Y179: =(SUM(Z179:AS179))+0 -> 18 | Z179: 3 | AA179: 0 | AB179: 1 | AC179: 0 | AD179: 0 | AE179: 1 | AF179: 1 | AG179: 3 | AH179: 2 | AI179: 1 | AJ179: 0 | AK179: 2 | AL179: 1 | AM179: 2 | AN179: 1 | AO179: 0 | AP179: 0 | AQ179: 0 | AR179: 0 | AS179: 0
A180: 179 | B180: 22188 Puente de Montañana | C180: 22188 | D180: =((SUM(E180:X180)))+0 -> 6 | E180: 1 | F180: 1 | G180: 0 | H180: 0 | I180: 1 | J180: 0 | K180: 1 | L180: 0 | M180: 1 | N180: 1 | O180: 0 | P180: 0 | Q180: 0 | R180: 0 | S180: 0 | T180: 0 | U180: 0 | V180: 0 | W180: 0 | X180: 0 | Y180: =(SUM(Z180:AS180))+0 -> 7 | Z180: 0 | AA180: 0 | AB180: 0 | AC180: 0 | AD180: 1 | AE180: 0 | AF180: 1 | AG180: 2 | AH180: 0 | AI180: 0 | AJ180: 0 | AK180: 1 | AL180: 1 | AM180: 0 | AN180: 1 | AO180: 0 | AP180: 0 | AQ180: 0 | AR180: 0 | AS180: 0
A181: 180 | B181: 22189 Puértolas | C181: 22189 | D181: =((SUM(E181:X181)))+0 -> 4 | E181: 0 | F181: 0 | G181: 1 | H181: 1 | I181: 0 | J181: 0 | K181: 1 | L181: 1 | M181: 0 | N181: 0 | O181: 0 | P181: 0 | Q181: 0 | R181: 0 | S181: 0 | T181: 0 | U181: 0 | V181: 0 | W181: 0 | X181: 0 | Y181: =(SUM(Z181:AS181))+0 -> 10 | Z181: 0 | AA181: 0 | AB181: 0 | AC181: 0 | AD181: 0 | AE181: 2 | AF181: 1 | AG181: 1 | AH181: 1 | AI181: 3 | AJ181: 1 | AK181: 0 | AL181: 0 | AM181: 0 | AN181: 1 | AO181: 0 | AP181: 0 | AQ181: 0 | AR181: 0 | AS181: 0
A182: 181 | B182: 22190 Pueyo de Araguás (El) | C182: 22190 | D182: =((SUM(E182:X182)))+0 -> 4 | E182: 0 | F182: 1 | G182: 0 | H182: 0 | I182: 0 | J182: 0 | K182: 0 | L182: 0 | M182: 0 | N182: 1 | O182: 0 | P182: 1 | Q182: 0 | R182: 1 | S182: 0 | T182: 0 | U182: 0 | V182: 0 | W182: 0 | X182: 0 | Y182: =(SUM(Z182:AS182))+0 -> 3 | Z182: 0 | AA182: 0 | AB182: 1 | AC182: 0 | AD182: 0 | AE182: 0 | AF182: 0 | AG182: 0 | AH182: 0 | AI182: 1 | AJ182: 1 | AK182: 0 | AL182: 0 | AM182: 0 | AN182: 0 | AO182: 0 | AP182: 0 | AQ182: 0 | AR182: 0 | AS182: 0
A183: 182 | B183: 22193 Pueyo de Santa Cruz | C183: 22193 | D183: =((SUM(E183:X183)))+0 -> 7 | E183: 0 | F183: 0 | G183: 1 | H183: 0 | I183: 0 | J183: 1 | K183: 3 | L183: 1 | M183: 0 | N183: 0 | O183: 0 | P183: 1 | Q183: 0 | R183: 0 | S183: 0 | T183: 0 | U183: 0 | V183: 0 | W183: 0 | X183: 0 | Y183: =(SUM(Z183:AS183))+0 -> 14 | Z183: 1 | AA183: 1 | AB183: 0 | AC183: 0 | AD183: 1 | AE183: 1 | AF183: 4 | AG183: 2 | AH183: 1 | AI183: 1 | AJ183: 1 | AK183: 1 | AL183: 0 | AM183: 0 | AN183: 0 | AO183: 0 | AP183: 0 | AQ183: 0 | AR183: 0 | AS183: 0
A184: 183 | B184: 22195 Quicena | C184: 22195 | D184: =((SUM(E184:X184)))+0 -> 8 | E184: 0 | F184: 1 | G184: 0 | H184: 0 | I184: 0 | J184: 1 | K184: 1 | L184: 1 | M184: 2 | N184: 1 | O184: 0 | P184: 0 | Q184: 0 | R184: 0 | S184: 1 | T184: 0 | U184: 0 | V184: 0 | W184: 0 | X184: 0 | Y184: =(SUM(Z184:AS184))+0 -> 7 | Z184: 1 | AA184: 0 | AB184: 0 | AC184: 0 | AD184: 0 | AE184: 0 | AF184: 0 | AG184: 3 | AH184: 1 | AI184: 0 | AJ184: 0 | AK184: 1 | AL184: 1 | AM184: 0 | AN184: 0 | AO184: 0 | AP184: 0 | AQ184: 0 | AR184: 0 | AS184: 0
A185: 184 | B185: 22197 Robres | C185: 22197 | D185: =((SUM(E185:X185)))+0 -> 25 | E185: 2 | F185: 0 | G185: 1 | H185: 2 | I185: 1 | J185: 3 | K185: 3 | L185: 2 | M185: 3 | N185: 1 | O185: 3 | P185: 3 | Q185: 0 | R185: 0 | S185: 0 | T185: 1 | U185: 0 | V185: 0 | W185: 0 | X185: 0 | Y185: =(SUM(Z185:AS185))+0 -> 25 | Z185: 2 | AA185: 5 | AB185: 0 | AC185: 1 | AD185: 3 | AE185: 2 | AF185: 2 | AG185: 3 | AH185: 3 | AI185: 0 | AJ185: 2 | AK185: 1 | AL185: 0 | AM185: 1 | AN185: 0 | AO185: 0 | AP185: 0 | AQ185: 0 | AR185: 0 | AS185: 0
A186: 185 | B186: 22199 Sabiñánigo | C186: 22199 | D186: =((SUM(E186:X186)))+0 -> 617 | E186: 32 | F186: 36 | G186: 37 | H186: 30 | I186: 47 | J186: 56 | K186: 48 | L186: 48 | M186: 76 | N186: 69 | O186: 61 | P186: 29 | Q186: 28 | R186: 11 | S186: 4 | T186: 3 | U186: 0 | V186: 2 | W186: 0 | X186: 0 | Y186: =(SUM(Z186:AS186))+0 -> 594 | Z186: 34 | AA186: 34 | AB186: 24 | AC186: 33 | AD186: 37 | AE186: 45 | AF186: 63 | AG186: 74 | AH186: 66 | AI186: 65 | AJ186: 44 | AK186: 31 | AL186: 20 | AM186: 11 | AN186: 5 | AO186: 4 | AP186: 2 | AQ186: 2 | AR186: 0 | AS186: 0
A187: 186 | B187: 22200 Sahún | C187: 22200 | D187: =((SUM(E187:X187)))+0 -> 6 | E187: 0 | F187: 0 | G187: 0 | H187: 0 | I187: 0 | J187: 0 | K187: 1 | L187: 0 | M187: 0 | N187: 1 | O187: 1 | P187: 3 | Q187: 0 | R187: 0 | S187: 0 | T187: 0 | U187: 0 | V187: 0 | W187: 0 | X187: 0 | Y187: =(SUM(Z187:AS187))+0 -> 13 | Z187: 0 | AA187: 0 | AB187: 0 | AC187: 0 | AD187: 0 | AE187: 1 | AF187: 3 | AG187: 0 | AH187: 0 | AI187: 2 | AJ187: 5 | AK187: 0 | AL187: 1 | AM187: 0 | AN187: 0 | AO187: 1 | AP187: 0 | AQ187: 0 | AR187: 0 | AS187: 0
A188: 187 | B188: 22201 Salas Altas | C188: 22201 | D188: =((SUM(E188:X188)))+0 -> 8 | E188: 0 | F188: 0 | G188: 0 | H188: 0 | I188: 1 | J188: 0 | K188: 3 | L188: 2 | M188: 0 | N188: 0 | O188: 0 | P188: 0 | Q188: 1 | R188: 1 | S188: 0 | T188: 0 | U188: 0 | V188: 0 | W188: 0 | X188: 0 | Y188: =(SUM(Z188:AS188))+0 -> 7 | Z188: 0 | AA188: 0 | AB188: 0 | AC188: 0 | AD188: 1 | AE188: 0 | AF188: 2 | AG188: 1 | AH188: 0 | AI188: 2 | AJ188: 0 | AK188: 0 | AL188: 0 | AM188: 1 | AN188: 0 | AO188: 0 | AP188: 0 | AQ188: 0 | AR188: 0 | AS188: 0
A189: 188 | B189: 22202 Salas Bajas | C189: 22202 | D189: =((SUM(E189:X189)))+0 -> 10 | E189: 0 | F189: 0 | G189: 0 | H189: 0 | I189: 2 | J189: 1 | K189: 1 | L189: 2 | M189: 2 | N189: 0 | O189: 0 | P189: 2 | Q189: 0 | R189: 0 | S189: 0 | T189: 0 | U189: 0 | V189: 0 | W189: 0 | X189: 0 | Y189: =(SUM(Z189:AS189))+0 -> 6 | Z189: 0 | AA189: 0 | AB189: 1 | AC189: 1 | AD189: 1 | AE189: 1 | AF189: 0 | AG189: 0 | AH189: 1 | AI189: 0 | AJ189: 1 | AK189: 0 | AL189: 0 | AM189: 0 | AN189: 0 | AO189: 0 | AP189: 0 | AQ189: 0 | AR189: 0 | AS189: 0
A190: 189 | B190: 22203 Salillas | C190: 22203 | D190: =((SUM(E190:X190)))+0 -> 12 | E190: 1 | F190: 1 | G190: 0 | H190: 1 | I190: 2 | J190: 0 | K190: 0 | L190: 1 | M190: 2 | N190: 3 | O190: 0 | P190: 0 | Q190: 0 | R190: 1 | S190: 0 | T190: 0 | U190: 0 | V190: 0 | W190: 0 | X190: 0 | Y190: =(SUM(Z190:AS190))+0 -> 7 | Z190: 0 | AA190: 1 | AB190: 0 | AC190: 0 | AD190: 1 | AE190: 0 | AF190: 0 | AG190: 1 | AH190: 3 | AI190: 0 | AJ190: 0 | AK190: 0 | AL190: 0 | AM190: 0 | AN190: 0 | AO190: 0 | AP190: 1 | AQ190: 0 | AR190: 0 | AS190: 0
A191: 190 | B191: 22204 Sallent de Gállego | C191: 22204 | D191: =((SUM(E191:X191)))+0 -> 62 | E191: 2 | F191: 3 | G191: 3 | H191: 3 | I191: 3 | J191: 4 | K191: 5 | L191: 11 | M191: 10 | N191: 8 | O191: 2 | P191: 1 | Q191: 1 | R191: 2 | S191: 2 | T191: 2 | U191: 0 | V191: 0 | W191: 0 | X191: 0 | Y191: =(SUM(Z191:AS191))+0 -> 68 | Z191: 2 | AA191: 5 | AB191: 3 | AC191: 4 | AD191: 1 | AE191: 2 | AF191: 7 | AG191: 11 | AH191: 10 | AI191: 8 | AJ191: 6 | AK191: 2 | AL191: 2 | AM191: 3 | AN191: 1 | AO191: 1 | AP191: 0 | AQ191: 0 | AR191: 0 | AS191: 0
A192: 191 | B192: 22205 San Esteban de Litera | C192: 22205 | D192: =((SUM(E192:X192)))+0 -> 54 | E192: 1 | F192: 1 | G192: 2 | H192: 0 | I192: 7 | J192: 7 | K192: 10 | L192: 9 | M192: 5 | N192: 7 | O192: 4 | P192: 0 | Q192: 0 | R192: 0 | S192: 1 | T192: 0 | U192: 0 | V192: 0 | W192: 0 | X192: 0 | Y192: =(SUM(Z192:AS192))+0 -> 41 | Z192: 0 | AA192: 1 | AB192: 6 | AC192: 1 | AD192: 2 | AE192: 7 | AF192: 6 | AG192: 3 | AH192: 5 | AI192: 5 | AJ192: 2 | AK192: 0 | AL192: 2 | AM192: 1 | AN192: 0 | AO192: 0 | AP192: 0 | AQ192: 0 | AR192: 0 | AS192: 0
A193: 192 | B193: 22206 Sangarrén | C193: 22206 | D193: =((SUM(E193:X193)))+0 -> 18 | E193: 0 | F193: 0 | G193: 0 | H193: 1 | I193: 1 | J193: 0 | K193: 2 | L193: 6 | M193: 3 | N193: 2 | O193: 2 | P193: 1 | Q193: 0 | R193: 0 | S193: 0 | T193: 0 | U193: 0 | V193: 0 | W193: 0 | X193: 0 | Y193: =(SUM(Z193:AS193))+0 -> 14 | Z193: 2 | AA193: 1 | AB193: 1 | AC193: 1 | AD193: 0 | AE193: 0 | AF193: 1 | AG193: 4 | AH193: 0 | AI193: 0 | AJ193: 3 | AK193: 1 | AL193: 0 | AM193: 0 | AN193: 0 | AO193: 0 | AP193: 0 | AQ193: 0 | AR193: 0 | AS193: 0
A194: 193 | B194: 22207 San Juan de Plan | C194: 22207 | D194: =((SUM(E194:X194)))+0 -> 0 | E194: 0 | F194: 0 | G194: 0 | H194: 0 | I194: 0 | J194: 0 | K194: 0 | L194: 0 | M194: 0 | N194: 0 | O194: 0 | P194: 0 | Q194: 0 | R194: 0 | S194: 0 | T194: 0 | U194: 0 | V194: 0 | W194: 0 | X194: 0 | Y194: =(SUM(Z194:AS194))+0 -> 6 | Z194: 0 | AA194: 0 | AB194: 0 | AC194: 0 | AD194: 0 | AE194: 1 | AF194: 1 | AG194: 1 | AH194: 0 | AI194: 0 | AJ194: 3 | AK194: 0 | AL194: 0 | AM194: 0 | AN194: 0 | AO194: 0 | AP194: 0 | AQ194: 0 | AR194: 0 | AS194: 0
A195: 194 | B195: 22208 Santa Cilia | C195: 22208 | D195: =((SUM(E195:X195)))+0 -> 6 | E195: 0 | F195: 0 | G195: 0 | H195: 0 | I195: 0 | J195: 0 | K195: 0 | L195: 1 | M195: 3 | N195: 1 | O195: 1 | P195: 0 | Q195: 0 | R195: 0 | S195: 0 | T195: 0 | U195: 0 | V195: 0 | W195: 0 | X195: 0 | Y195: =(SUM(Z195:AS195))+0 -> 5 | Z195: 0 | AA195: 1 | AB195: 0 | AC195: 1 | AD195: 0 | AE195: 0 | AF195: 1 | AG195: 0 | AH195: 2 | AI195: 0 | AJ195: 0 | AK195: 0 | AL195: 0 | AM195: 0 | AN195: 0 | AO195: 0 | AP195: 0 | AQ195: 0 | AR195: 0 | AS195: 0
A196: 195 | B196: 22209 Santa Cruz de la Serós | C196: 22209 | D196: =((SUM(E196:X196)))+0 -> 4 | E196: 0 | F196: 0 | G196: 0 | H196: 0 | I196: 1 | J196: 0 | K196: 0 | L196: 1 | M196: 0 | N196: 0 | O196: 0 | P196: 0 | Q196: 1 | R196: 1 | S196: 0 | T196: 0 | U196: 0 | V196: 0 | W196: 0 | X196: 0 | Y196: =(SUM(Z196:AS196))+0 -> 2 | Z196: 0 | AA196: 0 | AB196: 0 | AC196: 0 | AD196: 0 | AE196: 0 | AF196: 0 | AG196: 0 | AH196: 1 | AI196: 0 | AJ196: 0 | AK196: 0 | AL196: 0 | AM196: 1 | AN196: 0 | AO196: 0 | AP196: 0 | AQ196: 0 | AR196: 0 | AS196: 0
A197: 196 | B197: 22212 Santaliestra y San Quílez | C197: 22212 | D197: =((SUM(E197:X197)))+0 -> 3 | E197: 0 | F197: 0 | G197: 0 | H197: 0 | I197: 0 | J197: 0 | K197: 0 | L197: 0 | M197: 0 | N197: 0 | O197: 1 | P197: 0 | Q197: 0 | R197: 0 | S197: 1 | T197: 1 | U197: 0 | V197: 0 | W197: 0 | X197: 0 | Y197: =(SUM(Z197:AS197))+0 -> 1 | Z197: 0 | AA197: 0 | AB197: 0 | AC197: 0 | AD197: 0 | AE197: 0 | AF197: 0 | AG197: 0 | AH197: 0 | AI197: 0 | AJ197: 0 | AK197: 1 | AL197: 0 | AM197: 0 | AN197: 0 | AO197: 0 | AP197: 0 | AQ197: 0 | AR197: 0 | AS197: 0
A198: 197 | B198: 22213 Sariñena | C198: 22213 | D198: =((SUM(E198:X198)))+0 -> 437 | E198: 36 | F198: 31 | G198: 23 | H198: 26 | I198: 22 | J198: 44 | K198: 40 | L198: 50 | M198: 53 | N198: 41 | O198: 37 | P198: 12 | Q198: 8 | R198: 12 | S198: 1 | T198: 0 | U198: 1 | V198: 0 | W198: 0 | X198: 0 | Y198: =(SUM(Z198:AS198))+0 -> 370 | Z198: 32 | AA198: 24 | AB198: 14 | AC198: 17 | AD198: 17 | AE198: 30 | AF198: 48 | AG198: 47 | AH198: 37 | AI198: 30 | AJ198: 26 | AK198: 18 | AL198: 13 | AM198: 10 | AN198: 4 | AO198: 1 | AP198: 2 | AQ198: 0 | AR198: 0 | AS198: 0
A199: 198 | B199: 22214 Secastilla | C199: 22214 | D199: =((SUM(E199:X199)))+0 -> 9 | E199: 0 | F199: 1 | G199: 0 | H199: 1 | I199: 0 | J199: 1 | K199: 1 | L199: 2 | M199: 0 | N199: 0 | O199: 1 | P199: 2 | Q199: 0 | R199: 0 | S199: 0 | T199: 0 | U199: 0 | V199: 0 | W199: 0 | X199: 0 | Y199: =(SUM(Z199:AS199))+0 -> 11 | Z199: 1 | AA199: 2 | AB199: 0 | AC199: 0 | AD199: 1 | AE199: 0 | AF199: 1 | AG199: 2 | AH199: 1 | AI199: 1 | AJ199: 0 | AK199: 2 | AL199: 0 | AM199: 0 | AN199: 0 | AO199: 0 | AP199: 0 | AQ199: 0 | AR199: 0 | AS199: 0
A200: 199 | B200: 22215 Seira | C200: 22215 | D200: =((SUM(E200:X200)))+0 -> 5 | E200: 1 | F200: 0 | G200: 0 | H200: 0 | I200: 0 | J200: 1 | K200: 1 | L200: 0 | M200: 1 | N200: 0 | O200: 0 | P200: 0 | Q200: 1 | R200: 0 | S200: 0 | T200: 0 | U200: 0 | V200: 0 | W200: 0 | X200: 0 | Y200: =(SUM(Z200:AS200))+0 -> 7 | Z200: 1 | AA200: 0 | AB200: 0 | AC200: 0 | AD200: 0 | AE200: 0 | AF200: 1 | AG200: 1 | AH200: 1 | AI200: 0 | AJ200: 1 | AK200: 2 | AL200: 0 | AM200: 0 | AN200: 0 | AO200: 0 | AP200: 0 | AQ200: 0 | AR200: 0 | AS200: 0
... 569 more rows
